Workbook

Sheet Лист1
C1: 1 | M1: 1
C2: Сделки | M2: Сделки
C3: Время | D3: Тип | E3: Направление | F3: Объем | G3: Цена | H3: Прибыль | I3: Баланс | J3: =SUM(J5:J1141) -> 8000 | M3: Время | N3: Тип | O3: Направление | P3: Объем | Q3: Цена | R3: Прибыль | S3: Баланс | T3: =SUM(T5:T1141) -> 2900
A4: 2016-12-19 | C4: =MOD(A4,1) -> 00:00:00 | D4: balance | H4: 100000 | I4: 100000 | J4: =SUM(J1153:J2333) -> 0 | K4: 2016-12-19 | M4: =MOD(K4,1) -> 00:00:00 | N4: balance | R4: 100000 | S4: 100000 | T4: =SUM(T1153:T2333) -> 0
A5: 2016-12-19T10:31:18 | C5: =MOD(A5,1) -> 10:31:18 | D5: buy | E5: in | F5: 1.00 | G5: 113200 | H5: 0 | I5: 100000 | J5: =(IF(AND(E4="in",E3<>"in"),G4)-IF(AND(E4="in",E3<>"in"),VLOOKUP("out",E5:G$4934,3,)))*-1^(D4="buy") -> 0 | K5: 2016-12-19T10:31:18 | M5: =MOD(K5,1) -> 10:31:18 | N5: buy | O5: in | P5: 1.00 | Q5: 113200 | R5: 0 | S5: 100000 | T5: =(IF(AND(O4="in",O3<>"in"),Q4)-IF(AND(O4="in",O3<>"in"),VLOOKUP("out",O5:Q$4934,3,)))*-1^(N4="buy") -> 0
A6: 2016-12-19T23:40:01 | C6: 23:40:01 | D6: sell | E6: out | F6: 1.00 | G6: 111880 | H6: -1526.58 | I6: 98473.42 | J6: =(IF(AND(E5="in",E4<>"in"),G5)-IF(AND(E5="in",E4<>"in"),VLOOKUP("out",E6:G$4934,3,)))*-1^(D5="buy") -> -1320 | K6: 2016-12-19T23:40:01 | M6: 23:40:01 | N6: sell | O6: out | P6: 1.00 | Q6: 111880 | R6: -1526.58 | S6: 98473.42 | T6: =(IF(AND(O5="in",O4<>"in"),Q5)-IF(AND(O5="in",O4<>"in"),VLOOKUP("out",O6:Q$4934,3,)))*-1^(N5="buy") -> -1320
A7: 2016-12-20T11:40:06 | C7: 11:40:06 | D7: buy | E7: in | F7: 1.00 | G7: 112570 | H7: 0 | I7: 98473.42 | J7: =(IF(AND(E6="in",E5<>"in"),G6)-IF(AND(E6="in",E5<>"in"),VLOOKUP("out",E7:G$4934,3,)))*-1^(D6="buy") -> 0 | K7: 2016-12-20T11:40:06 | M7: 11:40:06 | N7: buy | O7: in | P7: 1.00 | Q7: 112570 | R7: 0 | S7: 98473.42 | T7: =(IF(AND(O6="in",O5<>"in"),Q6)-IF(AND(O6="in",O5<>"in"),VLOOKUP("out",O7:Q$4934,3,)))*-1^(N6="buy") -> 0
A8: 2016-12-20T23:40:01 | C8: 23:40:01 | D8: sell | E8: out | F8: 1.00 | G8: 113490 | H8: 1063.98 | I8: 99537.4 | J8: =(IF(AND(E7="in",E6<>"in"),G7)-IF(AND(E7="in",E6<>"in"),VLOOKUP("out",E8:G$4934,3,)))*-1^(D7="buy") -> 920 | K8: 2016-12-20T23:40:01 | M8: 23:40:01 | N8: sell | O8: out | P8: 1.00 | Q8: 113490 | R8: 1063.98 | S8: 99537.4 | T8: =(IF(AND(O7="in",O6<>"in"),Q7)-IF(AND(O7="in",O6<>"in"),VLOOKUP("out",O8:Q$4934,3,)))*-1^(N7="buy") -> 920
A9: 2016-12-21T10:17:44 | C9: 10:17:44 | D9: buy | E9: in | F9: 1.00 | G9: 114670 | H9: 0 | I9: 99537.4 | J9: =(IF(AND(E8="in",E7<>"in"),G8)-IF(AND(E8="in",E7<>"in"),VLOOKUP("out",E9:G$4934,3,)))*-1^(D8="buy") -> 0 | K9: 2016-12-21T10:17:44 | M9: 10:17:44 | N9: buy | O9: in | P9: 1.00 | Q9: 114670 | R9: 0 | S9: 99537.4 | T9: =(IF(AND(O8="in",O7<>"in"),Q8)-IF(AND(O8="in",O7<>"in"),VLOOKUP("out",O9:Q$4934,3,)))*-1^(N8="buy") -> 0
A10: 2016-12-21T20:26:42 | C10: 20:26:42 | D10: sell | E10: out | F10: 1.00 | G10: 112690 | H10: -2289.87 | I10: 97247.53 | J10: =(IF(AND(E9="in",E8<>"in"),G9)-IF(AND(E9="in",E8<>"in"),VLOOKUP("out",E10:G$4934,3,)))*-1^(D9="buy") -> -1980 | K10: 2016-12-21T20:26:42 | M10: 20:26:42 | N10: sell | O10: out | P10: 1.00 | Q10: 112690 | R10: -2289.87 | S10: 97247.53 | T10: =(IF(AND(O9="in",O8<>"in"),Q9)-IF(AND(O9="in",O8<>"in"),VLOOKUP("out",O10:Q$4934,3,)))*-1^(N9="buy") -> -1980
A11: 2016-12-21T20:26:43 | C11: 20:26:43 | D11: sell | E11: in | F11: 1.00 | G11: 112690 | H11: 0 | I11: 97247.53 | J11: =(IF(AND(E10="in",E9<>"in"),G10)-IF(AND(E10="in",E9<>"in"),VLOOKUP("out",E11:G$4934,3,)))*-1^(D10="buy") -> 0 | K11: 2016-12-21T20:26:43 | M11: 20:26:43 | N11: sell | O11: in | P11: 1.00 | Q11: 112690 | R11: 0 | S11: 97247.53 | T11: =(IF(AND(O10="in",O9<>"in"),Q10)-IF(AND(O10="in",O9<>"in"),VLOOKUP("out",O11:Q$4934,3,)))*-1^(N10="buy") -> 0
A12: 2016-12-21T20:26:44 | C12: 20:26:44 | D12: sell | E12: in | F12: 1.00 | G12: 112690 | H12: 0 | I12: 97247.53 | J12: =(IF(AND(E11="in",E10<>"in"),G11)-IF(AND(E11="in",E10<>"in"),VLOOKUP("out",E12:G$4934,3,)))*-1^(D11="buy") -> -180 | K12: 2016-12-21T20:26:44 | M12: 20:26:44 | N12: sell | O12: in | P12: 1.00 | Q12: 112690 | R12: 0 | S12: 97247.53 | T12: =(IF(AND(O11="in",O10<>"in"),Q11)-IF(AND(O11="in",O10<>"in"),VLOOKUP("out",O12:Q$4934,3,)))*-1^(N11="buy") -> -180
A13: 2016-12-21T20:26:45 | C13: 20:26:45 | D13: sell | E13: in | F13: 1.00 | G13: 112700 | H13: 0 | I13: 97247.53 | J13: =(IF(AND(E12="in",E11<>"in"),G12)-IF(AND(E12="in",E11<>"in"),VLOOKUP("out",E13:G$4934,3,)))*-1^(D12="buy") -> 0 | K13: 2016-12-21T20:26:45 | M13: 20:26:45 | N13: sell | O13: in | P13: 1.00 | Q13: 112700 | R13: 0 | S13: 97247.53 | T13: =(IF(AND(O12="in",O11<>"in"),Q12)-IF(AND(O12="in",O11<>"in"),VLOOKUP("out",O13:Q$4934,3,)))*-1^(N12="buy") -> 0
A14: 2016-12-21T20:26:46 | C14: 20:26:46 | D14: sell | E14: in | F14: 1.00 | G14: 112700 | H14: 0 | I14: 97247.53 | J14: =(IF(AND(E13="in",E12<>"in"),G13)-IF(AND(E13="in",E12<>"in"),VLOOKUP("out",E14:G$4934,3,)))*-1^(D13="buy") -> 0 | K14: 2016-12-21T20:26:46 | M14: 20:26:46 | N14: sell | O14: in | P14: 1.00 | Q14: 112700 | R14: 0 | S14: 97247.53 | T14: =(IF(AND(O13="in",O12<>"in"),Q13)-IF(AND(O13="in",O12<>"in"),VLOOKUP("out",O14:Q$4934,3,)))*-1^(N13="buy") -> 0
A15: 2016-12-21T20:26:47 | C15: 20:26:47 | D15: sell | E15: in | F15: 1.00 | G15: 112710 | H15: 0 | I15: 97247.53 | J15: =(IF(AND(E14="in",E13<>"in"),G14)-IF(AND(E14="in",E13<>"in"),VLOOKUP("out",E15:G$4934,3,)))*-1^(D14="buy") -> 0 | K15: 2016-12-21T20:26:47 | M15: 20:26:47 | N15: sell | O15: in | P15: 1.00 | Q15: 112710 | R15: 0 | S15: 97247.53 | T15: =(IF(AND(O14="in",O13<>"in"),Q14)-IF(AND(O14="in",O13<>"in"),VLOOKUP("out",O15:Q$4934,3,)))*-1^(N14="buy") -> 0
A16: 2016-12-21T23:40:01 | C16: 23:40:01 | D16: buy | E16: out | F16: 5.00 | G16: 112870 | H16: -994.55 | I16: 96252.98 | J16: =(IF(AND(E15="in",E14<>"in"),G15)-IF(AND(E15="in",E14<>"in"),VLOOKUP("out",E16:G$4934,3,)))*-1^(D15="buy") -> 0 | K16: 2016-12-21T23:40:01 | M16: 23:40:01 | N16: buy | O16: out | P16: 5.00 | Q16: 112870 | R16: -994.55 | S16: 96252.98 | T16: =(IF(AND(O15="in",O14<>"in"),Q15)-IF(AND(O15="in",O14<>"in"),VLOOKUP("out",O16:Q$4934,3,)))*-1^(N15="buy") -> 0
A17: 2016-12-22T11:09:44 | C17: 11:09:44 | D17: buy | E17: in | F17: 1.00 | G17: 112990 | H17: 0 | I17: 96252.98 | J17: =(IF(AND(E16="in",E15<>"in"),G16)-IF(AND(E16="in",E15<>"in"),VLOOKUP("out",E17:G$4934,3,)))*-1^(D16="buy") -> 0 | K17: 2016-12-22T11:09:44 | M17: 11:09:44 | N17: buy | O17: in | P17: 1.00 | Q17: 112990 | R17: 0 | S17: 96252.98 | T17: =(IF(AND(O16="in",O15<>"in"),Q16)-IF(AND(O16="in",O15<>"in"),VLOOKUP("out",O17:Q$4934,3,)))*-1^(N16="buy") -> 0
A18: 2016-12-22T23:40:01 | C18: 23:40:01 | D18: sell | E18: out | F18: 1.00 | G18: 112190 | H18: 925.19 | I18: 97178.17 | J18: =(IF(AND(E17="in",E16<>"in"),G17)-IF(AND(E17="in",E16<>"in"),VLOOKUP("out",E18:G$4934,3,)))*-1^(D17="buy") -> -800 | K18: 2016-12-22T23:40:01 | M18: 23:40:01 | N18: sell | O18: out | P18: 1.00 | Q18: 112190 | R18: 925.19 | S18: 97178.17 | T18: =(IF(AND(O17="in",O16<>"in"),Q17)-IF(AND(O17="in",O16<>"in"),VLOOKUP("out",O18:Q$4934,3,)))*-1^(N17="buy") -> -800
A19: 2016-12-23T12:50:44 | C19: 12:50:44 | D19: buy | E19: in | F19: 1.00 | G19: 112220 | H19: 0 | I19: 97178.17 | J19: =(IF(AND(E18="in",E17<>"in"),G18)-IF(AND(E18="in",E17<>"in"),VLOOKUP("out",E19:G$4934,3,)))*-1^(D18="buy") -> 0 | K19: 2016-12-23T12:50:44 | M19: 12:50:44 | N19: buy | O19: in | P19: 1.00 | Q19: 112220 | R19: 0 | S19: 97178.17 | T19: =(IF(AND(O18="in",O17<>"in"),Q18)-IF(AND(O18="in",O17<>"in"),VLOOKUP("out",O19:Q$4934,3,)))*-1^(N18="buy") -> 0
A20: 2016-12-23T12:50:45 | C20: 12:50:45 | D20: buy | E20: in | F20: 1.00 | G20: 112220 | H20: 0 | I20: 97178.17 | J20: =(IF(AND(E19="in",E18<>"in"),G19)-IF(AND(E19="in",E18<>"in"),VLOOKUP("out",E20:G$4934,3,)))*-1^(D19="buy") -> -40 | K20: 2016-12-23T12:50:45 | M20: 12:50:45 | N20: buy | O20: in | P20: 1.00 | Q20: 112220 | R20: 0 | S20: 97178.17 | T20: =(IF(AND(O19="in",O18<>"in"),Q19)-IF(AND(O19="in",O18<>"in"),VLOOKUP("out",O20:Q$4934,3,)))*-1^(N19="buy") -> -40
A21: 2016-12-23T19:00:44 | C21: 19:00:44 | D21: sell | E21: out | F21: 1.00 | G21: 112180 | H21: 46.26 | I21: 97224.43 | J21: =(IF(AND(E20="in",E19<>"in"),G20)-IF(AND(E20="in",E19<>"in"),VLOOKUP("out",E21:G$4934,3,)))*-1^(D20="buy") -> 0 | K21: 2016-12-23T19:00:44 | M21: 19:00:44 | N21: sell | O21: out | P21: 1.00 | Q21: 112180 | R21: 46.26 | S21: 97224.43 | T21: =(IF(AND(O20="in",O19<>"in"),Q20)-IF(AND(O20="in",O19<>"in"),VLOOKUP("out",O21:Q$4934,3,)))*-1^(N20="buy") -> 0
A22: 2016-12-23T23:40:01 | C22: 23:40:01 | D22: sell | E22: out | F22: 1.00 | G22: 111830 | H22: 451.03 | I22: 97675.46 | J22: =(IF(AND(E21="in",E20<>"in"),G21)-IF(AND(E21="in",E20<>"in"),VLOOKUP("out",E22:G$4934,3,)))*-1^(D21="buy") -> 0 | K22: 2016-12-23T23:40:01 | M22: 23:40:01 | N22: sell | O22: out | P22: 1.00 | Q22: 111830 | R22: 451.03 | S22: 97675.46 | T22: =(IF(AND(O21="in",O20<>"in"),Q21)-IF(AND(O21="in",O20<>"in"),VLOOKUP("out",O22:Q$4934,3,)))*-1^(N21="buy") -> 0
A23: 2016-12-26T18:17:22 | C23: 18:17:22 | D23: buy | E23: in | F23: 1.00 | G23: 112330 | H23: 0 | I23: 97675.46 | J23: =(IF(AND(E22="in",E21<>"in"),G22)-IF(AND(E22="in",E21<>"in"),VLOOKUP("out",E23:G$4934,3,)))*-1^(D22="buy") -> 0 | K23: 2016-12-26T18:17:22 | M23: 18:17:22 | N23: buy | O23: in | P23: 1.00 | Q23: 112330 | R23: 0 | S23: 97675.46 | T23: =(IF(AND(O22="in",O21<>"in"),Q22)-IF(AND(O22="in",O21<>"in"),VLOOKUP("out",O23:Q$4934,3,)))*-1^(N22="buy") -> 0
A24: 2016-12-26T23:40:01 | C24: 23:40:01 | D24: sell | E24: out | F24: 1.00 | G24: 112530 | H24: -231.29 | I24: 97444.17 | J24: =(IF(AND(E23="in",E22<>"in"),G23)-IF(AND(E23="in",E22<>"in"),VLOOKUP("out",E24:G$4934,3,)))*-1^(D23="buy") -> 200 | K24: 2016-12-26T23:40:01 | M24: 23:40:01 | N24: sell | O24: out | P24: 1.00 | Q24: 112530 | R24: -231.29 | S24: 97444.17 | T24: =(IF(AND(O23="in",O22<>"in"),Q23)-IF(AND(O23="in",O22<>"in"),VLOOKUP("out",O24:Q$4934,3,)))*-1^(N23="buy") -> 200
A25: 2016-12-27T10:00:44 | C25: 10:00:44 | D25: buy | E25: in | F25: 1.00 | G25: 112820 | H25: 0 | I25: 97444.17 | J25: =(IF(AND(E24="in",E23<>"in"),G24)-IF(AND(E24="in",E23<>"in"),VLOOKUP("out",E25:G$4934,3,)))*-1^(D24="buy") -> 0 | K25: 2016-12-27T10:00:44 | M25: 10:00:44 | N25: buy | O25: in | P25: 1.00 | Q25: 112820 | R25: 0 | S25: 97444.17 | T25: =(IF(AND(O24="in",O23<>"in"),Q24)-IF(AND(O24="in",O23<>"in"),VLOOKUP("out",O25:Q$4934,3,)))*-1^(N24="buy") -> 0
A26: 2016-12-27T10:00:45 | C26: 10:00:45 | D26: buy | E26: in | F26: 1.00 | G26: 112820 | H26: 0 | I26: 97444.17 | J26: =(IF(AND(E25="in",E24<>"in"),G25)-IF(AND(E25="in",E24<>"in"),VLOOKUP("out",E26:G$4934,3,)))*-1^(D25="buy") -> 1260 | K26: 2016-12-27T10:00:45 | M26: 10:00:45 | N26: buy | O26: in | P26: 1.00 | Q26: 112820 | R26: 0 | S26: 97444.17 | T26: =(IF(AND(O25="in",O24<>"in"),Q25)-IF(AND(O25="in",O24<>"in"),VLOOKUP("out",O26:Q$4934,3,)))*-1^(N25="buy") -> 1260
A27: 2016-12-27T23:40:01 | C27: 23:40:01 | D27: sell | E27: out | F27: 2.00 | G27: 114080 | H27: 2914.36 | I27: 100358.53 | J27: =(IF(AND(E26="in",E25<>"in"),G26)-IF(AND(E26="in",E25<>"in"),VLOOKUP("out",E27:G$4934,3,)))*-1^(D26="buy") -> 0 | K27: 2016-12-27T23:40:01 | M27: 23:40:01 | N27: sell | O27: out | P27: 2.00 | Q27: 114080 | R27: 2914.36 | S27: 100358.53 | T27: =(IF(AND(O26="in",O25<>"in"),Q26)-IF(AND(O26="in",O25<>"in"),VLOOKUP("out",O27:Q$4934,3,)))*-1^(N26="buy") -> 0
A28: 2016-12-28T11:12:01 | C28: 11:12:01 | D28: sell | E28: in | F28: 1.00 | G28: 114030 | H28: 0 | I28: 100358.53 | J28: =(IF(AND(E27="in",E26<>"in"),G27)-IF(AND(E27="in",E26<>"in"),VLOOKUP("out",E28:G$4934,3,)))*-1^(D27="buy") -> 0 | K28: 2016-12-28T11:12:01 | M28: 11:12:01 | N28: sell | O28: in | P28: 1.00 | Q28: 114030 | R28: 0 | S28: 100358.53 | T28: =(IF(AND(O27="in",O26<>"in"),Q27)-IF(AND(O27="in",O26<>"in"),VLOOKUP("out",O28:Q$4934,3,)))*-1^(N27="buy") -> 0
A29: 2016-12-28T23:40:01 | C29: 23:40:01 | D29: buy | E29: out | F29: 1.00 | G29: 114240 | H29: 242.86 | I29: 100601.39 | J29: =(IF(AND(E28="in",E27<>"in"),G28)-IF(AND(E28="in",E27<>"in"),VLOOKUP("out",E29:G$4934,3,)))*-1^(D28="buy") -> -210 | K29: 2016-12-28T23:40:01 | M29: 23:40:01 | N29: buy | O29: out | P29: 1.00 | Q29: 114240 | R29: 242.86 | S29: 100601.39 | T29: =(IF(AND(O28="in",O27<>"in"),Q28)-IF(AND(O28="in",O27<>"in"),VLOOKUP("out",O29:Q$4934,3,)))*-1^(N28="buy") -> -210
A30: 2016-12-29T15:36:42 | C30: 15:36:42 | D30: sell | E30: in | F30: 1.00 | G30: 114100 | H30: 0 | I30: 100601.39 | J30: =(IF(AND(E29="in",E28<>"in"),G29)-IF(AND(E29="in",E28<>"in"),VLOOKUP("out",E30:G$4934,3,)))*-1^(D29="buy") -> 0 | K30: 2016-12-29T15:36:42 | M30: 15:36:42 | N30: sell | O30: in | P30: 1.00 | Q30: 114100 | R30: 0 | S30: 100601.39 | T30: =(IF(AND(O29="in",O28<>"in"),Q29)-IF(AND(O29="in",O28<>"in"),VLOOKUP("out",O30:Q$4934,3,)))*-1^(N29="buy") -> 0
A31: 2016-12-29T23:40:01 | C31: 23:40:01 | D31: buy | E31: out | F31: 1.00 | G31: 114810 | H31: 821.12 | I31: 101422.51 | J31: =(IF(AND(E30="in",E29<>"in"),G30)-IF(AND(E30="in",E29<>"in"),VLOOKUP("out",E31:G$4934,3,)))*-1^(D30="buy") -> -710 | K31: 2016-12-29T23:40:01 | M31: 23:40:01 | N31: buy | O31: out | P31: 1.00 | Q31: 114810 | R31: 821.12 | S31: 101422.51 | T31: =(IF(AND(O30="in",O29<>"in"),Q30)-IF(AND(O30="in",O29<>"in"),VLOOKUP("out",O31:Q$4934,3,)))*-1^(N30="buy") -> -710
A32: 2016-12-30T11:38:43 | C32: 11:38:43 | D32: sell | E32: in | F32: 1.00 | G32: 114660 | H32: 0 | I32: 101422.51 | J32: =(IF(AND(E31="in",E30<>"in"),G31)-IF(AND(E31="in",E30<>"in"),VLOOKUP("out",E32:G$4934,3,)))*-1^(D31="buy") -> 0 | K32: 2016-12-30T11:38:43 | M32: 11:38:43 | N32: sell | O32: in | P32: 1.00 | Q32: 114660 | R32: 0 | S32: 101422.51 | T32: =(IF(AND(O31="in",O30<>"in"),Q31)-IF(AND(O31="in",O30<>"in"),VLOOKUP("out",O32:Q$4934,3,)))*-1^(N31="buy") -> 0
A33: 2016-12-30T15:53:06 | C33: 15:53:06 | D33: buy | E33: out | F33: 1.00 | G33: 115240 | H33: -670.77 | I33: 100751.74 | J33: =(IF(AND(E32="in",E31<>"in"),G32)-IF(AND(E32="in",E31<>"in"),VLOOKUP("out",E33:G$4934,3,)))*-1^(D32="buy") -> -580 | K33: 2016-12-30T15:53:06 | M33: 15:53:06 | N33: buy | O33: out | P33: 1.00 | Q33: 115240 | R33: -670.77 | S33: 100751.74 | T33: =(IF(AND(O32="in",O31<>"in"),Q32)-IF(AND(O32="in",O31<>"in"),VLOOKUP("out",O33:Q$4934,3,)))*-1^(N32="buy") -> -580
A34: 2016-12-30T15:53:07 | C34: 15:53:07 | D34: sell | E34: in | F34: 1.00 | G34: 115250 | H34: 0 | I34: 100751.74 | J34: =(IF(AND(E33="in",E32<>"in"),G33)-IF(AND(E33="in",E32<>"in"),VLOOKUP("out",E34:G$4934,3,)))*-1^(D33="buy") -> 0 | K34: 2016-12-30T15:53:07 | M34: 15:53:07 | N34: buy | O34: in | P34: 1.00 | Q34: 115250 | R34: 0 | S34: 100751.74 | T34: =(IF(AND(O33="in",O32<>"in"),Q33)-IF(AND(O33="in",O32<>"in"),VLOOKUP("out",O34:Q$4934,3,)))*-1^(N33="buy") -> 0
A35: 2016-12-30T23:40:01 | C35: 23:40:01 | D35: buy | E35: out | F35: 1.00 | G35: 114880 | H35: -427.9 | I35: 100323.84 | J35: =(IF(AND(E34="in",E33<>"in"),G34)-IF(AND(E34="in",E33<>"in"),VLOOKUP("out",E35:G$4934,3,)))*-1^(D34="buy") -> 370 | K35: 2016-12-30T23:40:01 | M35: 23:40:01 | N35: sell | O35: out | P35: 1.00 | Q35: 114880 | R35: -427.9 | S35: 100323.84 | T35: =(IF(AND(O34="in",O33<>"in"),Q34)-IF(AND(O34="in",O33<>"in"),VLOOKUP("out",O35:Q$4934,3,)))*-1^(N34="buy") -> -370
A36: 2017-01-03T11:52:42 | C36: 11:52:42 | D36: buy | E36: in | F36: 1.00 | G36: 116790 | H36: 0 | I36: 100323.84 | J36: =(IF(AND(E35="in",E34<>"in"),G35)-IF(AND(E35="in",E34<>"in"),VLOOKUP("out",E36:G$4934,3,)))*-1^(D35="buy") -> 0 | K36: 2017-01-03T11:52:42 | M36: 11:52:42 | N36: buy | O36: in | P36: 1.00 | Q36: 116790 | R36: 0 | S36: 100323.84 | T36: =(IF(AND(O35="in",O34<>"in"),Q35)-IF(AND(O35="in",O34<>"in"),VLOOKUP("out",O36:Q$4934,3,)))*-1^(N35="buy") -> 0
A37: 2017-01-03T18:42:42 | C37: 18:42:42 | D37: sell | E37: out | F37: 1.00 | G37: 119070 | H37: 2636.81 | I37: 102960.65 | J37: =(IF(AND(E36="in",E35<>"in"),G36)-IF(AND(E36="in",E35<>"in"),VLOOKUP("out",E37:G$4934,3,)))*-1^(D36="buy") -> 2280 | K37: 2017-01-03T18:42:42 | M37: 18:42:42 | N37: sell | O37: out | P37: 1.00 | Q37: 119070 | R37: 2636.81 | S37: 102960.65 | T37: =(IF(AND(O36="in",O35<>"in"),Q36)-IF(AND(O36="in",O35<>"in"),VLOOKUP("out",O37:Q$4934,3,)))*-1^(N36="buy") -> 2280
A38: 2017-01-03T18:42:43 | C38: 18:42:43 | D38: sell | E38: in | F38: 1.00 | G38: 119060 | H38: 0 | I38: 102960.65 | J38: =(IF(AND(E37="in",E36<>"in"),G37)-IF(AND(E37="in",E36<>"in"),VLOOKUP("out",E38:G$4934,3,)))*-1^(D37="buy") -> 0 | K38: 2017-01-03T18:42:43 | M38: 18:42:43 | N38: sell | O38: in | P38: 1.00 | Q38: 119060 | R38: 0 | S38: 102960.65 | T38: =(IF(AND(O37="in",O36<>"in"),Q37)-IF(AND(O37="in",O36<>"in"),VLOOKUP("out",O38:Q$4934,3,)))*-1^(N37="buy") -> 0
A39: 2017-01-03T18:42:44 | C39: 18:42:44 | D39: sell | E39: in | F39: 1.00 | G39: 119050 | H39: 0 | I39: 102960.65 | J39: =(IF(AND(E38="in",E37<>"in"),G38)-IF(AND(E38="in",E37<>"in"),VLOOKUP("out",E39:G$4934,3,)))*-1^(D38="buy") -> 1370 | K39: 2017-01-03T18:42:44 | M39: 18:42:44 | N39: sell | O39: in | P39: 1.00 | Q39: 119050 | R39: 0 | S39: 102960.65 | T39: =(IF(AND(O38="in",O37<>"in"),Q38)-IF(AND(O38="in",O37<>"in"),VLOOKUP("out",O39:Q$4934,3,)))*-1^(N38="buy") -> 1370
A40: 2017-01-03T18:42:45 | C40: 18:42:45 | D40: sell | E40: in | F40: 1.00 | G40: 119060 | H40: 0 | I40: 102960.65 | J40: =(IF(AND(E39="in",E38<>"in"),G39)-IF(AND(E39="in",E38<>"in"),VLOOKUP("out",E40:G$4934,3,)))*-1^(D39="buy") -> 0 | K40: 2017-01-03T18:42:45 | M40: 18:42:45 | N40: sell | O40: in | P40: 1.00 | Q40: 119060 | R40: 0 | S40: 102960.65 | T40: =(IF(AND(O39="in",O38<>"in"),Q39)-IF(AND(O39="in",O38<>"in"),VLOOKUP("out",O40:Q$4934,3,)))*-1^(N39="buy") -> 0
A41: 2017-01-03T23:40:01 | C41: 23:40:01 | D41: buy | E41: out | F41: 3.00 | G41: 117690 | H41: 4741.65 | I41: 107702.3 | J41: =(IF(AND(E40="in",E39<>"in"),G40)-IF(AND(E40="in",E39<>"in"),VLOOKUP("out",E41:G$4934,3,)))*-1^(D40="buy") -> 0 | K41: 2017-01-03T23:40:01 | M41: 23:40:01 | N41: buy | O41: out | P41: 3.00 | Q41: 117690 | R41: 4741.65 | S41: 107702.3 | T41: =(IF(AND(O40="in",O39<>"in"),Q40)-IF(AND(O40="in",O39<>"in"),VLOOKUP("out",O41:Q$4934,3,)))*-1^(N40="buy") -> 0
A42: 2017-01-03T23:47:27 | C42: 23:47:27 | D42: buy | E42: in | F42: 1.00 | G42: 117970 | H42: 0 | I42: 107702.3 | J42: =(IF(AND(E41="in",E40<>"in"),G41)-IF(AND(E41="in",E40<>"in"),VLOOKUP("out",E42:G$4934,3,)))*-1^(D41="buy") -> 0 | K42: 2017-01-03T23:47:27 | M42: 23:47:27 | N42: buy | O42: in | P42: 1.00 | Q42: 117970 | R42: 0 | S42: 107702.3 | T42: =(IF(AND(O41="in",O40<>"in"),Q41)-IF(AND(O41="in",O40<>"in"),VLOOKUP("out",O42:Q$4934,3,)))*-1^(N41="buy") -> 0
A43: 2017-01-03T23:48:01 | C43: 23:48:01 | D43: sell | E43: out | F43: 1.00 | G43: 118050 | H43: 92.52 | I43: 107794.82 | J43: =(IF(AND(E42="in",E41<>"in"),G42)-IF(AND(E42="in",E41<>"in"),VLOOKUP("out",E43:G$4934,3,)))*-1^(D42="buy") -> 80 | K43: 2017-01-03T23:48:01 | M43: 23:48:01 | N43: sell | O43: out | P43: 1.00 | Q43: 118050 | R43: 92.52 | S43: 107794.82 | T43: =(IF(AND(O42="in",O41<>"in"),Q42)-IF(AND(O42="in",O41<>"in"),VLOOKUP("out",O43:Q$4934,3,)))*-1^(N42="buy") -> 80
A44: 2017-01-04T10:40:44 | C44: 10:40:44 | D44: sell | E44: in | F44: 1.00 | G44: 117520 | H44: 0 | I44: 107794.82 | J44: =(IF(AND(E43="in",E42<>"in"),G43)-IF(AND(E43="in",E42<>"in"),VLOOKUP("out",E44:G$4934,3,)))*-1^(D43="buy") -> 0 | K44: 2017-01-04T10:40:44 | M44: 10:40:44 | N44: sell | O44: in | P44: 1.00 | Q44: 117520 | R44: 0 | S44: 107794.82 | T44: =(IF(AND(O43="in",O42<>"in"),Q43)-IF(AND(O43="in",O42<>"in"),VLOOKUP("out",O44:Q$4934,3,)))*-1^(N43="buy") -> 0
A45: 2017-01-04T23:40:01 | C45: 23:40:01 | D45: buy | E45: out | F45: 1.00 | G45: 118470 | H45: 1098.67 | I45: 108893.49 | J45: =(IF(AND(E44="in",E43<>"in"),G44)-IF(AND(E44="in",E43<>"in"),VLOOKUP("out",E45:G$4934,3,)))*-1^(D44="buy") -> -950 | K45: 2017-01-04T23:40:01 | M45: 23:40:01 | N45: buy | O45: out | P45: 1.00 | Q45: 118470 | R45: 1098.67 | S45: 108893.49 | T45: =(IF(AND(O44="in",O43<>"in"),Q44)-IF(AND(O44="in",O43<>"in"),VLOOKUP("out",O45:Q$4934,3,)))*-1^(N44="buy") -> -950
A46: 2017-01-05T10:00:42 | C46: 10:00:42 | D46: buy | E46: in | F46: 1.00 | G46: 118900 | H46: 0 | I46: 108893.49 | J46: =(IF(AND(E45="in",E44<>"in"),G45)-IF(AND(E45="in",E44<>"in"),VLOOKUP("out",E46:G$4934,3,)))*-1^(D45="buy") -> 0 | K46: 2017-01-05T10:00:42 | M46: 10:00:42 | N46: buy | O46: in | P46: 1.00 | Q46: 118900 | R46: 0 | S46: 108893.49 | T46: =(IF(AND(O45="in",O44<>"in"),Q45)-IF(AND(O45="in",O44<>"in"),VLOOKUP("out",O46:Q$4934,3,)))*-1^(N45="buy") -> 0
A47: 2017-01-05T10:00:43 | C47: 10:00:43 | D47: buy | E47: in | F47: 1.00 | G47: 118900 | H47: 0 | I47: 108893.49 | J47: =(IF(AND(E46="in",E45<>"in"),G46)-IF(AND(E46="in",E45<>"in"),VLOOKUP("out",E47:G$4934,3,)))*-1^(D46="buy") -> -380 | K47: 2017-01-05T10:00:43 | M47: 10:00:43 | N47: buy | O47: in | P47: 1.00 | Q47: 118900 | R47: 0 | S47: 108893.49 | T47: =(IF(AND(O46="in",O45<>"in"),Q46)-IF(AND(O46="in",O45<>"in"),VLOOKUP("out",O47:Q$4934,3,)))*-1^(N46="buy") -> -380
A48: 2017-01-05T10:00:44 | C48: 10:00:44 | D48: buy | E48: in | F48: 1.00 | G48: 118900 | H48: 0 | I48: 108893.49 | J48: =(IF(AND(E47="in",E46<>"in"),G47)-IF(AND(E47="in",E46<>"in"),VLOOKUP("out",E48:G$4934,3,)))*-1^(D47="buy") -> 0 | K48: 2017-01-05T10:00:44 | M48: 10:00:44 | N48: buy | O48: in | P48: 1.00 | Q48: 118900 | R48: 0 | S48: 108893.49 | T48: =(IF(AND(O47="in",O46<>"in"),Q47)-IF(AND(O47="in",O46<>"in"),VLOOKUP("out",O48:Q$4934,3,)))*-1^(N47="buy") -> 0
A49: 2017-01-05T11:08:21 | C49: 11:08:21 | D49: sell | E49: out | F49: 1.00 | G49: 118520 | H49: -439.46 | I49: 108454.03 | J49: =(IF(AND(E48="in",E47<>"in"),G48)-IF(AND(E48="in",E47<>"in"),VLOOKUP("out",E49:G$4934,3,)))*-1^(D48="buy") -> 0 | K49: 2017-01-05T11:08:21 | M49: 11:08:21 | N49: sell | O49: out | P49: 1.00 | Q49: 118520 | R49: -439.46 | S49: 108454.03 | T49: =(IF(AND(O48="in",O47<>"in"),Q48)-IF(AND(O48="in",O47<>"in"),VLOOKUP("out",O49:Q$4934,3,)))*-1^(N48="buy") -> 0
A50: 2017-01-05T11:08:22 | C50: 11:08:22 | D50: sell | E50: out | F50: 1.00 | G50: 118520 | H50: -439.46 | I50: 108014.57 | J50: =(IF(AND(E49="in",E48<>"in"),G49)-IF(AND(E49="in",E48<>"in"),VLOOKUP("out",E50:G$4934,3,)))*-1^(D49="buy") -> 0 | K50: 2017-01-05T11:08:22 | M50: 11:08:22 | N50: sell | O50: out | P50: 1.00 | Q50: 118520 | R50: -439.46 | S50: 108014.57 | T50: =(IF(AND(O49="in",O48<>"in"),Q49)-IF(AND(O49="in",O48<>"in"),VLOOKUP("out",O50:Q$4934,3,)))*-1^(N49="buy") -> 0
A51: 2017-01-05T11:08:44 | C51: 11:08:44 | D51: sell | E51: out | F51: 1.00 | G51: 118300 | H51: -693.89 | I51: 107320.68 | J51: =(IF(AND(E50="in",E49<>"in"),G50)-IF(AND(E50="in",E49<>"in"),VLOOKUP("out",E51:G$4934,3,)))*-1^(D50="buy") -> 0 | K51: 2017-01-05T11:08:44 | M51: 11:08:44 | N51: sell | O51: out | P51: 1.00 | Q51: 118300 | R51: -693.89 | S51: 107320.68 | T51: =(IF(AND(O50="in",O49<>"in"),Q50)-IF(AND(O50="in",O49<>"in"),VLOOKUP("out",O51:Q$4934,3,)))*-1^(N50="buy") -> 0
A52: 2017-01-05T11:08:45 | C52: 11:08:45 | D52: sell | E52: in | F52: 1.00 | G52: 118300 | H52: 0 | I52: 107320.68 | J52: =(IF(AND(E51="in",E50<>"in"),G51)-IF(AND(E51="in",E50<>"in"),VLOOKUP("out",E52:G$4934,3,)))*-1^(D51="buy") -> 0 | K52: 2017-01-05T11:08:45 | M52: 11:08:45 | N52: sell | O52: in | P52: 1.00 | Q52: 118300 | R52: 0 | S52: 107320.68 | T52: =(IF(AND(O51="in",O50<>"in"),Q51)-IF(AND(O51="in",O50<>"in"),VLOOKUP("out",O52:Q$4934,3,)))*-1^(N51="buy") -> 0
A53: 2017-01-05T18:29:44 | C53: 18:29:44 | D53: buy | E53: out | F53: 1.00 | G53: 118040 | H53: 300.69 | I53: 107621.37 | J53: =(IF(AND(E52="in",E51<>"in"),G52)-IF(AND(E52="in",E51<>"in"),VLOOKUP("out",E53:G$4934,3,)))*-1^(D52="buy") -> 260 | K53: 2017-01-05T18:29:44 | M53: 18:29:44 | N53: buy | O53: out | P53: 1.00 | Q53: 118040 | R53: 300.69 | S53: 107621.37 | T53: =(IF(AND(O52="in",O51<>"in"),Q52)-IF(AND(O52="in",O51<>"in"),VLOOKUP("out",O53:Q$4934,3,)))*-1^(N52="buy") -> 260
A54: 2017-01-05T18:29:45 | C54: 18:29:45 | D54: buy | E54: in | F54: 1.00 | G54: 118030 | H54: 0 | I54: 107621.37 | J54: =(IF(AND(E53="in",E52<>"in"),G53)-IF(AND(E53="in",E52<>"in"),VLOOKUP("out",E54:G$4934,3,)))*-1^(D53="buy") -> 0 | K54: 2017-01-05T18:29:45 | M54: 18:29:45 | N54: buy | O54: in | P54: 1.00 | Q54: 118030 | R54: 0 | S54: 107621.37 | T54: =(IF(AND(O53="in",O52<>"in"),Q53)-IF(AND(O53="in",O52<>"in"),VLOOKUP("out",O54:Q$4934,3,)))*-1^(N53="buy") -> 0
A55: 2017-01-05T19:00:40 | C55: 19:00:40 | D55: sell | E55: out | F55: 1.00 | G55: 117220 | H55: -936.76 | I55: 106684.61 | J55: =(IF(AND(E54="in",E53<>"in"),G54)-IF(AND(E54="in",E53<>"in"),VLOOKUP("out",E55:G$4934,3,)))*-1^(D54="buy") -> -810 | K55: 2017-01-05T19:00:40 | M55: 19:00:40 | N55: sell | O55: out | P55: 1.00 | Q55: 117220 | R55: -936.76 | S55: 106684.61 | T55: =(IF(AND(O54="in",O53<>"in"),Q54)-IF(AND(O54="in",O53<>"in"),VLOOKUP("out",O55:Q$4934,3,)))*-1^(N54="buy") -> -810
A56: 2017-01-06T10:00:05 | C56: 10:00:05 | D56: buy | E56: in | F56: 1.00 | G56: 118110 | H56: 0 | I56: 106684.61 | J56: =(IF(AND(E55="in",E54<>"in"),G55)-IF(AND(E55="in",E54<>"in"),VLOOKUP("out",E56:G$4934,3,)))*-1^(D55="buy") -> 0 | K56: 2017-01-06T10:00:05 | M56: 10:00:05 | N56: buy | O56: in | P56: 1.00 | Q56: 118110 | R56: 0 | S56: 106684.61 | T56: =(IF(AND(O55="in",O54<>"in"),Q55)-IF(AND(O55="in",O54<>"in"),VLOOKUP("out",O56:Q$4934,3,)))*-1^(N55="buy") -> 0
A57: 2017-01-06T11:10:33 | C57: 11:10:33 | D57: sell | E57: out | F57: 1.00 | G57: 117390 | H57: -832.67 | I57: 105851.94 | J57: =(IF(AND(E56="in",E55<>"in"),G56)-IF(AND(E56="in",E55<>"in"),VLOOKUP("out",E57:G$4934,3,)))*-1^(D56="buy") -> -720 | K57: 2017-01-06T11:10:33 | M57: 11:10:33 | N57: sell | O57: out | P57: 1.00 | Q57: 117390 | R57: -832.67 | S57: 105851.94 | T57: =(IF(AND(O56="in",O55<>"in"),Q56)-IF(AND(O56="in",O55<>"in"),VLOOKUP("out",O57:Q$4934,3,)))*-1^(N56="buy") -> -720
A58: 2017-01-06T11:10:34 | C58: 11:10:34 | D58: buy | E58: in | F58: 1.00 | G58: 117390 | H58: 0 | I58: 105851.94 | J58: =(IF(AND(E57="in",E56<>"in"),G57)-IF(AND(E57="in",E56<>"in"),VLOOKUP("out",E58:G$4934,3,)))*-1^(D57="buy") -> 0 | K58: 2017-01-06T11:10:34 | M58: 11:10:34 | N58: sell | O58: in | P58: 1.00 | Q58: 117390 | R58: 0 | S58: 105851.94 | T58: =(IF(AND(O57="in",O56<>"in"),Q57)-IF(AND(O57="in",O56<>"in"),VLOOKUP("out",O58:Q$4934,3,)))*-1^(N57="buy") -> 0
A59: 2017-01-06T14:29:42 | C59: 14:29:42 | D59: sell | E59: out | F59: 1.00 | G59: 117360 | H59: 34.7 | I59: 105886.64 | J59: =(IF(AND(E58="in",E57<>"in"),G58)-IF(AND(E58="in",E57<>"in"),VLOOKUP("out",E59:G$4934,3,)))*-1^(D58="buy") -> -30 | K59: 2017-01-06T14:29:42 | M59: 14:29:42 | N59: buy | O59: out | P59: 1.00 | Q59: 117360 | R59: 34.7 | S59: 105886.64 | T59: =(IF(AND(O58="in",O57<>"in"),Q58)-IF(AND(O58="in",O57<>"in"),VLOOKUP("out",O59:Q$4934,3,)))*-1^(N58="buy") -> 30
A60: 2017-01-06T14:29:43 | C60: 14:29:43 | D60: buy | E60: in | F60: 1.00 | G60: 117340 | H60: 0 | I60: 105886.64 | J60: =(IF(AND(E59="in",E58<>"in"),G59)-IF(AND(E59="in",E58<>"in"),VLOOKUP("out",E60:G$4934,3,)))*-1^(D59="buy") -> 0 | K60: 2017-01-06T14:29:43 | M60: 14:29:43 | N60: buy | O60: in | P60: 1.00 | Q60: 117340 | R60: 0 | S60: 105886.64 | T60: =(IF(AND(O59="in",O58<>"in"),Q59)-IF(AND(O59="in",O58<>"in"),VLOOKUP("out",O60:Q$4934,3,)))*-1^(N59="buy") -> 0
A61: 2017-01-06T14:29:44 | C61: 14:29:44 | D61: buy | E61: in | F61: 1.00 | G61: 117350 | H61: 0 | I61: 105886.64 | J61: =(IF(AND(E60="in",E59<>"in"),G60)-IF(AND(E60="in",E59<>"in"),VLOOKUP("out",E61:G$4934,3,)))*-1^(D60="buy") -> 170 | K61: 2017-01-06T14:29:44 | M61: 14:29:44 | N61: buy | O61: in | P61: 1.00 | Q61: 117350 | R61: 0 | S61: 105886.64 | T61: =(IF(AND(O60="in",O59<>"in"),Q60)-IF(AND(O60="in",O59<>"in"),VLOOKUP("out",O61:Q$4934,3,)))*-1^(N60="buy") -> 170
A62: 2017-01-06T23:40:01 | C62: 23:40:01 | D62: sell | E62: out | F62: 2.00 | G62: 117510 | H62: 381.64 | I62: 106268.28 | J62: =(IF(AND(E61="in",E60<>"in"),G61)-IF(AND(E61="in",E60<>"in"),VLOOKUP("out",E62:G$4934,3,)))*-1^(D61="buy") -> 0 | K62: 2017-01-06T23:40:01 | M62: 23:40:01 | N62: sell | O62: out | P62: 2.00 | Q62: 117510 | R62: 381.64 | S62: 106268.28 | T62: =(IF(AND(O61="in",O60<>"in"),Q61)-IF(AND(O61="in",O60<>"in"),VLOOKUP("out",O62:Q$4934,3,)))*-1^(N61="buy") -> 0
A63: 2017-01-09T10:46:06 | C63: 10:46:06 | D63: sell | E63: in | F63: 1.00 | G63: 116620 | H63: 0 | I63: 106268.28 | J63: =(IF(AND(E62="in",E61<>"in"),G62)-IF(AND(E62="in",E61<>"in"),VLOOKUP("out",E63:G$4934,3,)))*-1^(D62="buy") -> 0 | K63: 2017-01-09T10:46:06 | M63: 10:46:06 | N63: sell | O63: in | P63: 1.00 | Q63: 116620 | R63: 0 | S63: 106268.28 | T63: =(IF(AND(O62="in",O61<>"in"),Q62)-IF(AND(O62="in",O61<>"in"),VLOOKUP("out",O63:Q$4934,3,)))*-1^(N62="buy") -> 0
A64: 2017-01-09T23:40:01 | C64: 23:40:01 | D64: buy | E64: out | F64: 1.00 | G64: 116190 | H64: 497.29 | I64: 106765.57 | J64: =(IF(AND(E63="in",E62<>"in"),G63)-IF(AND(E63="in",E62<>"in"),VLOOKUP("out",E64:G$4934,3,)))*-1^(D63="buy") -> 430 | K64: 2017-01-09T23:40:01 | M64: 23:40:01 | N64: buy | O64: out | P64: 1.00 | Q64: 116190 | R64: 497.29 | S64: 106765.57 | T64: =(IF(AND(O63="in",O62<>"in"),Q63)-IF(AND(O63="in",O62<>"in"),VLOOKUP("out",O64:Q$4934,3,)))*-1^(N63="buy") -> 430
A65: 2017-01-10T10:00:43 | C65: 10:00:43 | D65: sell | E65: in | F65: 1.00 | G65: 115810 | H65: 0 | I65: 106765.57 | J65: =(IF(AND(E64="in",E63<>"in"),G64)-IF(AND(E64="in",E63<>"in"),VLOOKUP("out",E65:G$4934,3,)))*-1^(D64="buy") -> 0 | K65: 2017-01-10T10:00:43 | M65: 10:00:43 | N65: sell | O65: in | P65: 1.00 | Q65: 115810 | R65: 0 | S65: 106765.57 | T65: =(IF(AND(O64="in",O63<>"in"),Q64)-IF(AND(O64="in",O63<>"in"),VLOOKUP("out",O65:Q$4934,3,)))*-1^(N64="buy") -> 0
A66: 2017-01-10T10:00:44 | C66: 10:00:44 | D66: sell | E66: in | F66: 1.00 | G66: 115820 | H66: 0 | I66: 106765.57 | J66: =(IF(AND(E65="in",E64<>"in"),G65)-IF(AND(E65="in",E64<>"in"),VLOOKUP("out",E66:G$4934,3,)))*-1^(D65="buy") -> -1470 | K66: 2017-01-10T10:00:44 | M66: 10:00:44 | N66: sell | O66: in | P66: 1.00 | Q66: 115820 | R66: 0 | S66: 106765.57 | T66: =(IF(AND(O65="in",O64<>"in"),Q65)-IF(AND(O65="in",O64<>"in"),VLOOKUP("out",O66:Q$4934,3,)))*-1^(N65="buy") -> -1470
A67: 2017-01-10T16:19:33 | C67: 16:19:33 | D67: buy | E67: out | F67: 1.00 | G67: 117280 | H67: -1694.27 | I67: 105071.3 | J67: =(IF(AND(E66="in",E65<>"in"),G66)-IF(AND(E66="in",E65<>"in"),VLOOKUP("out",E67:G$4934,3,)))*-1^(D66="buy") -> 0 | K67: 2017-01-10T16:19:33 | M67: 16:19:33 | N67: buy | O67: out | P67: 1.00 | Q67: 117280 | R67: -1694.27 | S67: 105071.3 | T67: =(IF(AND(O66="in",O65<>"in"),Q66)-IF(AND(O66="in",O65<>"in"),VLOOKUP("out",O67:Q$4934,3,)))*-1^(N66="buy") -> 0
A68: 2017-01-10T16:20:06 | C68: 16:20:06 | D68: buy | E68: out | F68: 1.00 | G68: 117380 | H68: -1809.92 | I68: 103261.38 | J68: =(IF(AND(E67="in",E66<>"in"),G67)-IF(AND(E67="in",E66<>"in"),VLOOKUP("out",E68:G$4934,3,)))*-1^(D67="buy") -> 0 | K68: 2017-01-10T16:20:06 | M68: 16:20:06 | N68: buy | O68: out | P68: 1.00 | Q68: 117380 | R68: -1809.92 | S68: 103261.38 | T68: =(IF(AND(O67="in",O66<>"in"),Q67)-IF(AND(O67="in",O66<>"in"),VLOOKUP("out",O68:Q$4934,3,)))*-1^(N67="buy") -> 0
A69: 2017-01-10T16:20:08 | C69: =MOD(A69,1) -> 16:20:08 | D69: buy | E69: in | F69: 1.00 | G69: 117380 | H69: 0 | I69: 103261.38 | J69: =(IF(AND(E68="in",E67<>"in"),G68)-IF(AND(E68="in",E67<>"in"),VLOOKUP("out",E69:G$4934,3,)))*-1^(D68="buy") -> 0 | K69: 2017-01-10T16:20:08 | M69: =MOD(K69,1) -> 16:20:08 | N69: buy | O69: in | P69: 1.00 | Q69: 117380 | R69: 0 | S69: 103261.38 | T69: =(IF(AND(O68="in",O67<>"in"),Q68)-IF(AND(O68="in",O67<>"in"),VLOOKUP("out",O69:Q$4934,3,)))*-1^(N68="buy") -> 0
A70: 2017-01-10T16:20:09 | C70: 16:20:09 | D70: buy | E70: in | F70: 1.00 | G70: 117390 | H70: 0 | I70: 103261.38 | J70: =(IF(AND(E69="in",E68<>"in"),G69)-IF(AND(E69="in",E68<>"in"),VLOOKUP("out",E70:G$4934,3,)))*-1^(D69="buy") -> -700 | K70: 2017-01-10T16:20:09 | M70: 16:20:09 | N70: buy | O70: in | P70: 1.00 | Q70: 117390 | R70: 0 | S70: 103261.38 | T70: =(IF(AND(O69="in",O68<>"in"),Q69)-IF(AND(O69="in",O68<>"in"),VLOOKUP("out",O70:Q$4934,3,)))*-1^(N69="buy") -> -700
A71: 2017-01-10T23:40:01 | C71: 23:40:01 | D71: sell | E71: out | F71: 2.00 | G71: 116680 | H71: -1630.66 | I71: 101630.72 | J71: =(IF(AND(E70="in",E69<>"in"),G70)-IF(AND(E70="in",E69<>"in"),VLOOKUP("out",E71:G$4934,3,)))*-1^(D70="buy") -> 0 | K71: 2017-01-10T23:40:01 | M71: 23:40:01 | N71: sell | O71: out | P71: 2.00 | Q71: 116680 | R71: -1630.66 | S71: 101630.72 | T71: =(IF(AND(O70="in",O69<>"in"),Q70)-IF(AND(O70="in",O69<>"in"),VLOOKUP("out",O71:Q$4934,3,)))*-1^(N70="buy") -> 0
A72: 2017-01-11T10:02:42 | C72: 10:02:42 | D72: buy | E72: in | F72: 1.00 | G72: 116990 | H72: 0 | I72: 101630.72 | J72: =(IF(AND(E71="in",E70<>"in"),G71)-IF(AND(E71="in",E70<>"in"),VLOOKUP("out",E72:G$4934,3,)))*-1^(D71="buy") -> 0 | K72: 2017-01-11T10:02:42 | M72: 10:02:42 | N72: buy | O72: in | P72: 1.00 | Q72: 116990 | R72: 0 | S72: 101630.72 | T72: =(IF(AND(O71="in",O70<>"in"),Q71)-IF(AND(O71="in",O70<>"in"),VLOOKUP("out",O72:Q$4934,3,)))*-1^(N71="buy") -> 0
A73: 2017-01-11T23:40:01 | C73: 23:40:01 | D73: sell | E73: out | F73: 1.00 | G73: 117530 | H73: 624.5 | I73: 102255.22 | J73: =(IF(AND(E72="in",E71<>"in"),G72)-IF(AND(E72="in",E71<>"in"),VLOOKUP("out",E73:G$4934,3,)))*-1^(D72="buy") -> 540 | K73: 2017-01-11T23:40:01 | M73: 23:40:01 | N73: sell | O73: out | P73: 1.00 | Q73: 117530 | R73: 624.5 | S73: 102255.22 | T73: =(IF(AND(O72="in",O71<>"in"),Q72)-IF(AND(O72="in",O71<>"in"),VLOOKUP("out",O73:Q$4934,3,)))*-1^(N72="buy") -> 540
A74: 2017-01-12T10:01:33 | C74: 10:01:33 | D74: buy | E74: in | F74: 1.00 | G74: 117840 | H74: 0 | I74: 102255.22 | J74: =(IF(AND(E73="in",E72<>"in"),G73)-IF(AND(E73="in",E72<>"in"),VLOOKUP("out",E74:G$4934,3,)))*-1^(D73="buy") -> 0 | K74: 2017-01-12T10:01:33 | M74: 10:01:33 | N74: buy | O74: in | P74: 1.00 | Q74: 117840 | R74: 0 | S74: 102255.22 | T74: =(IF(AND(O73="in",O72<>"in"),Q73)-IF(AND(O73="in",O72<>"in"),VLOOKUP("out",O74:Q$4934,3,)))*-1^(N73="buy") -> 0
A75: 2017-01-12T23:40:01 | C75: 23:40:01 | D75: sell | E75: out | F75: 1.00 | G75: 117310 | H75: -612.94 | I75: 101642.28 | J75: =(IF(AND(E74="in",E73<>"in"),G74)-IF(AND(E74="in",E73<>"in"),VLOOKUP("out",E75:G$4934,3,)))*-1^(D74="buy") -> -530 | K75: 2017-01-12T23:40:01 | M75: 23:40:01 | N75: sell | O75: out | P75: 1.00 | Q75: 117310 | R75: -612.94 | S75: 101642.28 | T75: =(IF(AND(O74="in",O73<>"in"),Q74)-IF(AND(O74="in",O73<>"in"),VLOOKUP("out",O75:Q$4934,3,)))*-1^(N74="buy") -> -530
A76: 2017-01-13T11:00:33 | C76: 11:00:33 | D76: sell | E76: in | F76: 1.00 | G76: 117280 | H76: 0 | I76: 101642.28 | J76: =(IF(AND(E75="in",E74<>"in"),G75)-IF(AND(E75="in",E74<>"in"),VLOOKUP("out",E76:G$4934,3,)))*-1^(D75="buy") -> 0 | K76: 2017-01-13T11:00:33 | M76: 11:00:33 | N76: sell | O76: in | P76: 1.00 | Q76: 117280 | R76: 0 | S76: 101642.28 | T76: =(IF(AND(O75="in",O74<>"in"),Q75)-IF(AND(O75="in",O74<>"in"),VLOOKUP("out",O76:Q$4934,3,)))*-1^(N75="buy") -> 0
A77: 2017-01-13T23:40:01 | C77: 23:40:01 | D77: buy | E77: out | F77: 1.00 | G77: 115990 | H77: 1491.88 | I77: 103134.16 | J77: =(IF(AND(E76="in",E75<>"in"),G76)-IF(AND(E76="in",E75<>"in"),VLOOKUP("out",E77:G$4934,3,)))*-1^(D76="buy") -> 1290 | K77: 2017-01-13T23:40:01 | M77: 23:40:01 | N77: buy | O77: out | P77: 1.00 | Q77: 115990 | R77: 1491.88 | S77: 103134.16 | T77: =(IF(AND(O76="in",O75<>"in"),Q76)-IF(AND(O76="in",O75<>"in"),VLOOKUP("out",O77:Q$4934,3,)))*-1^(N76="buy") -> 1290
A78: 2017-01-16T10:18:42 | C78: 10:18:42 | D78: sell | E78: in | F78: 1.00 | G78: 115700 | H78: 0 | I78: 103134.16 | J78: =(IF(AND(E77="in",E76<>"in"),G77)-IF(AND(E77="in",E76<>"in"),VLOOKUP("out",E78:G$4934,3,)))*-1^(D77="buy") -> 0 | K78: 2017-01-16T10:18:42 | M78: 10:18:42 | N78: sell | O78: in | P78: 1.00 | Q78: 115700 | R78: 0 | S78: 103134.16 | T78: =(IF(AND(O77="in",O76<>"in"),Q77)-IF(AND(O77="in",O76<>"in"),VLOOKUP("out",O78:Q$4934,3,)))*-1^(N77="buy") -> 0
A79: 2017-01-16T11:21:42 | C79: 11:21:42 | D79: buy | E79: out | F79: 1.00 | G79: 115590 | H79: -127.22 | I79: 103006.94 | J79: =(IF(AND(E78="in",E77<>"in"),G78)-IF(AND(E78="in",E77<>"in"),VLOOKUP("out",E79:G$4934,3,)))*-1^(D78="buy") -> 110 | K79: 2017-01-16T11:21:42 | M79: 11:21:42 | N79: buy | O79: out | P79: 1.00 | Q79: 115590 | R79: -127.22 | S79: 103006.94 | T79: =(IF(AND(O78="in",O77<>"in"),Q78)-IF(AND(O78="in",O77<>"in"),VLOOKUP("out",O79:Q$4934,3,)))*-1^(N78="buy") -> 110
A80: 2017-01-16T11:21:43 | C80: 11:21:43 | D80: sell | E80: in | F80: 1.00 | G80: 115580 | H80: 0 | I80: 103006.94 | J80: =(IF(AND(E79="in",E78<>"in"),G79)-IF(AND(E79="in",E78<>"in"),VLOOKUP("out",E80:G$4934,3,)))*-1^(D79="buy") -> 0 | K80: 2017-01-16T11:21:43 | M80: 11:21:43 | N80: sell | O80: in | P80: 1.00 | Q80: 115580 | R80: 0 | S80: 103006.94 | T80: =(IF(AND(O79="in",O78<>"in"),Q79)-IF(AND(O79="in",O78<>"in"),VLOOKUP("out",O80:Q$4934,3,)))*-1^(N79="buy") -> 0
A81: 2017-01-16T13:08:18 | C81: 13:08:18 | D81: buy | E81: out | F81: 1.00 | G81: 116660 | H81: -1249.01 | I81: 101757.93 | J81: =(IF(AND(E80="in",E79<>"in"),G80)-IF(AND(E80="in",E79<>"in"),VLOOKUP("out",E81:G$4934,3,)))*-1^(D80="buy") -> -1080 | K81: 2017-01-16T13:08:18 | M81: 13:08:18 | N81: buy | O81: out | P81: 1.00 | Q81: 116660 | R81: -1249.01 | S81: 101757.93 | T81: =(IF(AND(O80="in",O79<>"in"),Q80)-IF(AND(O80="in",O79<>"in"),VLOOKUP("out",O81:Q$4934,3,)))*-1^(N80="buy") -> -1080
A82: 2017-01-16T13:08:19 | C82: 13:08:19 | D82: sell | E82: in | F82: 1.00 | G82: 116670 | H82: 0 | I82: 101757.93 | J82: =(IF(AND(E81="in",E80<>"in"),G81)-IF(AND(E81="in",E80<>"in"),VLOOKUP("out",E82:G$4934,3,)))*-1^(D81="buy") -> 0 | K82: 2017-01-16T13:08:19 | M82: 13:08:19 | N82: buy | O82: in | P82: 1.00 | Q82: 116670 | R82: 0 | S82: 101757.93 | T82: =(IF(AND(O81="in",O80<>"in"),Q81)-IF(AND(O81="in",O80<>"in"),VLOOKUP("out",O82:Q$4934,3,)))*-1^(N81="buy") -> 0
A83: 2017-01-16T23:40:01 | C83: 23:40:01 | D83: buy | E83: out | F83: 1.00 | G83: 115810 | H83: -994.59 | I83: 100763.34 | J83: =(IF(AND(E82="in",E81<>"in"),G82)-IF(AND(E82="in",E81<>"in"),VLOOKUP("out",E83:G$4934,3,)))*-1^(D82="buy") -> 860 | K83: 2017-01-16T23:40:01 | M83: 23:40:01 | N83: sell | O83: out | P83: 1.00 | Q83: 115810 | R83: -994.59 | S83: 100763.34 | T83: =(IF(AND(O82="in",O81<>"in"),Q82)-IF(AND(O82="in",O81<>"in"),VLOOKUP("out",O83:Q$4934,3,)))*-1^(N82="buy") -> -860
A84: 2017-01-17T10:01:33 | C84: 10:01:33 | D84: buy | E84: in | F84: 1.00 | G84: 115910 | H84: 0 | I84: 100763.34 | J84: =(IF(AND(E83="in",E82<>"in"),G83)-IF(AND(E83="in",E82<>"in"),VLOOKUP("out",E84:G$4934,3,)))*-1^(D83="buy") -> 0 | K84: 2017-01-17T10:01:33 | M84: 10:01:33 | N84: buy | O84: in | P84: 1.00 | Q84: 115910 | R84: 0 | S84: 100763.34 | T84: =(IF(AND(O83="in",O82<>"in"),Q83)-IF(AND(O83="in",O82<>"in"),VLOOKUP("out",O84:Q$4934,3,)))*-1^(N83="buy") -> 0
A85: 2017-01-17T11:02:18 | C85: 11:02:18 | D85: sell | E85: out | F85: 1.00 | G85: 115540 | H85: -427.9 | I85: 100335.44 | J85: =(IF(AND(E84="in",E83<>"in"),G84)-IF(AND(E84="in",E83<>"in"),VLOOKUP("out",E85:G$4934,3,)))*-1^(D84="buy") -> -370 | K85: 2017-01-17T11:02:18 | M85: 11:02:18 | N85: sell | O85: out | P85: 1.00 | Q85: 115540 | R85: -427.9 | S85: 100335.44 | T85: =(IF(AND(O84="in",O83<>"in"),Q84)-IF(AND(O84="in",O83<>"in"),VLOOKUP("out",O85:Q$4934,3,)))*-1^(N84="buy") -> -370
A86: 2017-01-17T11:02:19 | C86: 11:02:19 | D86: sell | E86: in | F86: 1.00 | G86: 115550 | H86: 0 | I86: 100335.44 | J86: =(IF(AND(E85="in",E84<>"in"),G85)-IF(AND(E85="in",E84<>"in"),VLOOKUP("out",E86:G$4934,3,)))*-1^(D85="buy") -> 0 | K86: 2017-01-17T11:02:19 | M86: 11:02:19 | N86: sell | O86: in | P86: 1.00 | Q86: 115550 | R86: 0 | S86: 100335.44 | T86: =(IF(AND(O85="in",O84<>"in"),Q85)-IF(AND(O85="in",O84<>"in"),VLOOKUP("out",O86:Q$4934,3,)))*-1^(N85="buy") -> 0
A87: 2017-01-17T11:02:20 | C87: 11:02:20 | D87: sell | E87: in | F87: 1.00 | G87: 115540 | H87: 0 | I87: 100335.44 | J87: =(IF(AND(E86="in",E85<>"in"),G86)-IF(AND(E86="in",E85<>"in"),VLOOKUP("out",E87:G$4934,3,)))*-1^(D86="buy") -> 150 | K87: 2017-01-17T11:02:20 | M87: 11:02:20 | N87: sell | O87: in | P87: 1.00 | Q87: 115540 | R87: 0 | S87: 100335.44 | T87: =(IF(AND(O86="in",O85<>"in"),Q86)-IF(AND(O86="in",O85<>"in"),VLOOKUP("out",O87:Q$4934,3,)))*-1^(N86="buy") -> 150
A88: 2017-01-17T11:02:21 | C88: 11:02:21 | D88: sell | E88: in | F88: 1.00 | G88: 115550 | H88: 0 | I88: 100335.44 | J88: =(IF(AND(E87="in",E86<>"in"),G87)-IF(AND(E87="in",E86<>"in"),VLOOKUP("out",E88:G$4934,3,)))*-1^(D87="buy") -> 0 | K88: 2017-01-17T11:02:21 | M88: 11:02:21 | N88: sell | O88: in | P88: 1.00 | Q88: 115550 | R88: 0 | S88: 100335.44 | T88: =(IF(AND(O87="in",O86<>"in"),Q87)-IF(AND(O87="in",O86<>"in"),VLOOKUP("out",O88:Q$4934,3,)))*-1^(N87="buy") -> 0
A89: 2017-01-17T23:40:01 | C89: 23:40:01 | D89: buy | E89: out | F89: 3.00 | G89: 115400 | H89: 508.86 | I89: 100844.3 | J89: =(IF(AND(E88="in",E87<>"in"),G88)-IF(AND(E88="in",E87<>"in"),VLOOKUP("out",E89:G$4934,3,)))*-1^(D88="buy") -> 0 | K89: 2017-01-17T23:40:01 | M89: 23:40:01 | N89: buy | O89: out | P89: 3.00 | Q89: 115400 | R89: 508.86 | S89: 100844.3 | T89: =(IF(AND(O88="in",O87<>"in"),Q88)-IF(AND(O88="in",O87<>"in"),VLOOKUP("out",O89:Q$4934,3,)))*-1^(N88="buy") -> 0
A90: 2017-01-18T11:31:44 | C90: 11:31:44 | D90: buy | E90: in | F90: 1.00 | G90: 116730 | H90: 0 | I90: 100844.3 | J90: =(IF(AND(E89="in",E88<>"in"),G89)-IF(AND(E89="in",E88<>"in"),VLOOKUP("out",E90:G$4934,3,)))*-1^(D89="buy") -> 0 | K90: 2017-01-18T11:31:44 | M90: 11:31:44 | N90: buy | O90: in | P90: 1.00 | Q90: 116730 | R90: 0 | S90: 100844.3 | T90: =(IF(AND(O89="in",O88<>"in"),Q89)-IF(AND(O89="in",O88<>"in"),VLOOKUP("out",O90:Q$4934,3,)))*-1^(N89="buy") -> 0
A91: 2017-01-18T23:40:01 | C91: 23:40:01 | D91: sell | E91: out | F91: 1.00 | G91: 115030 | H91: -1966.05 | I91: 98878.25 | J91: =(IF(AND(E90="in",E89<>"in"),G90)-IF(AND(E90="in",E89<>"in"),VLOOKUP("out",E91:G$4934,3,)))*-1^(D90="buy") -> -1700 | K91: 2017-01-18T23:40:01 | M91: 23:40:01 | N91: sell | O91: out | P91: 1.00 | Q91: 115030 | R91: -1966.05 | S91: 98878.25 | T91: =(IF(AND(O90="in",O89<>"in"),Q90)-IF(AND(O90="in",O89<>"in"),VLOOKUP("out",O91:Q$4934,3,)))*-1^(N90="buy") -> -1700
A92: 2017-01-19T10:00:06 | C92: 10:00:06 | D92: buy | E92: in | F92: 1.00 | G92: 115260 | H92: 0 | I92: 98878.25 | J92: =(IF(AND(E91="in",E90<>"in"),G91)-IF(AND(E91="in",E90<>"in"),VLOOKUP("out",E92:G$4934,3,)))*-1^(D91="buy") -> 0 | K92: 2017-01-19T10:00:06 | M92: 10:00:06 | N92: buy | O92: in | P92: 1.00 | Q92: 115260 | R92: 0 | S92: 98878.25 | T92: =(IF(AND(O91="in",O90<>"in"),Q91)-IF(AND(O91="in",O90<>"in"),VLOOKUP("out",O92:Q$4934,3,)))*-1^(N91="buy") -> 0
A93: 2017-01-19T23:40:01 | C93: 23:40:01 | D93: sell | E93: out | F93: 1.00 | G93: 113540 | H93: -1989.17 | I93: 96889.08 | J93: =(IF(AND(E92="in",E91<>"in"),G92)-IF(AND(E92="in",E91<>"in"),VLOOKUP("out",E93:G$4934,3,)))*-1^(D92="buy") -> -1720 | K93: 2017-01-19T23:40:01 | M93: 23:40:01 | N93: sell | O93: out | P93: 1.00 | Q93: 113540 | R93: -1989.17 | S93: 96889.08 | T93: =(IF(AND(O92="in",O91<>"in"),Q92)-IF(AND(O92="in",O91<>"in"),VLOOKUP("out",O93:Q$4934,3,)))*-1^(N92="buy") -> -1720
A94: 2017-01-20T10:43:22 | C94: 10:43:22 | D94: buy | E94: in | F94: 1.00 | G94: 113690 | H94: 0 | I94: 96889.08 | J94: =(IF(AND(E93="in",E92<>"in"),G93)-IF(AND(E93="in",E92<>"in"),VLOOKUP("out",E94:G$4934,3,)))*-1^(D93="buy") -> 0 | K94: 2017-01-20T10:43:22 | M94: 10:43:22 | N94: buy | O94: in | P94: 1.00 | Q94: 113690 | R94: 0 | S94: 96889.08 | T94: =(IF(AND(O93="in",O92<>"in"),Q93)-IF(AND(O93="in",O92<>"in"),VLOOKUP("out",O94:Q$4934,3,)))*-1^(N93="buy") -> 0
A95: 2017-01-20T10:43:23 | C95: 10:43:23 | D95: buy | E95: in | F95: 1.00 | G95: 113680 | H95: 0 | I95: 96889.08 | J95: =(IF(AND(E94="in",E93<>"in"),G94)-IF(AND(E94="in",E93<>"in"),VLOOKUP("out",E95:G$4934,3,)))*-1^(D94="buy") -> 170 | K95: 2017-01-20T10:43:23 | M95: 10:43:23 | N95: buy | O95: in | P95: 1.00 | Q95: 113680 | R95: 0 | S95: 96889.08 | T95: =(IF(AND(O94="in",O93<>"in"),Q94)-IF(AND(O94="in",O93<>"in"),VLOOKUP("out",O95:Q$4934,3,)))*-1^(N94="buy") -> 170
A96: 2017-01-20T23:40:01 | C96: 23:40:01 | D96: sell | E96: out | F96: 2.00 | G96: 113860 | H96: -404.76 | I96: 96484.32 | J96: =(IF(AND(E95="in",E94<>"in"),G95)-IF(AND(E95="in",E94<>"in"),VLOOKUP("out",E96:G$4934,3,)))*-1^(D95="buy") -> 0 | K96: 2017-01-20T23:40:01 | M96: 23:40:01 | N96: sell | O96: out | P96: 2.00 | Q96: 113860 | R96: -404.76 | S96: 96484.32 | T96: =(IF(AND(O95="in",O94<>"in"),Q95)-IF(AND(O95="in",O94<>"in"),VLOOKUP("out",O96:Q$4934,3,)))*-1^(N95="buy") -> 0
A97: 2017-01-23T10:15:18 | C97: 10:15:18 | D97: sell | E97: in | F97: 1.00 | G97: 113770 | H97: 0 | I97: 96484.32 | J97: =(IF(AND(E96="in",E95<>"in"),G96)-IF(AND(E96="in",E95<>"in"),VLOOKUP("out",E97:G$4934,3,)))*-1^(D96="buy") -> 0 | K97: 2017-01-23T10:15:18 | M97: 10:15:18 | N97: sell | O97: in | P97: 1.00 | Q97: 113770 | R97: 0 | S97: 96484.32 | T97: =(IF(AND(O96="in",O95<>"in"),Q96)-IF(AND(O96="in",O95<>"in"),VLOOKUP("out",O97:Q$4934,3,)))*-1^(N96="buy") -> 0
A98: 2017-01-23T23:40:01 | C98: 23:40:01 | D98: buy | E98: out | F98: 1.00 | G98: 113980 | H98: -242.86 | I98: 96241.46 | J98: =(IF(AND(E97="in",E96<>"in"),G97)-IF(AND(E97="in",E96<>"in"),VLOOKUP("out",E98:G$4934,3,)))*-1^(D97="buy") -> -210 | K98: 2017-01-23T23:40:01 | M98: 23:40:01 | N98: buy | O98: out | P98: 1.00 | Q98: 113980 | R98: -242.86 | S98: 96241.46 | T98: =(IF(AND(O97="in",O96<>"in"),Q97)-IF(AND(O97="in",O96<>"in"),VLOOKUP("out",O98:Q$4934,3,)))*-1^(N97="buy") -> -210
A99: 2017-01-24T10:18:17 | C99: 10:18:17 | D99: buy | E99: in | F99: 1.00 | G99: 114710 | H99: 0 | I99: 96241.46 | J99: =(IF(AND(E98="in",E97<>"in"),G98)-IF(AND(E98="in",E97<>"in"),VLOOKUP("out",E99:G$4934,3,)))*-1^(D98="buy") -> 0 | K99: 2017-01-24T10:18:17 | M99: 10:18:17 | N99: buy | O99: in | P99: 1.00 | Q99: 114710 | R99: 0 | S99: 96241.46 | T99: =(IF(AND(O98="in",O97<>"in"),Q98)-IF(AND(O98="in",O97<>"in"),VLOOKUP("out",O99:Q$4934,3,)))*-1^(N98="buy") -> 0
A100: 2017-01-24T23:40:01 | C100: 23:40:01 | D100: sell | E100: out | F100: 1.00 | G100: 115690 | H100: 1133.36 | I100: 97374.82 | J100: =(IF(AND(E99="in",E98<>"in"),G99)-IF(AND(E99="in",E98<>"in"),VLOOKUP("out",E100:G$4934,3,)))*-1^(D99="buy") -> 980 | K100: 2017-01-24T23:40:01 | M100: 23:40:01 | N100: sell | O100: out | P100: 1.00 | Q100: 115690 | R100: 1133.36 | S100: 97374.82 | T100: =(IF(AND(O99="in",O98<>"in"),Q99)-IF(AND(O99="in",O98<>"in"),VLOOKUP("out",O100:Q$4934,3,)))*-1^(N99="buy") -> 980
A101: 2017-01-25T10:05:17 | C101: 10:05:17 | D101: buy | E101: in | F101: 1.00 | G101: 115900 | H101: 0 | I101: 97374.82 | J101: =(IF(AND(E100="in",E99<>"in"),G100)-IF(AND(E100="in",E99<>"in"),VLOOKUP("out",E101:G$4934,3,)))*-1^(D100="buy") -> 0 | K101: 2017-01-25T10:05:17 | M101: 10:05:17 | N101: buy | O101: in | P101: 1.00 | Q101: 115900 | R101: 0 | S101: 97374.82 | T101: =(IF(AND(O100="in",O99<>"in"),Q100)-IF(AND(O100="in",O99<>"in"),VLOOKUP("out",O101:Q$4934,3,)))*-1^(N100="buy") -> 0
A102: 2017-01-25T16:21:16 | C102: 16:21:16 | D102: sell | E102: out | F102: 1.00 | G102: 115330 | H102: -659.21 | I102: 96715.61 | J102: =(IF(AND(E101="in",E100<>"in"),G101)-IF(AND(E101="in",E100<>"in"),VLOOKUP("out",E102:G$4934,3,)))*-1^(D101="buy") -> -570 | K102: 2017-01-25T16:21:16 | M102: 16:21:16 | N102: sell | O102: out | P102: 1.00 | Q102: 115330 | R102: -659.21 | S102: 96715.61 | T102: =(IF(AND(O101="in",O100<>"in"),Q101)-IF(AND(O101="in",O100<>"in"),VLOOKUP("out",O102:Q$4934,3,)))*-1^(N101="buy") -> -570
A103: 2017-01-25T16:21:17 | C103: 16:21:17 | D103: sell | E103: in | F103: 1.00 | G103: 115340 | H103: 0 | I103: 96715.61 | J103: =(IF(AND(E102="in",E101<>"in"),G102)-IF(AND(E102="in",E101<>"in"),VLOOKUP("out",E103:G$4934,3,)))*-1^(D102="buy") -> 0 | K103: 2017-01-25T16:21:17 | M103: 16:21:17 | N103: sell | O103: in | P103: 1.00 | Q103: 115340 | R103: 0 | S103: 96715.61 | T103: =(IF(AND(O102="in",O101<>"in"),Q102)-IF(AND(O102="in",O101<>"in"),VLOOKUP("out",O103:Q$4934,3,)))*-1^(N102="buy") -> 0
A104: 2017-01-25T16:21:18 | C104: 16:21:18 | D104: sell | E104: in | F104: 1.00 | G104: 115330 | H104: 0 | I104: 96715.61 | J104: =(IF(AND(E103="in",E102<>"in"),G103)-IF(AND(E103="in",E102<>"in"),VLOOKUP("out",E104:G$4934,3,)))*-1^(D103="buy") -> -250 | K104: 2017-01-25T16:21:18 | M104: 16:21:18 | N104: sell | O104: in | P104: 1.00 | Q104: 115330 | R104: 0 | S104: 96715.61 | T104: =(IF(AND(O103="in",O102<>"in"),Q103)-IF(AND(O103="in",O102<>"in"),VLOOKUP("out",O104:Q$4934,3,)))*-1^(N103="buy") -> -250
A105: 2017-01-25T16:21:19 | C105: 16:21:19 | D105: sell | E105: in | F105: 1.00 | G105: 115350 | H105: 0 | I105: 96715.61 | J105: =(IF(AND(E104="in",E103<>"in"),G104)-IF(AND(E104="in",E103<>"in"),VLOOKUP("out",E105:G$4934,3,)))*-1^(D104="buy") -> 0 | K105: 2017-01-25T16:21:19 | M105: 16:21:19 | N105: sell | O105: in | P105: 1.00 | Q105: 115350 | R105: 0 | S105: 96715.61 | T105: =(IF(AND(O104="in",O103<>"in"),Q104)-IF(AND(O104="in",O103<>"in"),VLOOKUP("out",O105:Q$4934,3,)))*-1^(N104="buy") -> 0
A106: 2017-01-25T23:40:01 | C106: 23:40:01 | D106: buy | E106: out | F106: 3.00 | G106: 115590 | H106: -867.36 | I106: 95848.25 | J106: =(IF(AND(E105="in",E104<>"in"),G105)-IF(AND(E105="in",E104<>"in"),VLOOKUP("out",E106:G$4934,3,)))*-1^(D105="buy") -> 0 | K106: 2017-01-25T23:40:01 | M106: 23:40:01 | N106: buy | O106: out | P106: 3.00 | Q106: 115590 | R106: -867.36 | S106: 95848.25 | T106: =(IF(AND(O105="in",O104<>"in"),Q105)-IF(AND(O105="in",O104<>"in"),VLOOKUP("out",O106:Q$4934,3,)))*-1^(N105="buy") -> 0
A107: 2017-01-26T13:32:48 | C107: 13:32:48 | D107: buy | E107: in | F107: 1.00 | G107: 116010 | H107: 0 | I107: 95848.25 | J107: =(IF(AND(E106="in",E105<>"in"),G106)-IF(AND(E106="in",E105<>"in"),VLOOKUP("out",E107:G$4934,3,)))*-1^(D106="buy") -> 0 | K107: 2017-01-26T13:32:48 | M107: 13:32:48 | N107: buy | O107: in | P107: 1.00 | Q107: 116010 | R107: 0 | S107: 95848.25 | T107: =(IF(AND(O106="in",O105<>"in"),Q106)-IF(AND(O106="in",O105<>"in"),VLOOKUP("out",O107:Q$4934,3,)))*-1^(N106="buy") -> 0
A108: 2017-01-26T23:40:01 | C108: 23:40:01 | D108: sell | E108: out | F108: 1.00 | G108: 116100 | H108: 104.09 | I108: 95952.34 | J108: =(IF(AND(E107="in",E106<>"in"),G107)-IF(AND(E107="in",E106<>"in"),VLOOKUP("out",E108:G$4934,3,)))*-1^(D107="buy") -> 90 | K108: 2017-01-26T23:40:01 | M108: 23:40:01 | N108: sell | O108: out | P108: 1.00 | Q108: 116100 | R108: 104.09 | S108: 95952.34 | T108: =(IF(AND(O107="in",O106<>"in"),Q107)-IF(AND(O107="in",O106<>"in"),VLOOKUP("out",O108:Q$4934,3,)))*-1^(N107="buy") -> 90
A109: 2017-01-27T10:05:42 | C109: 10:05:42 | D109: buy | E109: in | F109: 1.00 | G109: 116360 | H109: 0 | I109: 95952.34 | J109: =(IF(AND(E108="in",E107<>"in"),G108)-IF(AND(E108="in",E107<>"in"),VLOOKUP("out",E109:G$4934,3,)))*-1^(D108="buy") -> 0 | K109: 2017-01-27T10:05:42 | M109: 10:05:42 | N109: buy | O109: in | P109: 1.00 | Q109: 116360 | R109: 0 | S109: 95952.34 | T109: =(IF(AND(O108="in",O107<>"in"),Q108)-IF(AND(O108="in",O107<>"in"),VLOOKUP("out",O109:Q$4934,3,)))*-1^(N108="buy") -> 0
A110: 2017-01-27T23:40:01 | C110: 23:40:01 | D110: sell | E110: out | F110: 1.00 | G110: 119020 | H110: 3076.28 | I110: 99028.62 | J110: =(IF(AND(E109="in",E108<>"in"),G109)-IF(AND(E109="in",E108<>"in"),VLOOKUP("out",E110:G$4934,3,)))*-1^(D109="buy") -> 2660 | K110: 2017-01-27T23:40:01 | M110: 23:40:01 | N110: sell | O110: out | P110: 1.00 | Q110: 119020 | R110: 3076.28 | S110: 99028.62 | T110: =(IF(AND(O109="in",O108<>"in"),Q109)-IF(AND(O109="in",O108<>"in"),VLOOKUP("out",O110:Q$4934,3,)))*-1^(N109="buy") -> 2660
A111: 2017-01-30T10:00:29 | C111: 10:00:29 | D111: sell | E111: in | F111: 1.00 | G111: 118760 | H111: 0 | I111: 99028.62 | J111: =(IF(AND(E110="in",E109<>"in"),G110)-IF(AND(E110="in",E109<>"in"),VLOOKUP("out",E111:G$4934,3,)))*-1^(D110="buy") -> 0 | K111: 2017-01-30T10:00:29 | M111: 10:00:29 | N111: sell | O111: in | P111: 1.00 | Q111: 118760 | R111: 0 | S111: 99028.62 | T111: =(IF(AND(O110="in",O109<>"in"),Q110)-IF(AND(O110="in",O109<>"in"),VLOOKUP("out",O111:Q$4934,3,)))*-1^(N110="buy") -> 0
A112: 2017-01-30T23:40:01 | C112: 23:40:01 | D112: buy | E112: out | F112: 1.00 | G112: 117500 | H112: 1457.18 | I112: 100485.8 | J112: =(IF(AND(E111="in",E110<>"in"),G111)-IF(AND(E111="in",E110<>"in"),VLOOKUP("out",E112:G$4934,3,)))*-1^(D111="buy") -> 1260 | K112: 2017-01-30T23:40:01 | M112: 23:40:01 | N112: buy | O112: out | P112: 1.00 | Q112: 117500 | R112: 1457.18 | S112: 100485.8 | T112: =(IF(AND(O111="in",O110<>"in"),Q111)-IF(AND(O111="in",O110<>"in"),VLOOKUP("out",O112:Q$4934,3,)))*-1^(N111="buy") -> 1260
A113: 2017-01-31T11:36:43 | C113: 11:36:43 | D113: sell | E113: in | F113: 1.00 | G113: 116420 | H113: 0 | I113: 100485.8 | J113: =(IF(AND(E112="in",E111<>"in"),G112)-IF(AND(E112="in",E111<>"in"),VLOOKUP("out",E113:G$4934,3,)))*-1^(D112="buy") -> 0 | K113: 2017-01-31T11:36:43 | M113: 11:36:43 | N113: sell | O113: in | P113: 1.00 | Q113: 116420 | R113: 0 | S113: 100485.8 | T113: =(IF(AND(O112="in",O111<>"in"),Q112)-IF(AND(O112="in",O111<>"in"),VLOOKUP("out",O113:Q$4934,3,)))*-1^(N112="buy") -> 0
A114: 2017-01-31T23:40:01 | C114: 23:40:01 | D114: buy | E114: out | F114: 1.00 | G114: 115990 | H114: 497.29 | I114: 100983.09 | J114: =(IF(AND(E113="in",E112<>"in"),G113)-IF(AND(E113="in",E112<>"in"),VLOOKUP("out",E114:G$4934,3,)))*-1^(D113="buy") -> 430 | K114: 2017-01-31T23:40:01 | M114: 23:40:01 | N114: buy | O114: out | P114: 1.00 | Q114: 115990 | R114: 497.29 | S114: 100983.09 | T114: =(IF(AND(O113="in",O112<>"in"),Q113)-IF(AND(O113="in",O112<>"in"),VLOOKUP("out",O114:Q$4934,3,)))*-1^(N113="buy") -> 430
A115: 2017-01-31T23:40:02 | C115: 23:40:02 | D115: buy | E115: in | F115: 1.00 | G115: 115980 | H115: 0 | I115: 100983.09 | J115: =(IF(AND(E114="in",E113<>"in"),G114)-IF(AND(E114="in",E113<>"in"),VLOOKUP("out",E115:G$4934,3,)))*-1^(D114="buy") -> 0 | K115: 2017-01-31T23:40:02 | M115: 23:40:02 | N115: buy | O115: in | P115: 1.00 | Q115: 115980 | R115: 0 | S115: 100983.09 | T115: =(IF(AND(O114="in",O113<>"in"),Q114)-IF(AND(O114="in",O113<>"in"),VLOOKUP("out",O115:Q$4934,3,)))*-1^(N114="buy") -> 0
A116: 2017-01-31T23:41:01 | C116: 23:41:01 | D116: sell | E116: out | F116: 1.00 | G116: 116080 | H116: 115.65 | I116: 101098.74 | J116: =(IF(AND(E115="in",E114<>"in"),G115)-IF(AND(E115="in",E114<>"in"),VLOOKUP("out",E116:G$4934,3,)))*-1^(D115="buy") -> 100 | K116: 2017-01-31T23:41:01 | M116: 23:41:01 | N116: sell | O116: out | P116: 1.00 | Q116: 116080 | R116: 115.65 | S116: 101098.74 | T116: =(IF(AND(O115="in",O114<>"in"),Q115)-IF(AND(O115="in",O114<>"in"),VLOOKUP("out",O116:Q$4934,3,)))*-1^(N115="buy") -> 100
A117: 2017-02-01T10:03:44 | C117: 10:03:44 | D117: sell | E117: in | F117: 1.00 | G117: 115780 | H117: 0 | I117: 101098.74 | J117: =(IF(AND(E116="in",E115<>"in"),G116)-IF(AND(E116="in",E115<>"in"),VLOOKUP("out",E117:G$4934,3,)))*-1^(D116="buy") -> 0 | K117: 2017-02-01T10:03:44 | M117: 10:03:44 | N117: sell | O117: in | P117: 1.00 | Q117: 115780 | R117: 0 | S117: 101098.74 | T117: =(IF(AND(O116="in",O115<>"in"),Q116)-IF(AND(O116="in",O115<>"in"),VLOOKUP("out",O117:Q$4934,3,)))*-1^(N116="buy") -> 0
A118: 2017-02-01T23:40:01 | C118: 23:40:01 | D118: buy | E118: out | F118: 1.00 | G118: 116880 | H118: -1272.14 | I118: 99826.6 | J118: =(IF(AND(E117="in",E116<>"in"),G117)-IF(AND(E117="in",E116<>"in"),VLOOKUP("out",E118:G$4934,3,)))*-1^(D117="buy") -> -1100 | K118: 2017-02-01T23:40:01 | M118: 23:40:01 | N118: buy | O118: out | P118: 1.00 | Q118: 116880 | R118: -1272.14 | S118: 99826.6 | T118: =(IF(AND(O117="in",O116<>"in"),Q117)-IF(AND(O117="in",O116<>"in"),VLOOKUP("out",O118:Q$4934,3,)))*-1^(N117="buy") -> -1100
A119: 2017-02-02T10:03:41 | C119: 10:03:41 | D119: buy | E119: in | F119: 1.00 | G119: 117140 | H119: 0 | I119: 99826.6 | J119: =(IF(AND(E118="in",E117<>"in"),G118)-IF(AND(E118="in",E117<>"in"),VLOOKUP("out",E119:G$4934,3,)))*-1^(D118="buy") -> 0 | K119: 2017-02-02T10:03:41 | M119: 10:03:41 | N119: buy | O119: in | P119: 1.00 | Q119: 117140 | R119: 0 | S119: 99826.6 | T119: =(IF(AND(O118="in",O117<>"in"),Q118)-IF(AND(O118="in",O117<>"in"),VLOOKUP("out",O119:Q$4934,3,)))*-1^(N118="buy") -> 0
A120: 2017-02-02T23:40:01 | C120: 23:40:01 | D120: sell | E120: out | F120: 1.00 | G120: 117740 | H120: 693.9 | I120: 100520.5 | J120: =(IF(AND(E119="in",E118<>"in"),G119)-IF(AND(E119="in",E118<>"in"),VLOOKUP("out",E120:G$4934,3,)))*-1^(D119="buy") -> 600 | K120: 2017-02-02T23:40:01 | M120: 23:40:01 | N120: sell | O120: out | P120: 1.00 | Q120: 117740 | R120: 693.9 | S120: 100520.5 | T120: =(IF(AND(O119="in",O118<>"in"),Q119)-IF(AND(O119="in",O118<>"in"),VLOOKUP("out",O120:Q$4934,3,)))*-1^(N119="buy") -> 600
A121: 2017-02-03T10:10:22 | C121: 10:10:22 | D121: buy | E121: in | F121: 1.00 | G121: 118020 | H121: 0 | I121: 100520.5 | J121: =(IF(AND(E120="in",E119<>"in"),G120)-IF(AND(E120="in",E119<>"in"),VLOOKUP("out",E121:G$4934,3,)))*-1^(D120="buy") -> 0 | K121: 2017-02-03T10:10:22 | M121: 10:10:22 | N121: buy | O121: in | P121: 1.00 | Q121: 118020 | R121: 0 | S121: 100520.5 | T121: =(IF(AND(O120="in",O119<>"in"),Q120)-IF(AND(O120="in",O119<>"in"),VLOOKUP("out",O121:Q$4934,3,)))*-1^(N120="buy") -> 0
A122: 2017-02-03T23:40:01 | C122: 23:40:01 | D122: sell | E122: out | F122: 1.00 | G122: 118490 | H122: 543.55 | I122: 101064.05 | J122: =(IF(AND(E121="in",E120<>"in"),G121)-IF(AND(E121="in",E120<>"in"),VLOOKUP("out",E122:G$4934,3,)))*-1^(D121="buy") -> 470 | K122: 2017-02-03T23:40:01 | M122: 23:40:01 | N122: sell | O122: out | P122: 1.00 | Q122: 118490 | R122: 543.55 | S122: 101064.05 | T122: =(IF(AND(O121="in",O120<>"in"),Q121)-IF(AND(O121="in",O120<>"in"),VLOOKUP("out",O122:Q$4934,3,)))*-1^(N121="buy") -> 470
A123: 2017-02-06T10:00:16 | C123: 10:00:16 | D123: buy | E123: in | F123: 1.00 | G123: 118810 | H123: 0 | I123: 101064.05 | J123: =(IF(AND(E122="in",E121<>"in"),G122)-IF(AND(E122="in",E121<>"in"),VLOOKUP("out",E123:G$4934,3,)))*-1^(D122="buy") -> 0 | K123: 2017-02-06T10:00:16 | M123: 10:00:16 | N123: buy | O123: in | P123: 1.00 | Q123: 118810 | R123: 0 | S123: 101064.05 | T123: =(IF(AND(O122="in",O121<>"in"),Q122)-IF(AND(O122="in",O121<>"in"),VLOOKUP("out",O123:Q$4934,3,)))*-1^(N122="buy") -> 0
A124: 2017-02-06T11:25:18 | C124: 11:25:18 | D124: sell | E124: out | F124: 1.00 | G124: 118850 | H124: 46.26 | I124: 101110.31 | J124: =(IF(AND(E123="in",E122<>"in"),G123)-IF(AND(E123="in",E122<>"in"),VLOOKUP("out",E124:G$4934,3,)))*-1^(D123="buy") -> 40 | K124: 2017-02-06T11:25:18 | M124: 11:25:18 | N124: sell | O124: out | P124: 1.00 | Q124: 118850 | R124: 46.26 | S124: 101110.31 | T124: =(IF(AND(O123="in",O122<>"in"),Q123)-IF(AND(O123="in",O122<>"in"),VLOOKUP("out",O124:Q$4934,3,)))*-1^(N123="buy") -> 40
A125: 2017-02-06T11:25:19 | C125: 11:25:19 | D125: sell | E125: in | F125: 1.00 | G125: 118860 | H125: 0 | I125: 101110.31 | J125: =(IF(AND(E124="in",E123<>"in"),G124)-IF(AND(E124="in",E123<>"in"),VLOOKUP("out",E125:G$4934,3,)))*-1^(D124="buy") -> 0 | K125: 2017-02-06T11:25:19 | M125: 11:25:19 | N125: sell | O125: in | P125: 1.00 | Q125: 118860 | R125: 0 | S125: 101110.31 | T125: =(IF(AND(O124="in",O123<>"in"),Q124)-IF(AND(O124="in",O123<>"in"),VLOOKUP("out",O125:Q$4934,3,)))*-1^(N124="buy") -> 0
A126: 2017-02-06T11:25:20 | C126: 11:25:20 | D126: sell | E126: in | F126: 1.00 | G126: 118850 | H126: 0 | I126: 101110.31 | J126: =(IF(AND(E125="in",E124<>"in"),G125)-IF(AND(E125="in",E124<>"in"),VLOOKUP("out",E126:G$4934,3,)))*-1^(D125="buy") -> 790 | K126: 2017-02-06T11:25:20 | M126: 11:25:20 | N126: sell | O126: in | P126: 1.00 | Q126: 118850 | R126: 0 | S126: 101110.31 | T126: =(IF(AND(O125="in",O124<>"in"),Q125)-IF(AND(O125="in",O124<>"in"),VLOOKUP("out",O126:Q$4934,3,)))*-1^(N125="buy") -> 790
A127: 2017-02-06T11:25:21 | C127: 11:25:21 | D127: sell | E127: in | F127: 1.00 | G127: 118860 | H127: 0 | I127: 101110.31 | J127: =(IF(AND(E126="in",E125<>"in"),G126)-IF(AND(E126="in",E125<>"in"),VLOOKUP("out",E127:G$4934,3,)))*-1^(D126="buy") -> 0 | K127: 2017-02-06T11:25:21 | M127: 11:25:21 | N127: sell | O127: in | P127: 1.00 | Q127: 118860 | R127: 0 | S127: 101110.31 | T127: =(IF(AND(O126="in",O125<>"in"),Q126)-IF(AND(O126="in",O125<>"in"),VLOOKUP("out",O127:Q$4934,3,)))*-1^(N126="buy") -> 0
A128: 2017-02-06T11:25:22 | C128: 11:25:22 | D128: sell | E128: in | F128: 1.00 | G128: 118860 | H128: 0 | I128: 101110.31 | J128: =(IF(AND(E127="in",E126<>"in"),G127)-IF(AND(E127="in",E126<>"in"),VLOOKUP("out",E128:G$4934,3,)))*-1^(D127="buy") -> 0 | K128: 2017-02-06T11:25:22 | M128: 11:25:22 | N128: sell | O128: in | P128: 1.00 | Q128: 118860 | R128: 0 | S128: 101110.31 | T128: =(IF(AND(O127="in",O126<>"in"),Q127)-IF(AND(O127="in",O126<>"in"),VLOOKUP("out",O128:Q$4934,3,)))*-1^(N127="buy") -> 0
A129: 2017-02-06T11:25:23 | C129: 11:25:23 | D129: sell | E129: in | F129: 1.00 | G129: 118880 | H129: 0 | I129: 101110.31 | J129: =(IF(AND(E128="in",E127<>"in"),G128)-IF(AND(E128="in",E127<>"in"),VLOOKUP("out",E129:G$4934,3,)))*-1^(D128="buy") -> 0 | K129: 2017-02-06T11:25:23 | M129: 11:25:23 | N129: sell | O129: in | P129: 1.00 | Q129: 118880 | R129: 0 | S129: 101110.31 | T129: =(IF(AND(O128="in",O127<>"in"),Q128)-IF(AND(O128="in",O127<>"in"),VLOOKUP("out",O129:Q$4934,3,)))*-1^(N128="buy") -> 0
A130: 2017-02-06T23:40:01 | C130: 23:40:01 | D130: buy | E130: out | F130: 5.00 | G130: 118070 | H130: 4579.75 | I130: 105690.06 | J130: =(IF(AND(E129="in",E128<>"in"),G129)-IF(AND(E129="in",E128<>"in"),VLOOKUP("out",E130:G$4934,3,)))*-1^(D129="buy") -> 0 | K130: 2017-02-06T23:40:01 | M130: 23:40:01 | N130: buy | O130: out | P130: 5.00 | Q130: 118070 | R130: 4579.75 | S130: 105690.06 | T130: =(IF(AND(O129="in",O128<>"in"),Q129)-IF(AND(O129="in",O128<>"in"),VLOOKUP("out",O130:Q$4934,3,)))*-1^(N129="buy") -> 0
A131: 2017-02-07T10:00:26 | C131: 10:00:26 | D131: sell | E131: in | F131: 1.00 | G131: 117760 | H131: 0 | I131: 105690.06 | J131: =(IF(AND(E130="in",E129<>"in"),G130)-IF(AND(E130="in",E129<>"in"),VLOOKUP("out",E131:G$4934,3,)))*-1^(D130="buy") -> 0 | K131: 2017-02-07T10:00:26 | M131: 10:00:26 | N131: sell | O131: in | P131: 1.00 | Q131: 117760 | R131: 0 | S131: 105690.06 | T131: =(IF(AND(O130="in",O129<>"in"),Q130)-IF(AND(O130="in",O129<>"in"),VLOOKUP("out",O131:Q$4934,3,)))*-1^(N130="buy") -> 0
A132: 2017-02-07T10:00:27 | C132: 10:00:27 | D132: sell | E132: in | F132: 1.00 | G132: 117740 | H132: 0 | I132: 105690.06 | J132: =(IF(AND(E131="in",E130<>"in"),G131)-IF(AND(E131="in",E130<>"in"),VLOOKUP("out",E132:G$4934,3,)))*-1^(D131="buy") -> 310 | K132: 2017-02-07T10:00:27 | M132: 10:00:27 | N132: sell | O132: in | P132: 1.00 | Q132: 117740 | R132: 0 | S132: 105690.06 | T132: =(IF(AND(O131="in",O130<>"in"),Q131)-IF(AND(O131="in",O130<>"in"),VLOOKUP("out",O132:Q$4934,3,)))*-1^(N131="buy") -> 310
A133: 2017-02-07T10:00:28 | C133: =MOD(A133,1) -> 10:00:28 | D133: sell | E133: in | F133: 1.00 | G133: 117740 | H133: 0 | I133: 105690.06 | J133: =(IF(AND(E132="in",E131<>"in"),G132)-IF(AND(E132="in",E131<>"in"),VLOOKUP("out",E133:G$4934,3,)))*-1^(D132="buy") -> 0 | K133: 2017-02-07T10:00:28 | M133: =MOD(K133,1) -> 10:00:28 | N133: sell | O133: in | P133: 1.00 | Q133: 117740 | R133: 0 | S133: 105690.06 | T133: =(IF(AND(O132="in",O131<>"in"),Q132)-IF(AND(O132="in",O131<>"in"),VLOOKUP("out",O133:Q$4934,3,)))*-1^(N132="buy") -> 0
A134: 2017-02-07T14:07:42 | C134: 14:07:42 | D134: buy | E134: out | F134: 1.00 | G134: 117450 | H134: 343.09 | I134: 106033.15 | J134: =(IF(AND(E133="in",E132<>"in"),G133)-IF(AND(E133="in",E132<>"in"),VLOOKUP("out",E134:G$4934,3,)))*-1^(D133="buy") -> 0 | K134: 2017-02-07T14:07:42 | M134: 14:07:42 | N134: buy | O134: out | P134: 1.00 | Q134: 117450 | R134: 343.09 | S134: 106033.15 | T134: =(IF(AND(O133="in",O132<>"in"),Q133)-IF(AND(O133="in",O132<>"in"),VLOOKUP("out",O134:Q$4934,3,)))*-1^(N133="buy") -> 0
A135: 2017-02-07T23:40:01 | C135: 23:40:01 | D135: buy | E135: out | F135: 2.00 | G135: 117540 | H135: 478.02 | I135: 106511.17 | J135: =(IF(AND(E134="in",E133<>"in"),G134)-IF(AND(E134="in",E133<>"in"),VLOOKUP("out",E135:G$4934,3,)))*-1^(D134="buy") -> 0 | K135: 2017-02-07T23:40:01 | M135: 23:40:01 | N135: buy | O135: out | P135: 2.00 | Q135: 117540 | R135: 478.02 | S135: 106511.17 | T135: =(IF(AND(O134="in",O133<>"in"),Q134)-IF(AND(O134="in",O133<>"in"),VLOOKUP("out",O135:Q$4934,3,)))*-1^(N134="buy") -> 0
A136: 2017-02-08T11:12:44 | C136: 11:12:44 | D136: sell | E136: in | F136: 1.00 | G136: 117280 | H136: 0 | I136: 106511.17 | J136: =(IF(AND(E135="in",E134<>"in"),G135)-IF(AND(E135="in",E134<>"in"),VLOOKUP("out",E136:G$4934,3,)))*-1^(D135="buy") -> 0 | K136: 2017-02-08T11:12:44 | M136: 11:12:44 | N136: sell | O136: in | P136: 1.00 | Q136: 117280 | R136: 0 | S136: 106511.17 | T136: =(IF(AND(O135="in",O134<>"in"),Q135)-IF(AND(O135="in",O134<>"in"),VLOOKUP("out",O136:Q$4934,3,)))*-1^(N135="buy") -> 0
A137: 2017-02-08T23:40:01 | C137: 23:40:01 | D137: buy | E137: out | F137: 1.00 | G137: 116540 | H137: -855.81 | I137: 105655.36 | J137: =(IF(AND(E136="in",E135<>"in"),G136)-IF(AND(E136="in",E135<>"in"),VLOOKUP("out",E137:G$4934,3,)))*-1^(D136="buy") -> 740 | K137: 2017-02-08T23:40:01 | M137: 23:40:01 | N137: buy | O137: out | P137: 1.00 | Q137: 116540 | R137: -855.81 | S137: 105655.36 | T137: =(IF(AND(O136="in",O135<>"in"),Q136)-IF(AND(O136="in",O135<>"in"),VLOOKUP("out",O137:Q$4934,3,)))*-1^(N136="buy") -> 740
A138: 2017-02-09T10:00:29 | C138: 10:00:29 | D138: buy | E138: in | F138: 1.00 | G138: 116820 | H138: 0 | I138: 105655.36 | J138: =(IF(AND(E137="in",E136<>"in"),G137)-IF(AND(E137="in",E136<>"in"),VLOOKUP("out",E138:G$4934,3,)))*-1^(D137="buy") -> 0 | K138: 2017-02-09T10:00:29 | M138: 10:00:29 | N138: buy | O138: in | P138: 1.00 | Q138: 116820 | R138: 0 | S138: 105655.36 | T138: =(IF(AND(O137="in",O136<>"in"),Q137)-IF(AND(O137="in",O136<>"in"),VLOOKUP("out",O138:Q$4934,3,)))*-1^(N137="buy") -> 0
A139: 2017-02-09T11:48:33 | C139: 11:48:33 | D139: sell | E139: out | F139: 1.00 | G139: 116260 | H139: -647.64 | I139: 105007.72 | J139: =(IF(AND(E138="in",E137<>"in"),G138)-IF(AND(E138="in",E137<>"in"),VLOOKUP("out",E139:G$4934,3,)))*-1^(D138="buy") -> -560 | K139: 2017-02-09T11:48:33 | M139: 11:48:33 | N139: sell | O139: out | P139: 1.00 | Q139: 116260 | R139: -647.64 | S139: 105007.72 | T139: =(IF(AND(O138="in",O137<>"in"),Q138)-IF(AND(O138="in",O137<>"in"),VLOOKUP("out",O139:Q$4934,3,)))*-1^(N138="buy") -> -560
A140: 2017-02-09T11:48:34 | C140: 11:48:34 | D140: buy | E140: in | F140: 1.00 | G140: 116260 | H140: 0 | I140: 105007.72 | J140: =(IF(AND(E139="in",E138<>"in"),G139)-IF(AND(E139="in",E138<>"in"),VLOOKUP("out",E140:G$4934,3,)))*-1^(D139="buy") -> 0 | K140: 2017-02-09T11:48:34 | M140: 11:48:34 | N140: sell | O140: in | P140: 1.00 | Q140: 116260 | R140: 0 | S140: 105007.72 | T140: =(IF(AND(O139="in",O138<>"in"),Q139)-IF(AND(O139="in",O138<>"in"),VLOOKUP("out",O140:Q$4934,3,)))*-1^(N139="buy") -> 0
A141: 2017-02-09T11:48:35 | C141: 11:48:35 | D141: buy | E141: in | F141: 1.00 | G141: 116260 | H141: 0 | I141: 105007.72 | J141: =(IF(AND(E140="in",E139<>"in"),G140)-IF(AND(E140="in",E139<>"in"),VLOOKUP("out",E141:G$4934,3,)))*-1^(D140="buy") -> 60 | K141: 2017-02-09T11:48:35 | M141: 11:48:35 | N141: sell | O141: in | P141: 1.00 | Q141: 116260 | R141: 0 | S141: 105007.72 | T141: =(IF(AND(O140="in",O139<>"in"),Q140)-IF(AND(O140="in",O139<>"in"),VLOOKUP("out",O141:Q$4934,3,)))*-1^(N140="buy") -> -60
A142: 2017-02-09T11:48:36 | C142: 11:48:36 | D142: buy | E142: in | F142: 1.00 | G142: 116260 | H142: 0 | I142: 105007.72 | J142: =(IF(AND(E141="in",E140<>"in"),G141)-IF(AND(E141="in",E140<>"in"),VLOOKUP("out",E142:G$4934,3,)))*-1^(D141="buy") -> 0 | K142: 2017-02-09T11:48:36 | M142: 11:48:36 | N142: sell | O142: in | P142: 1.00 | Q142: 116260 | R142: 0 | S142: 105007.72 | T142: =(IF(AND(O141="in",O140<>"in"),Q141)-IF(AND(O141="in",O140<>"in"),VLOOKUP("out",O142:Q$4934,3,)))*-1^(N141="buy") -> 0
A143: 2017-02-09T23:40:01 | C143: 23:40:01 | D143: sell | E143: out | F143: 3.00 | G143: 116320 | H143: -208.17 | I143: 104799.55 | J143: =(IF(AND(E142="in",E141<>"in"),G142)-IF(AND(E142="in",E141<>"in"),VLOOKUP("out",E143:G$4934,3,)))*-1^(D142="buy") -> 0 | K143: 2017-02-09T23:40:01 | M143: 23:40:01 | N143: buy | O143: out | P143: 3.00 | Q143: 116320 | R143: -208.17 | S143: 104799.55 | T143: =(IF(AND(O142="in",O141<>"in"),Q142)-IF(AND(O142="in",O141<>"in"),VLOOKUP("out",O143:Q$4934,3,)))*-1^(N142="buy") -> 0
A144: 2017-02-10T10:00:30 | C144: 10:00:30 | D144: buy | E144: in | F144: 1.00 | G144: 116590 | H144: 0 | I144: 104799.55 | J144: =(IF(AND(E143="in",E142<>"in"),G143)-IF(AND(E143="in",E142<>"in"),VLOOKUP("out",E144:G$4934,3,)))*-1^(D143="buy") -> 0 | K144: 2017-02-10T10:00:30 | M144: 10:00:30 | N144: buy | O144: in | P144: 1.00 | Q144: 116590 | R144: 0 | S144: 104799.55 | T144: =(IF(AND(O143="in",O142<>"in"),Q143)-IF(AND(O143="in",O142<>"in"),VLOOKUP("out",O144:Q$4934,3,)))*-1^(N143="buy") -> 0
A145: 2017-02-10T10:00:31 | C145: 10:00:31 | D145: buy | E145: in | F145: 1.00 | G145: 116590 | H145: 0 | I145: 104799.55 | J145: =(IF(AND(E144="in",E143<>"in"),G144)-IF(AND(E144="in",E143<>"in"),VLOOKUP("out",E145:G$4934,3,)))*-1^(D144="buy") -> 360 | K145: 2017-02-10T10:00:31 | M145: 10:00:31 | N145: buy | O145: in | P145: 1.00 | Q145: 116590 | R145: 0 | S145: 104799.55 | T145: =(IF(AND(O144="in",O143<>"in"),Q144)-IF(AND(O144="in",O143<>"in"),VLOOKUP("out",O145:Q$4934,3,)))*-1^(N144="buy") -> 360
A146: 2017-02-10T10:00:32 | C146: 10:00:32 | D146: buy | E146: in | F146: 1.00 | G146: 116590 | H146: 0 | I146: 104799.55 | J146: =(IF(AND(E145="in",E144<>"in"),G145)-IF(AND(E145="in",E144<>"in"),VLOOKUP("out",E146:G$4934,3,)))*-1^(D145="buy") -> 0 | K146: 2017-02-10T10:00:32 | M146: 10:00:32 | N146: buy | O146: in | P146: 1.00 | Q146: 116590 | R146: 0 | S146: 104799.55 | T146: =(IF(AND(O145="in",O144<>"in"),Q145)-IF(AND(O145="in",O144<>"in"),VLOOKUP("out",O146:Q$4934,3,)))*-1^(N145="buy") -> 0
A147: 2017-02-10T23:40:01 | C147: 23:40:01 | D147: sell | E147: out | F147: 3.00 | G147: 116950 | H147: 1249.02 | I147: 106048.57 | J147: =(IF(AND(E146="in",E145<>"in"),G146)-IF(AND(E146="in",E145<>"in"),VLOOKUP("out",E147:G$4934,3,)))*-1^(D146="buy") -> 0 | K147: 2017-02-10T23:40:01 | M147: 23:40:01 | N147: sell | O147: out | P147: 3.00 | Q147: 116950 | R147: 1249.02 | S147: 106048.57 | T147: =(IF(AND(O146="in",O145<>"in"),Q146)-IF(AND(O146="in",O145<>"in"),VLOOKUP("out",O147:Q$4934,3,)))*-1^(N146="buy") -> 0
A148: 2017-02-13T10:00:33 | C148: 10:00:33 | D148: buy | E148: in | F148: 1.00 | G148: 117300 | H148: 0 | I148: 106048.57 | J148: =(IF(AND(E147="in",E146<>"in"),G147)-IF(AND(E147="in",E146<>"in"),VLOOKUP("out",E148:G$4934,3,)))*-1^(D147="buy") -> 0 | K148: 2017-02-13T10:00:33 | M148: 10:00:33 | N148: buy | O148: in | P148: 1.00 | Q148: 117300 | R148: 0 | S148: 106048.57 | T148: =(IF(AND(O147="in",O146<>"in"),Q147)-IF(AND(O147="in",O146<>"in"),VLOOKUP("out",O148:Q$4934,3,)))*-1^(N147="buy") -> 0
A149: 2017-02-13T10:00:34 | C149: 10:00:34 | D149: buy | E149: in | F149: 1.00 | G149: 117290 | H149: 0 | I149: 106048.57 | J149: =(IF(AND(E148="in",E147<>"in"),G148)-IF(AND(E148="in",E147<>"in"),VLOOKUP("out",E149:G$4934,3,)))*-1^(D148="buy") -> 130 | K149: 2017-02-13T10:00:34 | M149: 10:00:34 | N149: buy | O149: in | P149: 1.00 | Q149: 117290 | R149: 0 | S149: 106048.57 | T149: =(IF(AND(O148="in",O147<>"in"),Q148)-IF(AND(O148="in",O147<>"in"),VLOOKUP("out",O149:Q$4934,3,)))*-1^(N148="buy") -> 130
A150: 2017-02-13T10:00:35 | C150: 10:00:35 | D150: buy | E150: in | F150: 1.00 | G150: 117300 | H150: 0 | I150: 106048.57 | J150: =(IF(AND(E149="in",E148<>"in"),G149)-IF(AND(E149="in",E148<>"in"),VLOOKUP("out",E150:G$4934,3,)))*-1^(D149="buy") -> 0 | K150: 2017-02-13T10:00:35 | M150: 10:00:35 | N150: buy | O150: in | P150: 1.00 | Q150: 117300 | R150: 0 | S150: 106048.57 | T150: =(IF(AND(O149="in",O148<>"in"),Q149)-IF(AND(O149="in",O148<>"in"),VLOOKUP("out",O150:Q$4934,3,)))*-1^(N149="buy") -> 0
A151: 2017-02-13T10:00:36 | C151: 10:00:36 | D151: buy | E151: in | F151: 1.00 | G151: 117290 | H151: 0 | I151: 106048.57 | J151: =(IF(AND(E150="in",E149<>"in"),G150)-IF(AND(E150="in",E149<>"in"),VLOOKUP("out",E151:G$4934,3,)))*-1^(D150="buy") -> 0 | K151: 2017-02-13T10:00:36 | M151: 10:00:36 | N151: buy | O151: in | P151: 1.00 | Q151: 117290 | R151: 0 | S151: 106048.57 | T151: =(IF(AND(O150="in",O149<>"in"),Q150)-IF(AND(O150="in",O149<>"in"),VLOOKUP("out",O151:Q$4934,3,)))*-1^(N150="buy") -> 0
A152: 2017-02-13T23:40:01 | C152: 23:40:01 | D152: sell | E152: out | F152: 4.00 | G152: 117430 | H152: 624.52 | I152: 106673.09 | J152: =(IF(AND(E151="in",E150<>"in"),G151)-IF(AND(E151="in",E150<>"in"),VLOOKUP("out",E152:G$4934,3,)))*-1^(D151="buy") -> 0 | K152: 2017-02-13T23:40:01 | M152: 23:40:01 | N152: sell | O152: out | P152: 4.00 | Q152: 117430 | R152: 624.52 | S152: 106673.09 | T152: =(IF(AND(O151="in",O150<>"in"),Q151)-IF(AND(O151="in",O150<>"in"),VLOOKUP("out",O152:Q$4934,3,)))*-1^(N151="buy") -> 0
A153: 2017-02-14T11:35:33 | C153: 11:35:33 | D153: sell | E153: in | F153: 1.00 | G153: 117030 | H153: 0 | I153: 106673.09 | J153: =(IF(AND(E152="in",E151<>"in"),G152)-IF(AND(E152="in",E151<>"in"),VLOOKUP("out",E153:G$4934,3,)))*-1^(D152="buy") -> 0 | K153: 2017-02-14T11:35:33 | M153: 11:35:33 | N153: sell | O153: in | P153: 1.00 | Q153: 117030 | R153: 0 | S153: 106673.09 | T153: =(IF(AND(O152="in",O151<>"in"),Q152)-IF(AND(O152="in",O151<>"in"),VLOOKUP("out",O153:Q$4934,3,)))*-1^(N152="buy") -> 0
A154: 2017-02-14T23:40:01 | C154: 23:40:01 | D154: buy | E154: out | F154: 1.00 | G154: 117570 | H154: -624.5 | I154: 106048.59 | J154: =(IF(AND(E153="in",E152<>"in"),G153)-IF(AND(E153="in",E152<>"in"),VLOOKUP("out",E154:G$4934,3,)))*-1^(D153="buy") -> -540 | K154: 2017-02-14T23:40:01 | M154: 23:40:01 | N154: buy | O154: out | P154: 1.00 | Q154: 117570 | R154: -624.5 | S154: 106048.59 | T154: =(IF(AND(O153="in",O152<>"in"),Q153)-IF(AND(O153="in",O152<>"in"),VLOOKUP("out",O154:Q$4934,3,)))*-1^(N153="buy") -> -540
A155: 2017-02-15T11:00:22 | C155: 11:00:22 | D155: sell | E155: in | F155: 1.00 | G155: 117450 | H155: 0 | I155: 106048.59 | J155: =(IF(AND(E154="in",E153<>"in"),G154)-IF(AND(E154="in",E153<>"in"),VLOOKUP("out",E155:G$4934,3,)))*-1^(D154="buy") -> 0 | K155: 2017-02-15T11:00:22 | M155: 11:00:22 | N155: sell | O155: in | P155: 1.00 | Q155: 117450 | R155: 0 | S155: 106048.59 | T155: =(IF(AND(O154="in",O153<>"in"),Q154)-IF(AND(O154="in",O153<>"in"),VLOOKUP("out",O155:Q$4934,3,)))*-1^(N154="buy") -> 0
A156: 2017-02-15T23:40:01 | C156: 23:40:01 | D156: buy | E156: out | F156: 1.00 | G156: 117550 | H156: -115.64 | I156: 105932.95 | J156: =(IF(AND(E155="in",E154<>"in"),G155)-IF(AND(E155="in",E154<>"in"),VLOOKUP("out",E156:G$4934,3,)))*-1^(D155="buy") -> -100 | K156: 2017-02-15T23:40:01 | M156: 23:40:01 | N156: buy | O156: out | P156: 1.00 | Q156: 117550 | R156: -115.64 | S156: 105932.95 | T156: =(IF(AND(O155="in",O154<>"in"),Q155)-IF(AND(O155="in",O154<>"in"),VLOOKUP("out",O156:Q$4934,3,)))*-1^(N155="buy") -> -100
A157: 2017-02-16T12:02:01 | C157: 12:02:01 | D157: sell | E157: in | F157: 1.00 | G157: 117280 | H157: 0 | I157: 105932.95 | J157: =(IF(AND(E156="in",E155<>"in"),G156)-IF(AND(E156="in",E155<>"in"),VLOOKUP("out",E157:G$4934,3,)))*-1^(D156="buy") -> 0 | K157: 2017-02-16T12:02:01 | M157: 12:02:01 | N157: sell | O157: in | P157: 1.00 | Q157: 117280 | R157: 0 | S157: 105932.95 | T157: =(IF(AND(O156="in",O155<>"in"),Q156)-IF(AND(O156="in",O155<>"in"),VLOOKUP("out",O157:Q$4934,3,)))*-1^(N156="buy") -> 0
A158: 2017-02-16T12:02:02 | C158: 12:02:02 | D158: sell | E158: in | F158: 1.00 | G158: 117280 | H158: 0 | I158: 105932.95 | J158: =(IF(AND(E157="in",E156<>"in"),G157)-IF(AND(E157="in",E156<>"in"),VLOOKUP("out",E158:G$4934,3,)))*-1^(D157="buy") -> 170 | K158: 2017-02-16T12:02:02 | M158: 12:02:02 | N158: sell | O158: in | P158: 1.00 | Q158: 117280 | R158: 0 | S158: 105932.95 | T158: =(IF(AND(O157="in",O156<>"in"),Q157)-IF(AND(O157="in",O156<>"in"),VLOOKUP("out",O158:Q$4934,3,)))*-1^(N157="buy") -> 170
A159: 2017-02-16T23:40:01 | C159: 23:40:01 | D159: buy | E159: out | F159: 2.00 | G159: 117110 | H159: 393.2 | I159: 106326.15 | J159: =(IF(AND(E158="in",E157<>"in"),G158)-IF(AND(E158="in",E157<>"in"),VLOOKUP("out",E159:G$4934,3,)))*-1^(D158="buy") -> 0 | K159: 2017-02-16T23:40:01 | M159: 23:40:01 | N159: buy | O159: out | P159: 2.00 | Q159: 117110 | R159: 393.2 | S159: 106326.15 | T159: =(IF(AND(O158="in",O157<>"in"),Q158)-IF(AND(O158="in",O157<>"in"),VLOOKUP("out",O159:Q$4934,3,)))*-1^(N158="buy") -> 0
A160: 2017-02-17T10:50:33 | C160: 10:50:33 | D160: sell | E160: in | F160: 1.00 | G160: 116930 | H160: 0 | I160: 106326.15 | J160: =(IF(AND(E159="in",E158<>"in"),G159)-IF(AND(E159="in",E158<>"in"),VLOOKUP("out",E160:G$4934,3,)))*-1^(D159="buy") -> 0 | K160: 2017-02-17T10:50:33 | M160: 10:50:33 | N160: sell | O160: in | P160: 1.00 | Q160: 116930 | R160: 0 | S160: 106326.15 | T160: =(IF(AND(O159="in",O158<>"in"),Q159)-IF(AND(O159="in",O158<>"in"),VLOOKUP("out",O160:Q$4934,3,)))*-1^(N159="buy") -> 0
A161: 2017-02-17T23:40:01 | C161: 23:40:01 | D161: buy | E161: out | F161: 1.00 | G161: 115220 | H161: 1977.61 | I161: 108303.76 | J161: =(IF(AND(E160="in",E159<>"in"),G160)-IF(AND(E160="in",E159<>"in"),VLOOKUP("out",E161:G$4934,3,)))*-1^(D160="buy") -> 1710 | K161: 2017-02-17T23:40:01 | M161: 23:40:01 | N161: buy | O161: out | P161: 1.00 | Q161: 115220 | R161: 1977.61 | S161: 108303.76 | T161: =(IF(AND(O160="in",O159<>"in"),Q160)-IF(AND(O160="in",O159<>"in"),VLOOKUP("out",O161:Q$4934,3,)))*-1^(N160="buy") -> 1710
A162: 2017-02-20T10:00:15 | C162: 10:00:15 | D162: buy | E162: in | F162: 1.00 | G162: 115510 | H162: 0 | I162: 108303.76 | J162: =(IF(AND(E161="in",E160<>"in"),G161)-IF(AND(E161="in",E160<>"in"),VLOOKUP("out",E162:G$4934,3,)))*-1^(D161="buy") -> 0 | K162: 2017-02-20T10:00:15 | M162: 10:00:15 | N162: buy | O162: in | P162: 1.00 | Q162: 115510 | R162: 0 | S162: 108303.76 | T162: =(IF(AND(O161="in",O160<>"in"),Q161)-IF(AND(O161="in",O160<>"in"),VLOOKUP("out",O162:Q$4934,3,)))*-1^(N161="buy") -> 0
A163: 2017-02-20T10:00:16 | C163: 10:00:16 | D163: buy | E163: in | F163: 1.00 | G163: 115520 | H163: 0 | I163: 108303.76 | J163: =(IF(AND(E162="in",E161<>"in"),G162)-IF(AND(E162="in",E161<>"in"),VLOOKUP("out",E163:G$4934,3,)))*-1^(D162="buy") -> -500 | K163: 2017-02-20T10:00:16 | M163: 10:00:16 | N163: buy | O163: in | P163: 1.00 | Q163: 115520 | R163: 0 | S163: 108303.76 | T163: =(IF(AND(O162="in",O161<>"in"),Q162)-IF(AND(O162="in",O161<>"in"),VLOOKUP("out",O163:Q$4934,3,)))*-1^(N162="buy") -> -500
A164: 2017-02-20T23:40:01 | C164: 23:40:01 | D164: sell | E164: out | F164: 2.00 | G164: 115010 | H164: -1168.08 | I164: 107135.68 | J164: =(IF(AND(E163="in",E162<>"in"),G163)-IF(AND(E163="in",E162<>"in"),VLOOKUP("out",E164:G$4934,3,)))*-1^(D163="buy") -> 0 | K164: 2017-02-20T23:40:01 | M164: 23:40:01 | N164: sell | O164: out | P164: 2.00 | Q164: 115010 | R164: -1168.08 | S164: 107135.68 | T164: =(IF(AND(O163="in",O162<>"in"),Q163)-IF(AND(O163="in",O162<>"in"),VLOOKUP("out",O164:Q$4934,3,)))*-1^(N163="buy") -> 0
A165: 2017-02-21T10:05:06 | C165: 10:05:06 | D165: buy | E165: in | F165: 1.00 | G165: 115260 | H165: 0 | I165: 107135.68 | J165: =(IF(AND(E164="in",E163<>"in"),G164)-IF(AND(E164="in",E163<>"in"),VLOOKUP("out",E165:G$4934,3,)))*-1^(D164="buy") -> 0 | K165: 2017-02-21T10:05:06 | M165: 10:05:06 | N165: buy | O165: in | P165: 1.00 | Q165: 115260 | R165: 0 | S165: 107135.68 | T165: =(IF(AND(O164="in",O163<>"in"),Q164)-IF(AND(O164="in",O163<>"in"),VLOOKUP("out",O165:Q$4934,3,)))*-1^(N164="buy") -> 0
A166: 2017-02-21T23:40:01 | C166: 23:40:01 | D166: sell | E166: out | F166: 1.00 | G166: 116550 | H166: 1491.88 | I166: 108627.56 | J166: =(IF(AND(E165="in",E164<>"in"),G165)-IF(AND(E165="in",E164<>"in"),VLOOKUP("out",E166:G$4934,3,)))*-1^(D165="buy") -> 1290 | K166: 2017-02-21T23:40:01 | M166: 23:40:01 | N166: sell | O166: out | P166: 1.00 | Q166: 116550 | R166: 1491.88 | S166: 108627.56 | T166: =(IF(AND(O165="in",O164<>"in"),Q165)-IF(AND(O165="in",O164<>"in"),VLOOKUP("out",O166:Q$4934,3,)))*-1^(N165="buy") -> 1290
A167: 2017-02-22T10:57:33 | C167: 10:57:33 | D167: sell | E167: in | F167: 1.00 | G167: 116440 | H167: 0 | I167: 108627.56 | J167: =(IF(AND(E166="in",E165<>"in"),G166)-IF(AND(E166="in",E165<>"in"),VLOOKUP("out",E167:G$4934,3,)))*-1^(D166="buy") -> 0 | K167: 2017-02-22T10:57:33 | M167: 10:57:33 | N167: sell | O167: in | P167: 1.00 | Q167: 116440 | R167: 0 | S167: 108627.56 | T167: =(IF(AND(O166="in",O165<>"in"),Q166)-IF(AND(O166="in",O165<>"in"),VLOOKUP("out",O167:Q$4934,3,)))*-1^(N166="buy") -> 0
A168: 2017-02-22T23:40:01 | C168: 23:40:01 | D168: buy | E168: out | F168: 1.00 | G168: 114120 | H168: -2683.07 | I168: 105944.49 | J168: =(IF(AND(E167="in",E166<>"in"),G167)-IF(AND(E167="in",E166<>"in"),VLOOKUP("out",E168:G$4934,3,)))*-1^(D167="buy") -> 2320 | K168: 2017-02-22T23:40:01 | M168: 23:40:01 | N168: buy | O168: out | P168: 1.00 | Q168: 114120 | R168: -2683.07 | S168: 105944.49 | T168: =(IF(AND(O167="in",O166<>"in"),Q167)-IF(AND(O167="in",O166<>"in"),VLOOKUP("out",O168:Q$4934,3,)))*-1^(N167="buy") -> 2320
A169: 2017-02-24T10:07:44 | C169: 10:07:44 | D169: sell | E169: in | F169: 1.00 | G169: 113830 | H169: 0 | I169: 105944.49 | J169: =(IF(AND(E168="in",E167<>"in"),G168)-IF(AND(E168="in",E167<>"in"),VLOOKUP("out",E169:G$4934,3,)))*-1^(D168="buy") -> 0 | K169: 2017-02-24T10:07:44 | M169: 10:07:44 | N169: sell | O169: in | P169: 1.00 | Q169: 113830 | R169: 0 | S169: 105944.49 | T169: =(IF(AND(O168="in",O167<>"in"),Q168)-IF(AND(O168="in",O167<>"in"),VLOOKUP("out",O169:Q$4934,3,)))*-1^(N168="buy") -> 0
A170: 2017-02-27T23:40:01 | C170: 23:40:01 | D170: sell | E170: out | F170: 1.00 | G170: 111780 | H170: 2370.82 | I170: 108315.31 | J170: =(IF(AND(E169="in",E168<>"in"),G169)-IF(AND(E169="in",E168<>"in"),VLOOKUP("out",E170:G$4934,3,)))*-1^(D169="buy") -> 2050 | K170: 2017-02-27T23:40:01 | M170: 23:40:01 | N170: buy | O170: out | P170: 1.00 | Q170: 111780 | R170: 2370.82 | S170: 108315.31 | T170: =(IF(AND(O169="in",O168<>"in"),Q169)-IF(AND(O169="in",O168<>"in"),VLOOKUP("out",O170:Q$4934,3,)))*-1^(N169="buy") -> 2050
A171: 2017-02-28T10:31:33 | C171: 10:31:33 | D171: sell | E171: in | F171: 1.00 | G171: 111010 | H171: 0 | I171: 108315.31 | J171: =(IF(AND(E170="in",E169<>"in"),G170)-IF(AND(E170="in",E169<>"in"),VLOOKUP("out",E171:G$4934,3,)))*-1^(D170="buy") -> 0 | K171: 2017-02-28T10:31:33 | M171: 10:31:33 | N171: sell | O171: in | P171: 1.00 | Q171: 111010 | R171: 0 | S171: 108315.31 | T171: =(IF(AND(O170="in",O169<>"in"),Q170)-IF(AND(O170="in",O169<>"in"),VLOOKUP("out",O171:Q$4934,3,)))*-1^(N170="buy") -> 0
A172: 2017-02-28T10:31:34 | C172: 10:31:34 | D172: sell | E172: in | F172: 1.00 | G172: 111020 | H172: 0 | I172: 108315.31 | J172: =(IF(AND(E171="in",E170<>"in"),G171)-IF(AND(E171="in",E170<>"in"),VLOOKUP("out",E172:G$4934,3,)))*-1^(D171="buy") -> 1500 | K172: 2017-02-28T10:31:34 | M172: 10:31:34 | N172: sell | O172: in | P172: 1.00 | Q172: 111020 | R172: 0 | S172: 108315.31 | T172: =(IF(AND(O171="in",O170<>"in"),Q171)-IF(AND(O171="in",O170<>"in"),VLOOKUP("out",O172:Q$4934,3,)))*-1^(N171="buy") -> 1500
A173: 2017-02-28T23:40:01 | C173: 23:40:01 | D173: buy | E173: out | F173: 2.00 | G173: 109510 | H173: 3481.04 | I173: 111796.35 | J173: =(IF(AND(E172="in",E171<>"in"),G172)-IF(AND(E172="in",E171<>"in"),VLOOKUP("out",E173:G$4934,3,)))*-1^(D172="buy") -> 0 | K173: 2017-02-28T23:40:01 | M173: 23:40:01 | N173: buy | O173: out | P173: 2.00 | Q173: 109510 | R173: 3481.04 | S173: 111796.35 | T173: =(IF(AND(O172="in",O171<>"in"),Q172)-IF(AND(O172="in",O171<>"in"),VLOOKUP("out",O173:Q$4934,3,)))*-1^(N172="buy") -> 0
A174: 2017-03-01T10:03:33 | C174: 10:03:33 | D174: buy | E174: in | F174: 1.00 | G174: 109820 | H174: 0 | I174: 111796.35 | J174: =(IF(AND(E173="in",E172<>"in"),G173)-IF(AND(E173="in",E172<>"in"),VLOOKUP("out",E174:G$4934,3,)))*-1^(D173="buy") -> 0 | K174: 2017-03-01T10:03:33 | M174: 10:03:33 | N174: buy | O174: in | P174: 1.00 | Q174: 109820 | R174: 0 | S174: 111796.35 | T174: =(IF(AND(O173="in",O172<>"in"),Q173)-IF(AND(O173="in",O172<>"in"),VLOOKUP("out",O174:Q$4934,3,)))*-1^(N173="buy") -> 0
A175: 2017-03-01T23:40:01 | C175: 23:40:01 | D175: sell | E175: out | F175: 1.00 | G175: 111090 | H175: 1468.75 | I175: 113265.1 | J175: =(IF(AND(E174="in",E173<>"in"),G174)-IF(AND(E174="in",E173<>"in"),VLOOKUP("out",E175:G$4934,3,)))*-1^(D174="buy") -> 1270 | K175: 2017-03-01T23:40:01 | M175: 23:40:01 | N175: sell | O175: out | P175: 1.00 | Q175: 111090 | R175: 1468.75 | S175: 113265.1 | T175: =(IF(AND(O174="in",O173<>"in"),Q174)-IF(AND(O174="in",O173<>"in"),VLOOKUP("out",O175:Q$4934,3,)))*-1^(N174="buy") -> 1270
A176: 2017-03-02T10:06:22 | C176: 10:06:22 | D176: buy | E176: in | F176: 1.00 | G176: 111400 | H176: 0 | I176: 113265.1 | J176: =(IF(AND(E175="in",E174<>"in"),G175)-IF(AND(E175="in",E174<>"in"),VLOOKUP("out",E176:G$4934,3,)))*-1^(D175="buy") -> 0 | K176: 2017-03-02T10:06:22 | M176: 10:06:22 | N176: buy | O176: in | P176: 1.00 | Q176: 111400 | R176: 0 | S176: 113265.1 | T176: =(IF(AND(O175="in",O174<>"in"),Q175)-IF(AND(O175="in",O174<>"in"),VLOOKUP("out",O176:Q$4934,3,)))*-1^(N175="buy") -> 0
A177: 2017-03-02T10:06:23 | C177: 10:06:23 | D177: buy | E177: in | F177: 1.00 | G177: 111410 | H177: 0 | I177: 113265.1 | J177: =(IF(AND(E176="in",E175<>"in"),G176)-IF(AND(E176="in",E175<>"in"),VLOOKUP("out",E177:G$4934,3,)))*-1^(D176="buy") -> -2000 | K177: 2017-03-02T10:06:23 | M177: 10:06:23 | N177: buy | O177: in | P177: 1.00 | Q177: 111410 | R177: 0 | S177: 113265.1 | T177: =(IF(AND(O176="in",O175<>"in"),Q176)-IF(AND(O176="in",O175<>"in"),VLOOKUP("out",O177:Q$4934,3,)))*-1^(N176="buy") -> -2000
A178: 2017-03-02T23:40:01 | C178: 23:40:01 | D178: sell | E178: out | F178: 2.00 | G178: 109400 | H178: -4637.56 | I178: 108627.54 | J178: =(IF(AND(E177="in",E176<>"in"),G177)-IF(AND(E177="in",E176<>"in"),VLOOKUP("out",E178:G$4934,3,)))*-1^(D177="buy") -> 0 | K178: 2017-03-02T23:40:01 | M178: 23:40:01 | N178: sell | O178: out | P178: 2.00 | Q178: 109400 | R178: -4637.56 | S178: 108627.54 | T178: =(IF(AND(O177="in",O176<>"in"),Q177)-IF(AND(O177="in",O176<>"in"),VLOOKUP("out",O178:Q$4934,3,)))*-1^(N177="buy") -> 0
A179: 2017-03-03T10:00:36 | C179: 10:00:36 | D179: sell | E179: in | F179: 1.00 | G179: 109250 | H179: 0 | I179: 108627.54 | J179: =(IF(AND(E178="in",E177<>"in"),G178)-IF(AND(E178="in",E177<>"in"),VLOOKUP("out",E179:G$4934,3,)))*-1^(D178="buy") -> 0 | K179: 2017-03-03T10:00:36 | M179: 10:00:36 | N179: sell | O179: in | P179: 1.00 | Q179: 109250 | R179: 0 | S179: 108627.54 | T179: =(IF(AND(O178="in",O177<>"in"),Q178)-IF(AND(O178="in",O177<>"in"),VLOOKUP("out",O179:Q$4934,3,)))*-1^(N178="buy") -> 0
A180: 2017-03-03T18:40:44 | C180: 18:40:44 | D180: buy | E180: out | F180: 1.00 | G180: 110650 | H180: -1619.09 | I180: 107008.45 | J180: =(IF(AND(E179="in",E178<>"in"),G179)-IF(AND(E179="in",E178<>"in"),VLOOKUP("out",E180:G$4934,3,)))*-1^(D179="buy") -> -1400 | K180: 2017-03-03T18:40:44 | M180: 18:40:44 | N180: buy | O180: out | P180: 1.00 | Q180: 110650 | R180: -1619.09 | S180: 107008.45 | T180: =(IF(AND(O179="in",O178<>"in"),Q179)-IF(AND(O179="in",O178<>"in"),VLOOKUP("out",O180:Q$4934,3,)))*-1^(N179="buy") -> -1400
A181: 2017-03-03T18:40:45 | C181: 18:40:45 | D181: buy | E181: in | F181: 1.00 | G181: 110640 | H181: 0 | I181: 107008.45 | J181: =(IF(AND(E180="in",E179<>"in"),G180)-IF(AND(E180="in",E179<>"in"),VLOOKUP("out",E181:G$4934,3,)))*-1^(D180="buy") -> 0 | K181: 2017-03-03T18:40:45 | M181: 18:40:45 | N181: buy | O181: in | P181: 1.00 | Q181: 110640 | R181: 0 | S181: 107008.45 | T181: =(IF(AND(O180="in",O179<>"in"),Q180)-IF(AND(O180="in",O179<>"in"),VLOOKUP("out",O181:Q$4934,3,)))*-1^(N180="buy") -> 0
A182: 2017-03-03T18:40:46 | C182: 18:40:46 | D182: buy | E182: in | F182: 1.00 | G182: 110640 | H182: 0 | I182: 107008.45 | J182: =(IF(AND(E181="in",E180<>"in"),G181)-IF(AND(E181="in",E180<>"in"),VLOOKUP("out",E182:G$4934,3,)))*-1^(D181="buy") -> 720 | K182: 2017-03-03T18:40:46 | M182: 18:40:46 | N182: buy | O182: in | P182: 1.00 | Q182: 110640 | R182: 0 | S182: 107008.45 | T182: =(IF(AND(O181="in",O180<>"in"),Q181)-IF(AND(O181="in",O180<>"in"),VLOOKUP("out",O182:Q$4934,3,)))*-1^(N181="buy") -> 720
A183: 2017-03-03T18:40:47 | C183: 18:40:47 | D183: buy | E183: in | F183: 1.00 | G183: 110640 | H183: 0 | I183: 107008.45 | J183: =(IF(AND(E182="in",E181<>"in"),G182)-IF(AND(E182="in",E181<>"in"),VLOOKUP("out",E183:G$4934,3,)))*-1^(D182="buy") -> 0 | K183: 2017-03-03T18:40:47 | M183: 18:40:47 | N183: buy | O183: in | P183: 1.00 | Q183: 110640 | R183: 0 | S183: 107008.45 | T183: =(IF(AND(O182="in",O181<>"in"),Q182)-IF(AND(O182="in",O181<>"in"),VLOOKUP("out",O183:Q$4934,3,)))*-1^(N182="buy") -> 0
A184: 2017-03-03T18:40:48 | C184: 18:40:48 | D184: buy | E184: in | F184: 1.00 | G184: 110630 | H184: 0 | I184: 107008.45 | J184: =(IF(AND(E183="in",E182<>"in"),G183)-IF(AND(E183="in",E182<>"in"),VLOOKUP("out",E184:G$4934,3,)))*-1^(D183="buy") -> 0 | K184: 2017-03-03T18:40:48 | M184: 18:40:48 | N184: buy | O184: in | P184: 1.00 | Q184: 110630 | R184: 0 | S184: 107008.45 | T184: =(IF(AND(O183="in",O182<>"in"),Q183)-IF(AND(O183="in",O182<>"in"),VLOOKUP("out",O184:Q$4934,3,)))*-1^(N183="buy") -> 0
A185: 2017-03-03T18:40:49 | C185: 18:40:49 | D185: buy | E185: in | F185: 1.00 | G185: 110590 | H185: 0 | I185: 107008.45 | J185: =(IF(AND(E184="in",E183<>"in"),G184)-IF(AND(E184="in",E183<>"in"),VLOOKUP("out",E185:G$4934,3,)))*-1^(D184="buy") -> 0 | K185: 2017-03-03T18:40:49 | M185: 18:40:49 | N185: buy | O185: in | P185: 1.00 | Q185: 110590 | R185: 0 | S185: 107008.45 | T185: =(IF(AND(O184="in",O183<>"in"),Q184)-IF(AND(O184="in",O183<>"in"),VLOOKUP("out",O185:Q$4934,3,)))*-1^(N184="buy") -> 0
A186: 2017-03-03T23:40:01 | C186: 23:40:01 | D186: sell | E186: out | F186: 5.00 | G186: 111360 | H186: 4232.75 | I186: 111241.2 | J186: =(IF(AND(E185="in",E184<>"in"),G185)-IF(AND(E185="in",E184<>"in"),VLOOKUP("out",E186:G$4934,3,)))*-1^(D185="buy") -> 0 | K186: 2017-03-03T23:40:01 | M186: 23:40:01 | N186: sell | O186: out | P186: 5.00 | Q186: 111360 | R186: 4232.75 | S186: 111241.2 | T186: =(IF(AND(O185="in",O184<>"in"),Q185)-IF(AND(O185="in",O184<>"in"),VLOOKUP("out",O186:Q$4934,3,)))*-1^(N185="buy") -> 0
A187: 2017-03-06T10:00:06 | C187: 10:00:06 | D187: sell | E187: in | F187: 1.00 | G187: 110980 | H187: 0 | I187: 111241.2 | J187: =(IF(AND(E186="in",E185<>"in"),G186)-IF(AND(E186="in",E185<>"in"),VLOOKUP("out",E187:G$4934,3,)))*-1^(D186="buy") -> 0 | K187: 2017-03-06T10:00:06 | M187: 10:00:06 | N187: sell | O187: in | P187: 1.00 | Q187: 110980 | R187: 0 | S187: 111241.2 | T187: =(IF(AND(O186="in",O185<>"in"),Q186)-IF(AND(O186="in",O185<>"in"),VLOOKUP("out",O187:Q$4934,3,)))*-1^(N186="buy") -> 0
A188: 2017-03-06T12:47:44 | C188: 12:47:44 | D188: buy | E188: out | F188: 1.00 | G188: 112110 | H188: -1306.84 | I188: 109934.36 | J188: =(IF(AND(E187="in",E186<>"in"),G187)-IF(AND(E187="in",E186<>"in"),VLOOKUP("out",E188:G$4934,3,)))*-1^(D187="buy") -> -1130 | K188: 2017-03-06T12:47:44 | M188: 12:47:44 | N188: buy | O188: out | P188: 1.00 | Q188: 112110 | R188: -1306.84 | S188: 109934.36 | T188: =(IF(AND(O187="in",O186<>"in"),Q187)-IF(AND(O187="in",O186<>"in"),VLOOKUP("out",O188:Q$4934,3,)))*-1^(N187="buy") -> -1130
A189: 2017-03-06T12:47:45 | C189: 12:47:45 | D189: sell | E189: in | F189: 1.00 | G189: 112090 | H189: 0 | I189: 109934.36 | J189: =(IF(AND(E188="in",E187<>"in"),G188)-IF(AND(E188="in",E187<>"in"),VLOOKUP("out",E189:G$4934,3,)))*-1^(D188="buy") -> 0 | K189: 2017-03-06T12:47:45 | M189: 12:47:45 | N189: buy | O189: in | P189: 1.00 | Q189: 112090 | R189: 0 | S189: 109934.36 | T189: =(IF(AND(O188="in",O187<>"in"),Q188)-IF(AND(O188="in",O187<>"in"),VLOOKUP("out",O189:Q$4934,3,)))*-1^(N188="buy") -> 0
A190: 2017-03-06T23:40:01 | C190: 23:40:01 | D190: buy | E190: out | F190: 1.00 | G190: 110590 | H190: -1734.75 | I190: 108199.61 | J190: =(IF(AND(E189="in",E188<>"in"),G189)-IF(AND(E189="in",E188<>"in"),VLOOKUP("out",E190:G$4934,3,)))*-1^(D189="buy") -> 1500 | K190: 2017-03-06T23:40:01 | M190: 23:40:01 | N190: sell | O190: out | P190: 1.00 | Q190: 110590 | R190: -1734.75 | S190: 108199.61 | T190: =(IF(AND(O189="in",O188<>"in"),Q189)-IF(AND(O189="in",O188<>"in"),VLOOKUP("out",O190:Q$4934,3,)))*-1^(N189="buy") -> -1500
A191: 2017-03-07T11:18:43 | C191: 11:18:43 | D191: buy | E191: in | F191: 1.00 | G191: 110840 | H191: 0 | I191: 108199.61 | J191: =(IF(AND(E190="in",E189<>"in"),G190)-IF(AND(E190="in",E189<>"in"),VLOOKUP("out",E191:G$4934,3,)))*-1^(D190="buy") -> 0 | K191: 2017-03-07T11:18:43 | M191: 11:18:43 | N191: buy | O191: in | P191: 1.00 | Q191: 110840 | R191: 0 | S191: 108199.61 | T191: =(IF(AND(O190="in",O189<>"in"),Q190)-IF(AND(O190="in",O189<>"in"),VLOOKUP("out",O191:Q$4934,3,)))*-1^(N190="buy") -> 0
A192: 2017-03-07T11:18:44 | C192: 11:18:44 | D192: buy | E192: in | F192: 1.00 | G192: 110850 | H192: 0 | I192: 108199.61 | J192: =(IF(AND(E191="in",E190<>"in"),G191)-IF(AND(E191="in",E190<>"in"),VLOOKUP("out",E192:G$4934,3,)))*-1^(D191="buy") -> -1470 | K192: 2017-03-07T11:18:44 | M192: 11:18:44 | N192: buy | O192: in | P192: 1.00 | Q192: 110850 | R192: 0 | S192: 108199.61 | T192: =(IF(AND(O191="in",O190<>"in"),Q191)-IF(AND(O191="in",O190<>"in"),VLOOKUP("out",O192:Q$4934,3,)))*-1^(N191="buy") -> -1470
A193: 2017-03-07T23:40:01 | C193: 23:40:01 | D193: sell | E193: out | F193: 2.00 | G193: 109370 | H193: -3411.66 | I193: 104787.95 | J193: =(IF(AND(E192="in",E191<>"in"),G192)-IF(AND(E192="in",E191<>"in"),VLOOKUP("out",E193:G$4934,3,)))*-1^(D192="buy") -> 0 | K193: 2017-03-07T23:40:01 | M193: 23:40:01 | N193: sell | O193: out | P193: 2.00 | Q193: 109370 | R193: -3411.66 | S193: 104787.95 | T193: =(IF(AND(O192="in",O191<>"in"),Q192)-IF(AND(O192="in",O191<>"in"),VLOOKUP("out",O193:Q$4934,3,)))*-1^(N192="buy") -> 0
A194: 2017-03-09T10:37:42 | C194: 10:37:42 | D194: sell | E194: in | F194: 1.00 | G194: 107580 | H194: 0 | I194: 104787.95 | J194: =(IF(AND(E193="in",E192<>"in"),G193)-IF(AND(E193="in",E192<>"in"),VLOOKUP("out",E194:G$4934,3,)))*-1^(D193="buy") -> 0 | K194: 2017-03-09T10:37:42 | M194: 10:37:42 | N194: sell | O194: in | P194: 1.00 | Q194: 107580 | R194: 0 | S194: 104787.95 | T194: =(IF(AND(O193="in",O192<>"in"),Q193)-IF(AND(O193="in",O192<>"in"),VLOOKUP("out",O194:Q$4934,3,)))*-1^(N193="buy") -> 0
A195: 2017-03-09T16:02:44 | C195: 16:02:44 | D195: buy | E195: out | F195: 1.00 | G195: 104750 | H195: -3272.88 | I195: 101515.07 | J195: =(IF(AND(E194="in",E193<>"in"),G194)-IF(AND(E194="in",E193<>"in"),VLOOKUP("out",E195:G$4934,3,)))*-1^(D194="buy") -> 2830 | K195: 2017-03-09T16:02:44 | M195: 16:02:44 | N195: buy | O195: out | P195: 1.00 | Q195: 104750 | R195: -3272.88 | S195: 101515.07 | T195: =(IF(AND(O194="in",O193<>"in"),Q194)-IF(AND(O194="in",O193<>"in"),VLOOKUP("out",O195:Q$4934,3,)))*-1^(N194="buy") -> 2830
A196: 2017-03-09T16:02:45 | C196: 16:02:45 | D196: sell | E196: in | F196: 1.00 | G196: 104760 | H196: 0 | I196: 101515.07 | J196: =(IF(AND(E195="in",E194<>"in"),G195)-IF(AND(E195="in",E194<>"in"),VLOOKUP("out",E196:G$4934,3,)))*-1^(D195="buy") -> 0 | K196: 2017-03-09T16:02:45 | M196: 16:02:45 | N196: sell | O196: in | P196: 1.00 | Q196: 104760 | R196: 0 | S196: 101515.07 | T196: =(IF(AND(O195="in",O194<>"in"),Q195)-IF(AND(O195="in",O194<>"in"),VLOOKUP("out",O196:Q$4934,3,)))*-1^(N195="buy") -> 0
A197: 2017-03-09T23:40:01 | C197: =MOD(A197,1) -> 23:40:01 | D197: buy | E197: out | F197: 1.00 | G197: 105050 | H197: -335.38 | I197: 101179.69 | J197: =(IF(AND(E196="in",E195<>"in"),G196)-IF(AND(E196="in",E195<>"in"),VLOOKUP("out",E197:G$4934,3,)))*-1^(D196="buy") -> -290 | K197: 2017-03-09T23:40:01 | M197: =MOD(K197,1) -> 23:40:01 | N197: buy | O197: out | P197: 1.00 | Q197: 105050 | R197: -335.38 | S197: 101179.69 | T197: =(IF(AND(O196="in",O195<>"in"),Q196)-IF(AND(O196="in",O195<>"in"),VLOOKUP("out",O197:Q$4934,3,)))*-1^(N196="buy") -> -290
A198: 2017-03-10T10:00:16 | C198: 10:00:16 | D198: buy | E198: in | F198: 1.00 | G198: 105340 | H198: 0 | I198: 101179.69 | J198: =(IF(AND(E197="in",E196<>"in"),G197)-IF(AND(E197="in",E196<>"in"),VLOOKUP("out",E198:G$4934,3,)))*-1^(D197="buy") -> 0 | K198: 2017-03-10T10:00:16 | M198: 10:00:16 | N198: buy | O198: in | P198: 1.00 | Q198: 105340 | R198: 0 | S198: 101179.69 | T198: =(IF(AND(O197="in",O196<>"in"),Q197)-IF(AND(O197="in",O196<>"in"),VLOOKUP("out",O198:Q$4934,3,)))*-1^(N197="buy") -> 0
A199: 2017-03-10T23:40:01 | C199: 23:40:01 | D199: sell | E199: out | F199: 1.00 | G199: 105450 | H199: 127.21 | I199: 101306.9 | J199: =(IF(AND(E198="in",E197<>"in"),G198)-IF(AND(E198="in",E197<>"in"),VLOOKUP("out",E199:G$4934,3,)))*-1^(D198="buy") -> 110 | K199: 2017-03-10T23:40:01 | M199: 23:40:01 | N199: sell | O199: out | P199: 1.00 | Q199: 105450 | R199: 127.21 | S199: 101306.9 | T199: =(IF(AND(O198="in",O197<>"in"),Q198)-IF(AND(O198="in",O197<>"in"),VLOOKUP("out",O199:Q$4934,3,)))*-1^(N198="buy") -> 110
A200: 2017-03-13T10:00:44 | C200: 10:00:44 | D200: sell | E200: in | F200: 1.00 | G200: 105150 | H200: 0 | I200: 101306.9 | J200: =(IF(AND(E199="in",E198<>"in"),G199)-IF(AND(E199="in",E198<>"in"),VLOOKUP("out",E200:G$4934,3,)))*-1^(D199="buy") -> 0 | K200: 2017-03-13T10:00:44 | M200: 10:00:44 | N200: sell | O200: in | P200: 1.00 | Q200: 105150 | R200: 0 | S200: 101306.9 | T200: =(IF(AND(O199="in",O198<>"in"),Q199)-IF(AND(O199="in",O198<>"in"),VLOOKUP("out",O200:Q$4934,3,)))*-1^(N199="buy") -> 0
... 12 more rows

Sheet Лист2
C1: 1
C2: Сделки
C3: Время | D3: Тип | E3: Направление | F3: Объем | G3: Цена | H3: Прибыль | I3: Баланс | J3: =SUM(J5:J1141) -> -4760
A4: 2016-12-19 | C4: =MOD(A4,1) -> 00:00:00 | D4: balance | H4: 100000 | I4: 100000 | J4: =SUM(J1153:J2333) -> 0
A5: 2016-12-19T10:31:18 | C5: =MOD(A5,1) -> 10:31:18 | D5: buy | E5: in | F5: 1.00 | G5: 113200 | H5: 0 | I5: 100000 | J5: =(IF(AND(E4="in",E3<>"in"),G4)-IF(AND(E4="in",E3<>"in"),VLOOKUP("out",E5:G$4934,3,)))*-1^(D4="buy") -> 0
A6: 2016-12-19T23:40:01 | C6: 23:40:01 | D6: sell | E6: out | F6: 1.00 | G6: 111880 | H6: -1526.58 | I6: 98473.42 | J6: =(IF(AND(E5="in",E4<>"in"),G5)-IF(AND(E5="in",E4<>"in"),VLOOKUP("out",E6:G$4934,3,)))*-1^(D5="buy") -> -1320
A7: 2016-12-20T11:40:06 | C7: 11:40:06 | D7: buy | E7: in | F7: 1.00 | G7: 112570 | H7: 0 | I7: 98473.42 | J7: =(IF(AND(E6="in",E5<>"in"),G6)-IF(AND(E6="in",E5<>"in"),VLOOKUP("out",E7:G$4934,3,)))*-1^(D6="buy") -> 0
A8: 2016-12-20T23:40:01 | C8: 23:40:01 | D8: sell | E8: out | F8: 1.00 | G8: 113490 | H8: 1063.98 | I8: 99537.4 | J8: =(IF(AND(E7="in",E6<>"in"),G7)-IF(AND(E7="in",E6<>"in"),VLOOKUP("out",E8:G$4934,3,)))*-1^(D7="buy") -> 920
A9: 2016-12-21T10:17:44 | C9: 10:17:44 | D9: buy | E9: in | F9: 1.00 | G9: 114670 | H9: 0 | I9: 99537.4 | J9: =(IF(AND(E8="in",E7<>"in"),G8)-IF(AND(E8="in",E7<>"in"),VLOOKUP("out",E9:G$4934,3,)))*-1^(D8="buy") -> 0
A10: 2016-12-21T20:26:42 | C10: 20:26:42 | D10: sell | E10: out | F10: 1.00 | G10: 112690 | H10: -2289.87 | I10: 97247.53 | J10: =(IF(AND(E9="in",E8<>"in"),G9)-IF(AND(E9="in",E8<>"in"),VLOOKUP("out",E10:G$4934,3,)))*-1^(D9="buy") -> -1980
A11: 2016-12-21T20:26:43 | C11: 20:26:43 | D11: sell | E11: in | F11: 1.00 | G11: 112690 | H11: 0 | I11: 97247.53 | J11: =(IF(AND(E10="in",E9<>"in"),G10)-IF(AND(E10="in",E9<>"in"),VLOOKUP("out",E11:G$4934,3,)))*-1^(D10="buy") -> 0
A12: 2016-12-21T20:26:44 | C12: 20:26:44 | D12: sell | E12: in | F12: 1.00 | G12: 112690 | H12: 0 | I12: 97247.53 | J12: =(IF(AND(E11="in",E10<>"in"),G11)-IF(AND(E11="in",E10<>"in"),VLOOKUP("out",E12:G$4934,3,)))*-1^(D11="buy") -> -180
A13: 2016-12-21T20:26:45 | C13: 20:26:45 | D13: sell | E13: in | F13: 1.00 | G13: 112700 | H13: 0 | I13: 97247.53 | J13: =(IF(AND(E12="in",E11<>"in"),G12)-IF(AND(E12="in",E11<>"in"),VLOOKUP("out",E13:G$4934,3,)))*-1^(D12="buy") -> 0
A14: 2016-12-21T20:26:46 | C14: 20:26:46 | D14: sell | E14: in | F14: 1.00 | G14: 112700 | H14: 0 | I14: 97247.53 | J14: =(IF(AND(E13="in",E12<>"in"),G13)-IF(AND(E13="in",E12<>"in"),VLOOKUP("out",E14:G$4934,3,)))*-1^(D13="buy") -> 0
A15: 2016-12-21T20:26:47 | C15: 20:26:47 | D15: sell | E15: in | F15: 1.00 | G15: 112710 | H15: 0 | I15: 97247.53 | J15: =(IF(AND(E14="in",E13<>"in"),G14)-IF(AND(E14="in",E13<>"in"),VLOOKUP("out",E15:G$4934,3,)))*-1^(D14="buy") -> 0
A16: 2016-12-21T23:40:01 | C16: 23:40:01 | D16: buy | E16: out | F16: 5.00 | G16: 112870 | H16: -994.55 | I16: 96252.98 | J16: =(IF(AND(E15="in",E14<>"in"),G15)-IF(AND(E15="in",E14<>"in"),VLOOKUP("out",E16:G$4934,3,)))*-1^(D15="buy") -> 0
A17: 2016-12-22T11:09:44 | C17: 11:09:44 | D17: sell | E17: in | F17: 1.00 | G17: 112990 | H17: 0 | I17: 96252.98 | J17: =(IF(AND(E16="in",E15<>"in"),G16)-IF(AND(E16="in",E15<>"in"),VLOOKUP("out",E17:G$4934,3,)))*-1^(D16="buy") -> 0
A18: 2016-12-22T23:40:01 | C18: 23:40:01 | D18: buy | E18: out | F18: 1.00 | G18: 112190 | H18: 925.19 | I18: 97178.17 | J18: =(IF(AND(E17="in",E16<>"in"),G17)-IF(AND(E17="in",E16<>"in"),VLOOKUP("out",E18:G$4934,3,)))*-1^(D17="buy") -> 800
A19: 2016-12-23T12:50:44 | C19: 12:50:44 | D19: sell | E19: in | F19: 1.00 | G19: 112220 | H19: 0 | I19: 97178.17 | J19: =(IF(AND(E18="in",E17<>"in"),G18)-IF(AND(E18="in",E17<>"in"),VLOOKUP("out",E19:G$4934,3,)))*-1^(D18="buy") -> 0
A20: 2016-12-23T12:50:45 | C20: 12:50:45 | D20: sell | E20: in | F20: 1.00 | G20: 112220 | H20: 0 | I20: 97178.17 | J20: =(IF(AND(E19="in",E18<>"in"),G19)-IF(AND(E19="in",E18<>"in"),VLOOKUP("out",E20:G$4934,3,)))*-1^(D19="buy") -> 40
A21: 2016-12-23T19:00:44 | C21: 19:00:44 | D21: buy | E21: out | F21: 1.00 | G21: 112180 | H21: 46.26 | I21: 97224.43 | J21: =(IF(AND(E20="in",E19<>"in"),G20)-IF(AND(E20="in",E19<>"in"),VLOOKUP("out",E21:G$4934,3,)))*-1^(D20="buy") -> 0
A22: 2016-12-23T23:40:01 | C22: 23:40:01 | D22: buy | E22: out | F22: 1.00 | G22: 111830 | H22: 451.03 | I22: 97675.46 | J22: =(IF(AND(E21="in",E20<>"in"),G21)-IF(AND(E21="in",E20<>"in"),VLOOKUP("out",E22:G$4934,3,)))*-1^(D21="buy") -> 0
A23: 2016-12-26T18:17:22 | C23: 18:17:22 | D23: sell | E23: in | F23: 1.00 | G23: 112330 | H23: 0 | I23: 97675.46 | J23: =(IF(AND(E22="in",E21<>"in"),G22)-IF(AND(E22="in",E21<>"in"),VLOOKUP("out",E23:G$4934,3,)))*-1^(D22="buy") -> 0
A24: 2016-12-26T23:40:01 | C24: 23:40:01 | D24: buy | E24: out | F24: 1.00 | G24: 112530 | H24: -231.29 | I24: 97444.17 | J24: =(IF(AND(E23="in",E22<>"in"),G23)-IF(AND(E23="in",E22<>"in"),VLOOKUP("out",E24:G$4934,3,)))*-1^(D23="buy") -> -200
A25: 2016-12-27T10:00:44 | C25: 10:00:44 | D25: buy | E25: in | F25: 1.00 | G25: 112820 | H25: 0 | I25: 97444.17 | J25: =(IF(AND(E24="in",E23<>"in"),G24)-IF(AND(E24="in",E23<>"in"),VLOOKUP("out",E25:G$4934,3,)))*-1^(D24="buy") -> 0
A26: 2016-12-27T10:00:45 | C26: 10:00:45 | D26: buy | E26: in | F26: 1.00 | G26: 112820 | H26: 0 | I26: 97444.17 | J26: =(IF(AND(E25="in",E24<>"in"),G25)-IF(AND(E25="in",E24<>"in"),VLOOKUP("out",E26:G$4934,3,)))*-1^(D25="buy") -> 1260
A27: 2016-12-27T23:40:01 | C27: 23:40:01 | D27: sell | E27: out | F27: 2.00 | G27: 114080 | H27: 2914.36 | I27: 100358.53 | J27: =(IF(AND(E26="in",E25<>"in"),G26)-IF(AND(E26="in",E25<>"in"),VLOOKUP("out",E27:G$4934,3,)))*-1^(D26="buy") -> 0
A28: 2016-12-28T11:12:01 | C28: 11:12:01 | D28: buy | E28: in | F28: 1.00 | G28: 114030 | H28: 0 | I28: 100358.53 | J28: =(IF(AND(E27="in",E26<>"in"),G27)-IF(AND(E27="in",E26<>"in"),VLOOKUP("out",E28:G$4934,3,)))*-1^(D27="buy") -> 0
A29: 2016-12-28T23:40:01 | C29: 23:40:01 | D29: sell | E29: out | F29: 1.00 | G29: 114240 | H29: 242.86 | I29: 100601.39 | J29: =(IF(AND(E28="in",E27<>"in"),G28)-IF(AND(E28="in",E27<>"in"),VLOOKUP("out",E29:G$4934,3,)))*-1^(D28="buy") -> 210
A30: 2016-12-29T15:36:42 | C30: 15:36:42 | D30: buy | E30: in | F30: 1.00 | G30: 114100 | H30: 0 | I30: 100601.39 | J30: =(IF(AND(E29="in",E28<>"in"),G29)-IF(AND(E29="in",E28<>"in"),VLOOKUP("out",E30:G$4934,3,)))*-1^(D29="buy") -> 0
A31: 2016-12-29T23:40:01 | C31: 23:40:01 | D31: sell | E31: out | F31: 1.00 | G31: 114810 | H31: 821.12 | I31: 101422.51 | J31: =(IF(AND(E30="in",E29<>"in"),G30)-IF(AND(E30="in",E29<>"in"),VLOOKUP("out",E31:G$4934,3,)))*-1^(D30="buy") -> 710
A32: 2016-12-30T11:38:43 | C32: 11:38:43 | D32: sell | E32: in | F32: 1.00 | G32: 114660 | H32: 0 | I32: 101422.51 | J32: =(IF(AND(E31="in",E30<>"in"),G31)-IF(AND(E31="in",E30<>"in"),VLOOKUP("out",E32:G$4934,3,)))*-1^(D31="buy") -> 0
A33: 2016-12-30T15:53:06 | C33: 15:53:06 | D33: buy | E33: out | F33: 1.00 | G33: 115240 | H33: -670.77 | I33: 100751.74 | J33: =(IF(AND(E32="in",E31<>"in"),G32)-IF(AND(E32="in",E31<>"in"),VLOOKUP("out",E33:G$4934,3,)))*-1^(D32="buy") -> -580
A34: 2016-12-30T15:53:07 | C34: 15:53:07 | D34: buy | E34: in | F34: 1.00 | G34: 115250 | H34: 0 | I34: 100751.74 | J34: =(IF(AND(E33="in",E32<>"in"),G33)-IF(AND(E33="in",E32<>"in"),VLOOKUP("out",E34:G$4934,3,)))*-1^(D33="buy") -> 0
A35: 2016-12-30T23:40:01 | C35: 23:40:01 | D35: sell | E35: out | F35: 1.00 | G35: 114880 | H35: -427.9 | I35: 100323.84 | J35: =(IF(AND(E34="in",E33<>"in"),G34)-IF(AND(E34="in",E33<>"in"),VLOOKUP("out",E35:G$4934,3,)))*-1^(D34="buy") -> -370
A36: 2017-01-03T11:52:42 | C36: 11:52:42 | D36: buy | E36: in | F36: 1.00 | G36: 116790 | H36: 0 | I36: 100323.84 | J36: =(IF(AND(E35="in",E34<>"in"),G35)-IF(AND(E35="in",E34<>"in"),VLOOKUP("out",E36:G$4934,3,)))*-1^(D35="buy") -> 0
A37: 2017-01-03T18:42:42 | C37: 18:42:42 | D37: sell | E37: out | F37: 1.00 | G37: 119070 | H37: 2636.81 | I37: 102960.65 | J37: =(IF(AND(E36="in",E35<>"in"),G36)-IF(AND(E36="in",E35<>"in"),VLOOKUP("out",E37:G$4934,3,)))*-1^(D36="buy") -> 2280
A38: 2017-01-03T18:42:43 | C38: 18:42:43 | D38: sell | E38: in | F38: 1.00 | G38: 119060 | H38: 0 | I38: 102960.65 | J38: =(IF(AND(E37="in",E36<>"in"),G37)-IF(AND(E37="in",E36<>"in"),VLOOKUP("out",E38:G$4934,3,)))*-1^(D37="buy") -> 0
A39: 2017-01-03T18:42:44 | C39: 18:42:44 | D39: sell | E39: in | F39: 1.00 | G39: 119050 | H39: 0 | I39: 102960.65 | J39: =(IF(AND(E38="in",E37<>"in"),G38)-IF(AND(E38="in",E37<>"in"),VLOOKUP("out",E39:G$4934,3,)))*-1^(D38="buy") -> 1370
A40: 2017-01-03T18:42:45 | C40: 18:42:45 | D40: sell | E40: in | F40: 1.00 | G40: 119060 | H40: 0 | I40: 102960.65 | J40: =(IF(AND(E39="in",E38<>"in"),G39)-IF(AND(E39="in",E38<>"in"),VLOOKUP("out",E40:G$4934,3,)))*-1^(D39="buy") -> 0
A41: 2017-01-03T23:40:01 | C41: 23:40:01 | D41: buy | E41: out | F41: 3.00 | G41: 117690 | H41: 4741.65 | I41: 107702.3 | J41: =(IF(AND(E40="in",E39<>"in"),G40)-IF(AND(E40="in",E39<>"in"),VLOOKUP("out",E41:G$4934,3,)))*-1^(D40="buy") -> 0
A42: 2017-01-03T23:47:27 | C42: 23:47:27 | D42: buy | E42: in | F42: 1.00 | G42: 117970 | H42: 0 | I42: 107702.3 | J42: =(IF(AND(E41="in",E40<>"in"),G41)-IF(AND(E41="in",E40<>"in"),VLOOKUP("out",E42:G$4934,3,)))*-1^(D41="buy") -> 0
A43: 2017-01-03T23:48:01 | C43: 23:48:01 | D43: sell | E43: out | F43: 1.00 | G43: 118050 | H43: 92.52 | I43: 107794.82 | J43: =(IF(AND(E42="in",E41<>"in"),G42)-IF(AND(E42="in",E41<>"in"),VLOOKUP("out",E43:G$4934,3,)))*-1^(D42="buy") -> 80
A44: 2017-01-04T10:40:44 | C44: 10:40:44 | D44: buy | E44: in | F44: 1.00 | G44: 117520 | H44: 0 | I44: 107794.82 | J44: =(IF(AND(E43="in",E42<>"in"),G43)-IF(AND(E43="in",E42<>"in"),VLOOKUP("out",E44:G$4934,3,)))*-1^(D43="buy") -> 0
A45: 2017-01-04T23:40:01 | C45: 23:40:01 | D45: sell | E45: out | F45: 1.00 | G45: 118470 | H45: 1098.67 | I45: 108893.49 | J45: =(IF(AND(E44="in",E43<>"in"),G44)-IF(AND(E44="in",E43<>"in"),VLOOKUP("out",E45:G$4934,3,)))*-1^(D44="buy") -> 950
A46: 2017-01-05T10:00:42 | C46: 10:00:42 | D46: buy | E46: in | F46: 1.00 | G46: 118900 | H46: 0 | I46: 108893.49 | J46: =(IF(AND(E45="in",E44<>"in"),G45)-IF(AND(E45="in",E44<>"in"),VLOOKUP("out",E46:G$4934,3,)))*-1^(D45="buy") -> 0
A47: 2017-01-05T10:00:43 | C47: 10:00:43 | D47: buy | E47: in | F47: 1.00 | G47: 118900 | H47: 0 | I47: 108893.49 | J47: =(IF(AND(E46="in",E45<>"in"),G46)-IF(AND(E46="in",E45<>"in"),VLOOKUP("out",E47:G$4934,3,)))*-1^(D46="buy") -> -380
A48: 2017-01-05T10:00:44 | C48: 10:00:44 | D48: buy | E48: in | F48: 1.00 | G48: 118900 | H48: 0 | I48: 108893.49 | J48: =(IF(AND(E47="in",E46<>"in"),G47)-IF(AND(E47="in",E46<>"in"),VLOOKUP("out",E48:G$4934,3,)))*-1^(D47="buy") -> 0
A49: 2017-01-05T11:08:21 | C49: 11:08:21 | D49: sell | E49: out | F49: 1.00 | G49: 118520 | H49: -439.46 | I49: 108454.03 | J49: =(IF(AND(E48="in",E47<>"in"),G48)-IF(AND(E48="in",E47<>"in"),VLOOKUP("out",E49:G$4934,3,)))*-1^(D48="buy") -> 0
A50: 2017-01-05T11:08:22 | C50: 11:08:22 | D50: sell | E50: out | F50: 1.00 | G50: 118520 | H50: -439.46 | I50: 108014.57 | J50: =(IF(AND(E49="in",E48<>"in"),G49)-IF(AND(E49="in",E48<>"in"),VLOOKUP("out",E50:G$4934,3,)))*-1^(D49="buy") -> 0
A51: 2017-01-05T11:08:44 | C51: 11:08:44 | D51: sell | E51: out | F51: 1.00 | G51: 118300 | H51: -693.89 | I51: 107320.68 | J51: =(IF(AND(E50="in",E49<>"in"),G50)-IF(AND(E50="in",E49<>"in"),VLOOKUP("out",E51:G$4934,3,)))*-1^(D50="buy") -> 0
A52: 2017-01-05T11:08:45 | C52: 11:08:45 | D52: sell | E52: in | F52: 1.00 | G52: 118300 | H52: 0 | I52: 107320.68 | J52: =(IF(AND(E51="in",E50<>"in"),G51)-IF(AND(E51="in",E50<>"in"),VLOOKUP("out",E52:G$4934,3,)))*-1^(D51="buy") -> 0
A53: 2017-01-05T18:29:44 | C53: 18:29:44 | D53: buy | E53: out | F53: 1.00 | G53: 118040 | H53: 300.69 | I53: 107621.37 | J53: =(IF(AND(E52="in",E51<>"in"),G52)-IF(AND(E52="in",E51<>"in"),VLOOKUP("out",E53:G$4934,3,)))*-1^(D52="buy") -> 260
A54: 2017-01-05T18:29:45 | C54: 18:29:45 | D54: buy | E54: in | F54: 1.00 | G54: 118030 | H54: 0 | I54: 107621.37 | J54: =(IF(AND(E53="in",E52<>"in"),G53)-IF(AND(E53="in",E52<>"in"),VLOOKUP("out",E54:G$4934,3,)))*-1^(D53="buy") -> 0
A55: 2017-01-05T19:00:40 | C55: 19:00:40 | D55: sell | E55: out | F55: 1.00 | G55: 117220 | H55: -936.76 | I55: 106684.61 | J55: =(IF(AND(E54="in",E53<>"in"),G54)-IF(AND(E54="in",E53<>"in"),VLOOKUP("out",E55:G$4934,3,)))*-1^(D54="buy") -> -810
A56: 2017-01-06T10:00:05 | C56: 10:00:05 | D56: buy | E56: in | F56: 1.00 | G56: 118110 | H56: 0 | I56: 106684.61 | J56: =(IF(AND(E55="in",E54<>"in"),G55)-IF(AND(E55="in",E54<>"in"),VLOOKUP("out",E56:G$4934,3,)))*-1^(D55="buy") -> 0
A57: 2017-01-06T11:10:33 | C57: 11:10:33 | D57: sell | E57: out | F57: 1.00 | G57: 117390 | H57: -832.67 | I57: 105851.94 | J57: =(IF(AND(E56="in",E55<>"in"),G56)-IF(AND(E56="in",E55<>"in"),VLOOKUP("out",E57:G$4934,3,)))*-1^(D56="buy") -> -720
A58: 2017-01-06T11:10:34 | C58: 11:10:34 | D58: sell | E58: in | F58: 1.00 | G58: 117390 | H58: 0 | I58: 105851.94 | J58: =(IF(AND(E57="in",E56<>"in"),G57)-IF(AND(E57="in",E56<>"in"),VLOOKUP("out",E58:G$4934,3,)))*-1^(D57="buy") -> 0
A59: 2017-01-06T14:29:42 | C59: 14:29:42 | D59: buy | E59: out | F59: 1.00 | G59: 117360 | H59: 34.7 | I59: 105886.64 | J59: =(IF(AND(E58="in",E57<>"in"),G58)-IF(AND(E58="in",E57<>"in"),VLOOKUP("out",E59:G$4934,3,)))*-1^(D58="buy") -> 30
A60: 2017-01-06T14:29:43 | C60: 14:29:43 | D60: buy | E60: in | F60: 1.00 | G60: 117340 | H60: 0 | I60: 105886.64 | J60: =(IF(AND(E59="in",E58<>"in"),G59)-IF(AND(E59="in",E58<>"in"),VLOOKUP("out",E60:G$4934,3,)))*-1^(D59="buy") -> 0
A61: 2017-01-06T14:29:44 | C61: 14:29:44 | D61: buy | E61: in | F61: 1.00 | G61: 117350 | H61: 0 | I61: 105886.64 | J61: =(IF(AND(E60="in",E59<>"in"),G60)-IF(AND(E60="in",E59<>"in"),VLOOKUP("out",E61:G$4934,3,)))*-1^(D60="buy") -> 170
A62: 2017-01-06T23:40:01 | C62: 23:40:01 | D62: sell | E62: out | F62: 2.00 | G62: 117510 | H62: 381.64 | I62: 106268.28 | J62: =(IF(AND(E61="in",E60<>"in"),G61)-IF(AND(E61="in",E60<>"in"),VLOOKUP("out",E62:G$4934,3,)))*-1^(D61="buy") -> 0
A63: 2017-01-09T10:46:06 | C63: 10:46:06 | D63: sell | E63: in | F63: 1.00 | G63: 116620 | H63: 0 | I63: 106268.28 | J63: =(IF(AND(E62="in",E61<>"in"),G62)-IF(AND(E62="in",E61<>"in"),VLOOKUP("out",E63:G$4934,3,)))*-1^(D62="buy") -> 0
A64: 2017-01-09T23:40:01 | C64: 23:40:01 | D64: buy | E64: out | F64: 1.00 | G64: 116190 | H64: 497.29 | I64: 106765.57 | J64: =(IF(AND(E63="in",E62<>"in"),G63)-IF(AND(E63="in",E62<>"in"),VLOOKUP("out",E64:G$4934,3,)))*-1^(D63="buy") -> 430
A65: 2017-01-10T10:00:43 | C65: 10:00:43 | D65: sell | E65: in | F65: 1.00 | G65: 115810 | H65: 0 | I65: 106765.57 | J65: =(IF(AND(E64="in",E63<>"in"),G64)-IF(AND(E64="in",E63<>"in"),VLOOKUP("out",E65:G$4934,3,)))*-1^(D64="buy") -> 0
A66: 2017-01-10T10:00:44 | C66: 10:00:44 | D66: sell | E66: in | F66: 1.00 | G66: 115820 | H66: 0 | I66: 106765.57 | J66: =(IF(AND(E65="in",E64<>"in"),G65)-IF(AND(E65="in",E64<>"in"),VLOOKUP("out",E66:G$4934,3,)))*-1^(D65="buy") -> -1470
A67: 2017-01-10T16:19:33 | C67: 16:19:33 | D67: buy | E67: out | F67: 1.00 | G67: 117280 | H67: -1694.27 | I67: 105071.3 | J67: =(IF(AND(E66="in",E65<>"in"),G66)-IF(AND(E66="in",E65<>"in"),VLOOKUP("out",E67:G$4934,3,)))*-1^(D66="buy") -> 0
A68: 2017-01-10T16:20:06 | C68: 16:20:06 | D68: buy | E68: out | F68: 1.00 | G68: 117380 | H68: -1809.92 | I68: 103261.38 | J68: =(IF(AND(E67="in",E66<>"in"),G67)-IF(AND(E67="in",E66<>"in"),VLOOKUP("out",E68:G$4934,3,)))*-1^(D67="buy") -> 0
A69: 2017-01-10T16:20:08 | C69: =MOD(A69,1) -> 16:20:08 | D69: buy | E69: in | F69: 1.00 | G69: 117380 | H69: 0 | I69: 103261.38 | J69: =(IF(AND(E68="in",E67<>"in"),G68)-IF(AND(E68="in",E67<>"in"),VLOOKUP("out",E69:G$4934,3,)))*-1^(D68="buy") -> 0
A70: 2017-01-10T16:20:09 | C70: 16:20:09 | D70: buy | E70: in | F70: 1.00 | G70: 117390 | H70: 0 | I70: 103261.38 | J70: =(IF(AND(E69="in",E68<>"in"),G69)-IF(AND(E69="in",E68<>"in"),VLOOKUP("out",E70:G$4934,3,)))*-1^(D69="buy") -> -700
A71: 2017-01-10T23:40:01 | C71: 23:40:01 | D71: sell | E71: out | F71: 2.00 | G71: 116680 | H71: -1630.66 | I71: 101630.72 | J71: =(IF(AND(E70="in",E69<>"in"),G70)-IF(AND(E70="in",E69<>"in"),VLOOKUP("out",E71:G$4934,3,)))*-1^(D70="buy") -> 0
A72: 2017-01-11T10:02:42 | C72: 10:02:42 | D72: buy | E72: in | F72: 1.00 | G72: 116990 | H72: 0 | I72: 101630.72 | J72: =(IF(AND(E71="in",E70<>"in"),G71)-IF(AND(E71="in",E70<>"in"),VLOOKUP("out",E72:G$4934,3,)))*-1^(D71="buy") -> 0
A73: 2017-01-11T23:40:01 | C73: 23:40:01 | D73: sell | E73: out | F73: 1.00 | G73: 117530 | H73: 624.5 | I73: 102255.22 | J73: =(IF(AND(E72="in",E71<>"in"),G72)-IF(AND(E72="in",E71<>"in"),VLOOKUP("out",E73:G$4934,3,)))*-1^(D72="buy") -> 540
A74: 2017-01-12T10:01:33 | C74: 10:01:33 | D74: buy | E74: in | F74: 1.00 | G74: 117840 | H74: 0 | I74: 102255.22 | J74: =(IF(AND(E73="in",E72<>"in"),G73)-IF(AND(E73="in",E72<>"in"),VLOOKUP("out",E74:G$4934,3,)))*-1^(D73="buy") -> 0
A75: 2017-01-12T23:40:01 | C75: 23:40:01 | D75: sell | E75: out | F75: 1.00 | G75: 117310 | H75: -612.94 | I75: 101642.28 | J75: =(IF(AND(E74="in",E73<>"in"),G74)-IF(AND(E74="in",E73<>"in"),VLOOKUP("out",E75:G$4934,3,)))*-1^(D74="buy") -> -530
A76: 2017-01-13T11:00:33 | C76: 11:00:33 | D76: sell | E76: in | F76: 1.00 | G76: 117280 | H76: 0 | I76: 101642.28 | J76: =(IF(AND(E75="in",E74<>"in"),G75)-IF(AND(E75="in",E74<>"in"),VLOOKUP("out",E76:G$4934,3,)))*-1^(D75="buy") -> 0
A77: 2017-01-13T23:40:01 | C77: 23:40:01 | D77: buy | E77: out | F77: 1.00 | G77: 115990 | H77: 1491.88 | I77: 103134.16 | J77: =(IF(AND(E76="in",E75<>"in"),G76)-IF(AND(E76="in",E75<>"in"),VLOOKUP("out",E77:G$4934,3,)))*-1^(D76="buy") -> 1290
A78: 2017-01-16T10:18:42 | C78: 10:18:42 | D78: buy | E78: in | F78: 1.00 | G78: 115700 | H78: 0 | I78: 103134.16 | J78: =(IF(AND(E77="in",E76<>"in"),G77)-IF(AND(E77="in",E76<>"in"),VLOOKUP("out",E78:G$4934,3,)))*-1^(D77="buy") -> 0
A79: 2017-01-16T11:21:42 | C79: 11:21:42 | D79: sell | E79: out | F79: 1.00 | G79: 115590 | H79: -127.22 | I79: 103006.94 | J79: =(IF(AND(E78="in",E77<>"in"),G78)-IF(AND(E78="in",E77<>"in"),VLOOKUP("out",E79:G$4934,3,)))*-1^(D78="buy") -> -110
A80: 2017-01-16T11:21:43 | C80: 11:21:43 | D80: sell | E80: in | F80: 1.00 | G80: 115580 | H80: 0 | I80: 103006.94 | J80: =(IF(AND(E79="in",E78<>"in"),G79)-IF(AND(E79="in",E78<>"in"),VLOOKUP("out",E80:G$4934,3,)))*-1^(D79="buy") -> 0
A81: 2017-01-16T13:08:18 | C81: 13:08:18 | D81: buy | E81: out | F81: 1.00 | G81: 116660 | H81: -1249.01 | I81: 101757.93 | J81: =(IF(AND(E80="in",E79<>"in"),G80)-IF(AND(E80="in",E79<>"in"),VLOOKUP("out",E81:G$4934,3,)))*-1^(D80="buy") -> -1080
A82: 2017-01-16T13:08:19 | C82: 13:08:19 | D82: buy | E82: in | F82: 1.00 | G82: 116670 | H82: 0 | I82: 101757.93 | J82: =(IF(AND(E81="in",E80<>"in"),G81)-IF(AND(E81="in",E80<>"in"),VLOOKUP("out",E82:G$4934,3,)))*-1^(D81="buy") -> 0
A83: 2017-01-16T23:40:01 | C83: 23:40:01 | D83: sell | E83: out | F83: 1.00 | G83: 115810 | H83: -994.59 | I83: 100763.34 | J83: =(IF(AND(E82="in",E81<>"in"),G82)-IF(AND(E82="in",E81<>"in"),VLOOKUP("out",E83:G$4934,3,)))*-1^(D82="buy") -> -860
A84: 2017-01-17T10:01:33 | C84: 10:01:33 | D84: buy | E84: in | F84: 1.00 | G84: 115910 | H84: 0 | I84: 100763.34 | J84: =(IF(AND(E83="in",E82<>"in"),G83)-IF(AND(E83="in",E82<>"in"),VLOOKUP("out",E84:G$4934,3,)))*-1^(D83="buy") -> 0
A85: 2017-01-17T11:02:18 | C85: 11:02:18 | D85: sell | E85: out | F85: 1.00 | G85: 115540 | H85: -427.9 | I85: 100335.44 | J85: =(IF(AND(E84="in",E83<>"in"),G84)-IF(AND(E84="in",E83<>"in"),VLOOKUP("out",E85:G$4934,3,)))*-1^(D84="buy") -> -370
A86: 2017-01-17T11:02:19 | C86: 11:02:19 | D86: sell | E86: in | F86: 1.00 | G86: 115550 | H86: 0 | I86: 100335.44 | J86: =(IF(AND(E85="in",E84<>"in"),G85)-IF(AND(E85="in",E84<>"in"),VLOOKUP("out",E86:G$4934,3,)))*-1^(D85="buy") -> 0
A87: 2017-01-17T11:02:20 | C87: 11:02:20 | D87: sell | E87: in | F87: 1.00 | G87: 115540 | H87: 0 | I87: 100335.44 | J87: =(IF(AND(E86="in",E85<>"in"),G86)-IF(AND(E86="in",E85<>"in"),VLOOKUP("out",E87:G$4934,3,)))*-1^(D86="buy") -> 150
A88: 2017-01-17T11:02:21 | C88: 11:02:21 | D88: sell | E88: in | F88: 1.00 | G88: 115550 | H88: 0 | I88: 100335.44 | J88: =(IF(AND(E87="in",E86<>"in"),G87)-IF(AND(E87="in",E86<>"in"),VLOOKUP("out",E88:G$4934,3,)))*-1^(D87="buy") -> 0
A89: 2017-01-17T23:40:01 | C89: 23:40:01 | D89: buy | E89: out | F89: 3.00 | G89: 115400 | H89: 508.86 | I89: 100844.3 | J89: =(IF(AND(E88="in",E87<>"in"),G88)-IF(AND(E88="in",E87<>"in"),VLOOKUP("out",E89:G$4934,3,)))*-1^(D88="buy") -> 0
A90: 2017-01-18T11:31:44 | C90: 11:31:44 | D90: buy | E90: in | F90: 1.00 | G90: 116730 | H90: 0 | I90: 100844.3 | J90: =(IF(AND(E89="in",E88<>"in"),G89)-IF(AND(E89="in",E88<>"in"),VLOOKUP("out",E90:G$4934,3,)))*-1^(D89="buy") -> 0
A91: 2017-01-18T23:40:01 | C91: 23:40:01 | D91: sell | E91: out | F91: 1.00 | G91: 115030 | H91: -1966.05 | I91: 98878.25 | J91: =(IF(AND(E90="in",E89<>"in"),G90)-IF(AND(E90="in",E89<>"in"),VLOOKUP("out",E91:G$4934,3,)))*-1^(D90="buy") -> -1700
A92: 2017-01-19T10:00:06 | C92: 10:00:06 | D92: buy | E92: in | F92: 1.00 | G92: 115260 | H92: 0 | I92: 98878.25 | J92: =(IF(AND(E91="in",E90<>"in"),G91)-IF(AND(E91="in",E90<>"in"),VLOOKUP("out",E92:G$4934,3,)))*-1^(D91="buy") -> 0
A93: 2017-01-19T23:40:01 | C93: 23:40:01 | D93: sell | E93: out | F93: 1.00 | G93: 113540 | H93: -1989.17 | I93: 96889.08 | J93: =(IF(AND(E92="in",E91<>"in"),G92)-IF(AND(E92="in",E91<>"in"),VLOOKUP("out",E93:G$4934,3,)))*-1^(D92="buy") -> -1720
A94: 2017-01-20T10:43:22 | C94: 10:43:22 | D94: sell | E94: in | F94: 1.00 | G94: 113690 | H94: 0 | I94: 96889.08 | J94: =(IF(AND(E93="in",E92<>"in"),G93)-IF(AND(E93="in",E92<>"in"),VLOOKUP("out",E94:G$4934,3,)))*-1^(D93="buy") -> 0
A95: 2017-01-20T10:43:23 | C95: 10:43:23 | D95: sell | E95: in | F95: 1.00 | G95: 113680 | H95: 0 | I95: 96889.08 | J95: =(IF(AND(E94="in",E93<>"in"),G94)-IF(AND(E94="in",E93<>"in"),VLOOKUP("out",E95:G$4934,3,)))*-1^(D94="buy") -> -170
A96: 2017-01-20T23:40:01 | C96: 23:40:01 | D96: buy | E96: out | F96: 2.00 | G96: 113860 | H96: -404.76 | I96: 96484.32 | J96: =(IF(AND(E95="in",E94<>"in"),G95)-IF(AND(E95="in",E94<>"in"),VLOOKUP("out",E96:G$4934,3,)))*-1^(D95="buy") -> 0
A97: 2017-01-23T10:15:18 | C97: 10:15:18 | D97: sell | E97: in | F97: 1.00 | G97: 113770 | H97: 0 | I97: 96484.32 | J97: =(IF(AND(E96="in",E95<>"in"),G96)-IF(AND(E96="in",E95<>"in"),VLOOKUP("out",E97:G$4934,3,)))*-1^(D96="buy") -> 0
A98: 2017-01-23T23:40:01 | C98: 23:40:01 | D98: buy | E98: out | F98: 1.00 | G98: 113980 | H98: -242.86 | I98: 96241.46 | J98: =(IF(AND(E97="in",E96<>"in"),G97)-IF(AND(E97="in",E96<>"in"),VLOOKUP("out",E98:G$4934,3,)))*-1^(D97="buy") -> -210
A99: 2017-01-24T10:18:17 | C99: 10:18:17 | D99: buy | E99: in | F99: 1.00 | G99: 114710 | H99: 0 | I99: 96241.46 | J99: =(IF(AND(E98="in",E97<>"in"),G98)-IF(AND(E98="in",E97<>"in"),VLOOKUP("out",E99:G$4934,3,)))*-1^(D98="buy") -> 0
A100: 2017-01-24T23:40:01 | C100: 23:40:01 | D100: sell | E100: out | F100: 1.00 | G100: 115690 | H100: 1133.36 | I100: 97374.82 | J100: =(IF(AND(E99="in",E98<>"in"),G99)-IF(AND(E99="in",E98<>"in"),VLOOKUP("out",E100:G$4934,3,)))*-1^(D99="buy") -> 980
A101: 2017-01-25T10:05:17 | C101: 10:05:17 | D101: buy | E101: in | F101: 1.00 | G101: 115900 | H101: 0 | I101: 97374.82 | J101: =(IF(AND(E100="in",E99<>"in"),G100)-IF(AND(E100="in",E99<>"in"),VLOOKUP("out",E101:G$4934,3,)))*-1^(D100="buy") -> 0
A102: 2017-01-25T16:21:16 | C102: 16:21:16 | D102: sell | E102: out | F102: 1.00 | G102: 115330 | H102: -659.21 | I102: 96715.61 | J102: =(IF(AND(E101="in",E100<>"in"),G101)-IF(AND(E101="in",E100<>"in"),VLOOKUP("out",E102:G$4934,3,)))*-1^(D101="buy") -> -570
A103: 2017-01-25T16:21:17 | C103: 16:21:17 | D103: sell | E103: in | F103: 1.00 | G103: 115340 | H103: 0 | I103: 96715.61 | J103: =(IF(AND(E102="in",E101<>"in"),G102)-IF(AND(E102="in",E101<>"in"),VLOOKUP("out",E103:G$4934,3,)))*-1^(D102="buy") -> 0
A104: 2017-01-25T16:21:18 | C104: 16:21:18 | D104: sell | E104: in | F104: 1.00 | G104: 115330 | H104: 0 | I104: 96715.61 | J104: =(IF(AND(E103="in",E102<>"in"),G103)-IF(AND(E103="in",E102<>"in"),VLOOKUP("out",E104:G$4934,3,)))*-1^(D103="buy") -> -250
A105: 2017-01-25T16:21:19 | C105: 16:21:19 | D105: sell | E105: in | F105: 1.00 | G105: 115350 | H105: 0 | I105: 96715.61 | J105: =(IF(AND(E104="in",E103<>"in"),G104)-IF(AND(E104="in",E103<>"in"),VLOOKUP("out",E105:G$4934,3,)))*-1^(D104="buy") -> 0
A106: 2017-01-25T23:40:01 | C106: 23:40:01 | D106: buy | E106: out | F106: 3.00 | G106: 115590 | H106: -867.36 | I106: 95848.25 | J106: =(IF(AND(E105="in",E104<>"in"),G105)-IF(AND(E105="in",E104<>"in"),VLOOKUP("out",E106:G$4934,3,)))*-1^(D105="buy") -> 0
A107: 2017-01-26T13:32:48 | C107: 13:32:48 | D107: buy | E107: in | F107: 1.00 | G107: 116010 | H107: 0 | I107: 95848.25 | J107: =(IF(AND(E106="in",E105<>"in"),G106)-IF(AND(E106="in",E105<>"in"),VLOOKUP("out",E107:G$4934,3,)))*-1^(D106="buy") -> 0
A108: 2017-01-26T23:40:01 | C108: 23:40:01 | D108: sell | E108: out | F108: 1.00 | G108: 116100 | H108: 104.09 | I108: 95952.34 | J108: =(IF(AND(E107="in",E106<>"in"),G107)-IF(AND(E107="in",E106<>"in"),VLOOKUP("out",E108:G$4934,3,)))*-1^(D107="buy") -> 90
A109: 2017-01-27T10:05:42 | C109: 10:05:42 | D109: buy | E109: in | F109: 1.00 | G109: 116360 | H109: 0 | I109: 95952.34 | J109: =(IF(AND(E108="in",E107<>"in"),G108)-IF(AND(E108="in",E107<>"in"),VLOOKUP("out",E109:G$4934,3,)))*-1^(D108="buy") -> 0
A110: 2017-01-27T23:40:01 | C110: 23:40:01 | D110: sell | E110: out | F110: 1.00 | G110: 119020 | H110: 3076.28 | I110: 99028.62 | J110: =(IF(AND(E109="in",E108<>"in"),G109)-IF(AND(E109="in",E108<>"in"),VLOOKUP("out",E110:G$4934,3,)))*-1^(D109="buy") -> 2660
A111: 2017-01-30T10:00:29 | C111: 10:00:29 | D111: sell | E111: in | F111: 1.00 | G111: 118760 | H111: 0 | I111: 99028.62 | J111: =(IF(AND(E110="in",E109<>"in"),G110)-IF(AND(E110="in",E109<>"in"),VLOOKUP("out",E111:G$4934,3,)))*-1^(D110="buy") -> 0
A112: 2017-01-30T23:40:01 | C112: 23:40:01 | D112: buy | E112: out | F112: 1.00 | G112: 117500 | H112: 1457.18 | I112: 100485.8 | J112: =(IF(AND(E111="in",E110<>"in"),G111)-IF(AND(E111="in",E110<>"in"),VLOOKUP("out",E112:G$4934,3,)))*-1^(D111="buy") -> 1260
A113: 2017-01-31T11:36:43 | C113: 11:36:43 | D113: sell | E113: in | F113: 1.00 | G113: 116420 | H113: 0 | I113: 100485.8 | J113: =(IF(AND(E112="in",E111<>"in"),G112)-IF(AND(E112="in",E111<>"in"),VLOOKUP("out",E113:G$4934,3,)))*-1^(D112="buy") -> 0
A114: 2017-01-31T23:40:01 | C114: 23:40:01 | D114: buy | E114: out | F114: 1.00 | G114: 115990 | H114: 497.29 | I114: 100983.09 | J114: =(IF(AND(E113="in",E112<>"in"),G113)-IF(AND(E113="in",E112<>"in"),VLOOKUP("out",E114:G$4934,3,)))*-1^(D113="buy") -> 430
A115: 2017-01-31T23:40:02 | C115: 23:40:02 | D115: buy | E115: in | F115: 1.00 | G115: 115980 | H115: 0 | I115: 100983.09 | J115: =(IF(AND(E114="in",E113<>"in"),G114)-IF(AND(E114="in",E113<>"in"),VLOOKUP("out",E115:G$4934,3,)))*-1^(D114="buy") -> 0
A116: 2017-01-31T23:41:01 | C116: 23:41:01 | D116: sell | E116: out | F116: 1.00 | G116: 116080 | H116: 115.65 | I116: 101098.74 | J116: =(IF(AND(E115="in",E114<>"in"),G115)-IF(AND(E115="in",E114<>"in"),VLOOKUP("out",E116:G$4934,3,)))*-1^(D115="buy") -> 100
A117: 2017-02-01T10:03:44 | C117: 10:03:44 | D117: sell | E117: in | F117: 1.00 | G117: 115780 | H117: 0 | I117: 101098.74 | J117: =(IF(AND(E116="in",E115<>"in"),G116)-IF(AND(E116="in",E115<>"in"),VLOOKUP("out",E117:G$4934,3,)))*-1^(D116="buy") -> 0
A118: 2017-02-01T23:40:01 | C118: 23:40:01 | D118: buy | E118: out | F118: 1.00 | G118: 116880 | H118: -1272.14 | I118: 99826.6 | J118: =(IF(AND(E117="in",E116<>"in"),G117)-IF(AND(E117="in",E116<>"in"),VLOOKUP("out",E118:G$4934,3,)))*-1^(D117="buy") -> -1100
A119: 2017-02-02T10:03:41 | C119: 10:03:41 | D119: buy | E119: in | F119: 1.00 | G119: 117140 | H119: 0 | I119: 99826.6 | J119: =(IF(AND(E118="in",E117<>"in"),G118)-IF(AND(E118="in",E117<>"in"),VLOOKUP("out",E119:G$4934,3,)))*-1^(D118="buy") -> 0
A120: 2017-02-02T23:40:01 | C120: 23:40:01 | D120: sell | E120: out | F120: 1.00 | G120: 117740 | H120: 693.9 | I120: 100520.5 | J120: =(IF(AND(E119="in",E118<>"in"),G119)-IF(AND(E119="in",E118<>"in"),VLOOKUP("out",E120:G$4934,3,)))*-1^(D119="buy") -> 600
A121: 2017-02-03T10:10:22 | C121: 10:10:22 | D121: buy | E121: in | F121: 1.00 | G121: 118020 | H121: 0 | I121: 100520.5 | J121: =(IF(AND(E120="in",E119<>"in"),G120)-IF(AND(E120="in",E119<>"in"),VLOOKUP("out",E121:G$4934,3,)))*-1^(D120="buy") -> 0
A122: 2017-02-03T23:40:01 | C122: 23:40:01 | D122: sell | E122: out | F122: 1.00 | G122: 118490 | H122: 543.55 | I122: 101064.05 | J122: =(IF(AND(E121="in",E120<>"in"),G121)-IF(AND(E121="in",E120<>"in"),VLOOKUP("out",E122:G$4934,3,)))*-1^(D121="buy") -> 470
A123: 2017-02-06T10:00:16 | C123: 10:00:16 | D123: buy | E123: in | F123: 1.00 | G123: 118810 | H123: 0 | I123: 101064.05 | J123: =(IF(AND(E122="in",E121<>"in"),G122)-IF(AND(E122="in",E121<>"in"),VLOOKUP("out",E123:G$4934,3,)))*-1^(D122="buy") -> 0
A124: 2017-02-06T11:25:18 | C124: 11:25:18 | D124: sell | E124: out | F124: 1.00 | G124: 118850 | H124: 46.26 | I124: 101110.31 | J124: =(IF(AND(E123="in",E122<>"in"),G123)-IF(AND(E123="in",E122<>"in"),VLOOKUP("out",E124:G$4934,3,)))*-1^(D123="buy") -> 40
A125: 2017-02-06T11:25:19 | C125: 11:25:19 | D125: sell | E125: in | F125: 1.00 | G125: 118860 | H125: 0 | I125: 101110.31 | J125: =(IF(AND(E124="in",E123<>"in"),G124)-IF(AND(E124="in",E123<>"in"),VLOOKUP("out",E125:G$4934,3,)))*-1^(D124="buy") -> 0
A126: 2017-02-06T11:25:20 | C126: 11:25:20 | D126: sell | E126: in | F126: 1.00 | G126: 118850 | H126: 0 | I126: 101110.31 | J126: =(IF(AND(E125="in",E124<>"in"),G125)-IF(AND(E125="in",E124<>"in"),VLOOKUP("out",E126:G$4934,3,)))*-1^(D125="buy") -> 790
A127: 2017-02-06T11:25:21 | C127: 11:25:21 | D127: sell | E127: in | F127: 1.00 | G127: 118860 | H127: 0 | I127: 101110.31 | J127: =(IF(AND(E126="in",E125<>"in"),G126)-IF(AND(E126="in",E125<>"in"),VLOOKUP("out",E127:G$4934,3,)))*-1^(D126="buy") -> 0
A128: 2017-02-06T11:25:22 | C128: 11:25:22 | D128: sell | E128: in | F128: 1.00 | G128: 118860 | H128: 0 | I128: 101110.31 | J128: =(IF(AND(E127="in",E126<>"in"),G127)-IF(AND(E127="in",E126<>"in"),VLOOKUP("out",E128:G$4934,3,)))*-1^(D127="buy") -> 0
A129: 2017-02-06T11:25:23 | C129: 11:25:23 | D129: sell | E129: in | F129: 1.00 | G129: 118880 | H129: 0 | I129: 101110.31 | J129: =(IF(AND(E128="in",E127<>"in"),G128)-IF(AND(E128="in",E127<>"in"),VLOOKUP("out",E129:G$4934,3,)))*-1^(D128="buy") -> 0
A130: 2017-02-06T23:40:01 | C130: 23:40:01 | D130: buy | E130: out | F130: 5.00 | G130: 118070 | H130: 4579.75 | I130: 105690.06 | J130: =(IF(AND(E129="in",E128<>"in"),G129)-IF(AND(E129="in",E128<>"in"),VLOOKUP("out",E130:G$4934,3,)))*-1^(D129="buy") -> 0
A131: 2017-02-07T10:00:26 | C131: 10:00:26 | D131: sell | E131: in | F131: 1.00 | G131: 117760 | H131: 0 | I131: 105690.06 | J131: =(IF(AND(E130="in",E129<>"in"),G130)-IF(AND(E130="in",E129<>"in"),VLOOKUP("out",E131:G$4934,3,)))*-1^(D130="buy") -> 0
A132: 2017-02-07T10:00:27 | C132: 10:00:27 | D132: sell | E132: in | F132: 1.00 | G132: 117740 | H132: 0 | I132: 105690.06 | J132: =(IF(AND(E131="in",E130<>"in"),G131)-IF(AND(E131="in",E130<>"in"),VLOOKUP("out",E132:G$4934,3,)))*-1^(D131="buy") -> 310
A133: 2017-02-07T10:00:28 | C133: =MOD(A133,1) -> 10:00:28 | D133: sell | E133: in | F133: 1.00 | G133: 117740 | H133: 0 | I133: 105690.06 | J133: =(IF(AND(E132="in",E131<>"in"),G132)-IF(AND(E132="in",E131<>"in"),VLOOKUP("out",E133:G$4934,3,)))*-1^(D132="buy") -> 0
A134: 2017-02-07T14:07:42 | C134: 14:07:42 | D134: buy | E134: out | F134: 1.00 | G134: 117450 | H134: 343.09 | I134: 106033.15 | J134: =(IF(AND(E133="in",E132<>"in"),G133)-IF(AND(E133="in",E132<>"in"),VLOOKUP("out",E134:G$4934,3,)))*-1^(D133="buy") -> 0
A135: 2017-02-07T23:40:01 | C135: 23:40:01 | D135: buy | E135: out | F135: 2.00 | G135: 117540 | H135: 478.02 | I135: 106511.17 | J135: =(IF(AND(E134="in",E133<>"in"),G134)-IF(AND(E134="in",E133<>"in"),VLOOKUP("out",E135:G$4934,3,)))*-1^(D134="buy") -> 0
A136: 2017-02-08T11:12:44 | C136: 11:12:44 | D136: buy | E136: in | F136: 1.00 | G136: 117280 | H136: 0 | I136: 106511.17 | J136: =(IF(AND(E135="in",E134<>"in"),G135)-IF(AND(E135="in",E134<>"in"),VLOOKUP("out",E136:G$4934,3,)))*-1^(D135="buy") -> 0
A137: 2017-02-08T23:40:01 | C137: 23:40:01 | D137: sell | E137: out | F137: 1.00 | G137: 116540 | H137: -855.81 | I137: 105655.36 | J137: =(IF(AND(E136="in",E135<>"in"),G136)-IF(AND(E136="in",E135<>"in"),VLOOKUP("out",E137:G$4934,3,)))*-1^(D136="buy") -> -740
A138: 2017-02-09T10:00:29 | C138: 10:00:29 | D138: buy | E138: in | F138: 1.00 | G138: 116820 | H138: 0 | I138: 105655.36 | J138: =(IF(AND(E137="in",E136<>"in"),G137)-IF(AND(E137="in",E136<>"in"),VLOOKUP("out",E138:G$4934,3,)))*-1^(D137="buy") -> 0
A139: 2017-02-09T11:48:33 | C139: 11:48:33 | D139: sell | E139: out | F139: 1.00 | G139: 116260 | H139: -647.64 | I139: 105007.72 | J139: =(IF(AND(E138="in",E137<>"in"),G138)-IF(AND(E138="in",E137<>"in"),VLOOKUP("out",E139:G$4934,3,)))*-1^(D138="buy") -> -560
A140: 2017-02-09T11:48:34 | C140: 11:48:34 | D140: sell | E140: in | F140: 1.00 | G140: 116260 | H140: 0 | I140: 105007.72 | J140: =(IF(AND(E139="in",E138<>"in"),G139)-IF(AND(E139="in",E138<>"in"),VLOOKUP("out",E140:G$4934,3,)))*-1^(D139="buy") -> 0
A141: 2017-02-09T11:48:35 | C141: 11:48:35 | D141: sell | E141: in | F141: 1.00 | G141: 116260 | H141: 0 | I141: 105007.72 | J141: =(IF(AND(E140="in",E139<>"in"),G140)-IF(AND(E140="in",E139<>"in"),VLOOKUP("out",E141:G$4934,3,)))*-1^(D140="buy") -> -60
A142: 2017-02-09T11:48:36 | C142: 11:48:36 | D142: sell | E142: in | F142: 1.00 | G142: 116260 | H142: 0 | I142: 105007.72 | J142: =(IF(AND(E141="in",E140<>"in"),G141)-IF(AND(E141="in",E140<>"in"),VLOOKUP("out",E142:G$4934,3,)))*-1^(D141="buy") -> 0
A143: 2017-02-09T23:40:01 | C143: 23:40:01 | D143: buy | E143: out | F143: 3.00 | G143: 116320 | H143: -208.17 | I143: 104799.55 | J143: =(IF(AND(E142="in",E141<>"in"),G142)-IF(AND(E142="in",E141<>"in"),VLOOKUP("out",E143:G$4934,3,)))*-1^(D142="buy") -> 0
A144: 2017-02-10T10:00:30 | C144: 10:00:30 | D144: buy | E144: in | F144: 1.00 | G144: 116590 | H144: 0 | I144: 104799.55 | J144: =(IF(AND(E143="in",E142<>"in"),G143)-IF(AND(E143="in",E142<>"in"),VLOOKUP("out",E144:G$4934,3,)))*-1^(D143="buy") -> 0
A145: 2017-02-10T10:00:31 | C145: 10:00:31 | D145: buy | E145: in | F145: 1.00 | G145: 116590 | H145: 0 | I145: 104799.55 | J145: =(IF(AND(E144="in",E143<>"in"),G144)-IF(AND(E144="in",E143<>"in"),VLOOKUP("out",E145:G$4934,3,)))*-1^(D144="buy") -> 360
A146: 2017-02-10T10:00:32 | C146: 10:00:32 | D146: buy | E146: in | F146: 1.00 | G146: 116590 | H146: 0 | I146: 104799.55 | J146: =(IF(AND(E145="in",E144<>"in"),G145)-IF(AND(E145="in",E144<>"in"),VLOOKUP("out",E146:G$4934,3,)))*-1^(D145="buy") -> 0
A147: 2017-02-10T23:40:01 | C147: 23:40:01 | D147: sell | E147: out | F147: 3.00 | G147: 116950 | H147: 1249.02 | I147: 106048.57 | J147: =(IF(AND(E146="in",E145<>"in"),G146)-IF(AND(E146="in",E145<>"in"),VLOOKUP("out",E147:G$4934,3,)))*-1^(D146="buy") -> 0
A148: 2017-02-13T10:00:33 | C148: 10:00:33 | D148: buy | E148: in | F148: 1.00 | G148: 117300 | H148: 0 | I148: 106048.57 | J148: =(IF(AND(E147="in",E146<>"in"),G147)-IF(AND(E147="in",E146<>"in"),VLOOKUP("out",E148:G$4934,3,)))*-1^(D147="buy") -> 0
A149: 2017-02-13T10:00:34 | C149: 10:00:34 | D149: buy | E149: in | F149: 1.00 | G149: 117290 | H149: 0 | I149: 106048.57 | J149: =(IF(AND(E148="in",E147<>"in"),G148)-IF(AND(E148="in",E147<>"in"),VLOOKUP("out",E149:G$4934,3,)))*-1^(D148="buy") -> 130
A150: 2017-02-13T10:00:35 | C150: 10:00:35 | D150: buy | E150: in | F150: 1.00 | G150: 117300 | H150: 0 | I150: 106048.57 | J150: =(IF(AND(E149="in",E148<>"in"),G149)-IF(AND(E149="in",E148<>"in"),VLOOKUP("out",E150:G$4934,3,)))*-1^(D149="buy") -> 0
A151: 2017-02-13T10:00:36 | C151: 10:00:36 | D151: buy | E151: in | F151: 1.00 | G151: 117290 | H151: 0 | I151: 106048.57 | J151: =(IF(AND(E150="in",E149<>"in"),G150)-IF(AND(E150="in",E149<>"in"),VLOOKUP("out",E151:G$4934,3,)))*-1^(D150="buy") -> 0
A152: 2017-02-13T23:40:01 | C152: 23:40:01 | D152: sell | E152: out | F152: 4.00 | G152: 117430 | H152: 624.52 | I152: 106673.09 | J152: =(IF(AND(E151="in",E150<>"in"),G151)-IF(AND(E151="in",E150<>"in"),VLOOKUP("out",E152:G$4934,3,)))*-1^(D151="buy") -> 0
A153: 2017-02-14T11:35:33 | C153: 11:35:33 | D153: sell | E153: in | F153: 1.00 | G153: 117030 | H153: 0 | I153: 106673.09 | J153: =(IF(AND(E152="in",E151<>"in"),G152)-IF(AND(E152="in",E151<>"in"),VLOOKUP("out",E153:G$4934,3,)))*-1^(D152="buy") -> 0
A154: 2017-02-14T23:40:01 | C154: 23:40:01 | D154: buy | E154: out | F154: 1.00 | G154: 117570 | H154: -624.5 | I154: 106048.59 | J154: =(IF(AND(E153="in",E152<>"in"),G153)-IF(AND(E153="in",E152<>"in"),VLOOKUP("out",E154:G$4934,3,)))*-1^(D153="buy") -> -540
A155: 2017-02-15T11:00:22 | C155: 11:00:22 | D155: sell | E155: in | F155: 1.00 | G155: 117450 | H155: 0 | I155: 106048.59 | J155: =(IF(AND(E154="in",E153<>"in"),G154)-IF(AND(E154="in",E153<>"in"),VLOOKUP("out",E155:G$4934,3,)))*-1^(D154="buy") -> 0
A156: 2017-02-15T23:40:01 | C156: 23:40:01 | D156: buy | E156: out | F156: 1.00 | G156: 117550 | H156: -115.64 | I156: 105932.95 | J156: =(IF(AND(E155="in",E154<>"in"),G155)-IF(AND(E155="in",E154<>"in"),VLOOKUP("out",E156:G$4934,3,)))*-1^(D155="buy") -> -100
A157: 2017-02-16T12:02:01 | C157: 12:02:01 | D157: sell | E157: in | F157: 1.00 | G157: 117280 | H157: 0 | I157: 105932.95 | J157: =(IF(AND(E156="in",E155<>"in"),G156)-IF(AND(E156="in",E155<>"in"),VLOOKUP("out",E157:G$4934,3,)))*-1^(D156="buy") -> 0
A158: 2017-02-16T12:02:02 | C158: 12:02:02 | D158: sell | E158: in | F158: 1.00 | G158: 117280 | H158: 0 | I158: 105932.95 | J158: =(IF(AND(E157="in",E156<>"in"),G157)-IF(AND(E157="in",E156<>"in"),VLOOKUP("out",E158:G$4934,3,)))*-1^(D157="buy") -> 170
A159: 2017-02-16T23:40:01 | C159: 23:40:01 | D159: buy | E159: out | F159: 2.00 | G159: 117110 | H159: 393.2 | I159: 106326.15 | J159: =(IF(AND(E158="in",E157<>"in"),G158)-IF(AND(E158="in",E157<>"in"),VLOOKUP("out",E159:G$4934,3,)))*-1^(D158="buy") -> 0
A160: 2017-02-17T10:50:33 | C160: 10:50:33 | D160: sell | E160: in | F160: 1.00 | G160: 116930 | H160: 0 | I160: 106326.15 | J160: =(IF(AND(E159="in",E158<>"in"),G159)-IF(AND(E159="in",E158<>"in"),VLOOKUP("out",E160:G$4934,3,)))*-1^(D159="buy") -> 0
A161: 2017-02-17T23:40:01 | C161: 23:40:01 | D161: buy | E161: out | F161: 1.00 | G161: 115220 | H161: 1977.61 | I161: 108303.76 | J161: =(IF(AND(E160="in",E159<>"in"),G160)-IF(AND(E160="in",E159<>"in"),VLOOKUP("out",E161:G$4934,3,)))*-1^(D160="buy") -> 1710
A162: 2017-02-20T10:00:15 | C162: 10:00:15 | D162: buy | E162: in | F162: 1.00 | G162: 115510 | H162: 0 | I162: 108303.76 | J162: =(IF(AND(E161="in",E160<>"in"),G161)-IF(AND(E161="in",E160<>"in"),VLOOKUP("out",E162:G$4934,3,)))*-1^(D161="buy") -> 0
A163: 2017-02-20T10:00:16 | C163: 10:00:16 | D163: buy | E163: in | F163: 1.00 | G163: 115520 | H163: 0 | I163: 108303.76 | J163: =(IF(AND(E162="in",E161<>"in"),G162)-IF(AND(E162="in",E161<>"in"),VLOOKUP("out",E163:G$4934,3,)))*-1^(D162="buy") -> -500
A164: 2017-02-20T23:40:01 | C164: 23:40:01 | D164: sell | E164: out | F164: 2.00 | G164: 115010 | H164: -1168.08 | I164: 107135.68 | J164: =(IF(AND(E163="in",E162<>"in"),G163)-IF(AND(E163="in",E162<>"in"),VLOOKUP("out",E164:G$4934,3,)))*-1^(D163="buy") -> 0
A165: 2017-02-21T10:05:06 | C165: 10:05:06 | D165: buy | E165: in | F165: 1.00 | G165: 115260 | H165: 0 | I165: 107135.68 | J165: =(IF(AND(E164="in",E163<>"in"),G164)-IF(AND(E164="in",E163<>"in"),VLOOKUP("out",E165:G$4934,3,)))*-1^(D164="buy") -> 0
A166: 2017-02-21T23:40:01 | C166: 23:40:01 | D166: sell | E166: out | F166: 1.00 | G166: 116550 | H166: 1491.88 | I166: 108627.56 | J166: =(IF(AND(E165="in",E164<>"in"),G165)-IF(AND(E165="in",E164<>"in"),VLOOKUP("out",E166:G$4934,3,)))*-1^(D165="buy") -> 1290
A167: 2017-02-22T10:57:33 | C167: 10:57:33 | D167: buy | E167: in | F167: 1.00 | G167: 116440 | H167: 0 | I167: 108627.56 | J167: =(IF(AND(E166="in",E165<>"in"),G166)-IF(AND(E166="in",E165<>"in"),VLOOKUP("out",E167:G$4934,3,)))*-1^(D166="buy") -> 0
A168: 2017-02-22T23:40:01 | C168: 23:40:01 | D168: sell | E168: out | F168: 1.00 | G168: 114120 | H168: -2683.07 | I168: 105944.49 | J168: =(IF(AND(E167="in",E166<>"in"),G167)-IF(AND(E167="in",E166<>"in"),VLOOKUP("out",E168:G$4934,3,)))*-1^(D167="buy") -> -2320
A169: 2017-02-24T10:07:44 | C169: 10:07:44 | D169: sell | E169: in | F169: 1.00 | G169: 113830 | H169: 0 | I169: 105944.49 | J169: =(IF(AND(E168="in",E167<>"in"),G168)-IF(AND(E168="in",E167<>"in"),VLOOKUP("out",E169:G$4934,3,)))*-1^(D168="buy") -> 0
A170: 2017-02-27T23:40:01 | C170: 23:40:01 | D170: buy | E170: out | F170: 1.00 | G170: 111780 | H170: 2370.82 | I170: 108315.31 | J170: =(IF(AND(E169="in",E168<>"in"),G169)-IF(AND(E169="in",E168<>"in"),VLOOKUP("out",E170:G$4934,3,)))*-1^(D169="buy") -> 2050
A171: 2017-02-28T10:31:33 | C171: 10:31:33 | D171: sell | E171: in | F171: 1.00 | G171: 111010 | H171: 0 | I171: 108315.31 | J171: =(IF(AND(E170="in",E169<>"in"),G170)-IF(AND(E170="in",E169<>"in"),VLOOKUP("out",E171:G$4934,3,)))*-1^(D170="buy") -> 0
A172: 2017-02-28T10:31:34 | C172: 10:31:34 | D172: sell | E172: in | F172: 1.00 | G172: 111020 | H172: 0 | I172: 108315.31 | J172: =(IF(AND(E171="in",E170<>"in"),G171)-IF(AND(E171="in",E170<>"in"),VLOOKUP("out",E172:G$4934,3,)))*-1^(D171="buy") -> 1500
A173: 2017-02-28T23:40:01 | C173: 23:40:01 | D173: buy | E173: out | F173: 2.00 | G173: 109510 | H173: 3481.04 | I173: 111796.35 | J173: =(IF(AND(E172="in",E171<>"in"),G172)-IF(AND(E172="in",E171<>"in"),VLOOKUP("out",E173:G$4934,3,)))*-1^(D172="buy") -> 0
A174: 2017-03-01T10:03:33 | C174: 10:03:33 | D174: buy | E174: in | F174: 1.00 | G174: 109820 | H174: 0 | I174: 111796.35 | J174: =(IF(AND(E173="in",E172<>"in"),G173)-IF(AND(E173="in",E172<>"in"),VLOOKUP("out",E174:G$4934,3,)))*-1^(D173="buy") -> 0
A175: 2017-03-01T23:40:01 | C175: 23:40:01 | D175: sell | E175: out | F175: 1.00 | G175: 111090 | H175: 1468.75 | I175: 113265.1 | J175: =(IF(AND(E174="in",E173<>"in"),G174)-IF(AND(E174="in",E173<>"in"),VLOOKUP("out",E175:G$4934,3,)))*-1^(D174="buy") -> 1270
A176: 2017-03-02T10:06:22 | C176: 10:06:22 | D176: buy | E176: in | F176: 1.00 | G176: 111400 | H176: 0 | I176: 113265.1 | J176: =(IF(AND(E175="in",E174<>"in"),G175)-IF(AND(E175="in",E174<>"in"),VLOOKUP("out",E176:G$4934,3,)))*-1^(D175="buy") -> 0
A177: 2017-03-02T10:06:23 | C177: 10:06:23 | D177: buy | E177: in | F177: 1.00 | G177: 111410 | H177: 0 | I177: 113265.1 | J177: =(IF(AND(E176="in",E175<>"in"),G176)-IF(AND(E176="in",E175<>"in"),VLOOKUP("out",E177:G$4934,3,)))*-1^(D176="buy") -> -2000
A178: 2017-03-02T23:40:01 | C178: 23:40:01 | D178: sell | E178: out | F178: 2.00 | G178: 109400 | H178: -4637.56 | I178: 108627.54 | J178: =(IF(AND(E177="in",E176<>"in"),G177)-IF(AND(E177="in",E176<>"in"),VLOOKUP("out",E178:G$4934,3,)))*-1^(D177="buy") -> 0
A179: 2017-03-03T10:00:36 | C179: 10:00:36 | D179: sell | E179: in | F179: 1.00 | G179: 109250 | H179: 0 | I179: 108627.54 | J179: =(IF(AND(E178="in",E177<>"in"),G178)-IF(AND(E178="in",E177<>"in"),VLOOKUP("out",E179:G$4934,3,)))*-1^(D178="buy") -> 0
A180: 2017-03-03T18:40:44 | C180: 18:40:44 | D180: buy | E180: out | F180: 1.00 | G180: 110650 | H180: -1619.09 | I180: 107008.45 | J180: =(IF(AND(E179="in",E178<>"in"),G179)-IF(AND(E179="in",E178<>"in"),VLOOKUP("out",E180:G$4934,3,)))*-1^(D179="buy") -> -1400
A181: 2017-03-03T18:40:45 | C181: 18:40:45 | D181: buy | E181: in | F181: 1.00 | G181: 110640 | H181: 0 | I181: 107008.45 | J181: =(IF(AND(E180="in",E179<>"in"),G180)-IF(AND(E180="in",E179<>"in"),VLOOKUP("out",E181:G$4934,3,)))*-1^(D180="buy") -> 0
A182: 2017-03-03T18:40:46 | C182: 18:40:46 | D182: buy | E182: in | F182: 1.00 | G182: 110640 | H182: 0 | I182: 107008.45 | J182: =(IF(AND(E181="in",E180<>"in"),G181)-IF(AND(E181="in",E180<>"in"),VLOOKUP("out",E182:G$4934,3,)))*-1^(D181="buy") -> 720
A183: 2017-03-03T18:40:47 | C183: 18:40:47 | D183: buy | E183: in | F183: 1.00 | G183: 110640 | H183: 0 | I183: 107008.45 | J183: =(IF(AND(E182="in",E181<>"in"),G182)-IF(AND(E182="in",E181<>"in"),VLOOKUP("out",E183:G$4934,3,)))*-1^(D182="buy") -> 0
A184: 2017-03-03T18:40:48 | C184: 18:40:48 | D184: buy | E184: in | F184: 1.00 | G184: 110630 | H184: 0 | I184: 107008.45 | J184: =(IF(AND(E183="in",E182<>"in"),G183)-IF(AND(E183="in",E182<>"in"),VLOOKUP("out",E184:G$4934,3,)))*-1^(D183="buy") -> 0
A185: 2017-03-03T18:40:49 | C185: 18:40:49 | D185: buy | E185: in | F185: 1.00 | G185: 110590 | H185: 0 | I185: 107008.45 | J185: =(IF(AND(E184="in",E183<>"in"),G184)-IF(AND(E184="in",E183<>"in"),VLOOKUP("out",E185:G$4934,3,)))*-1^(D184="buy") -> 0
A186: 2017-03-03T23:40:01 | C186: 23:40:01 | D186: sell | E186: out | F186: 5.00 | G186: 111360 | H186: 4232.75 | I186: 111241.2 | J186: =(IF(AND(E185="in",E184<>"in"),G185)-IF(AND(E185="in",E184<>"in"),VLOOKUP("out",E186:G$4934,3,)))*-1^(D185="buy") -> 0
A187: 2017-03-06T10:00:06 | C187: 10:00:06 | D187: sell | E187: in | F187: 1.00 | G187: 110980 | H187: 0 | I187: 111241.2 | J187: =(IF(AND(E186="in",E185<>"in"),G186)-IF(AND(E186="in",E185<>"in"),VLOOKUP("out",E187:G$4934,3,)))*-1^(D186="buy") -> 0
A188: 2017-03-06T12:47:44 | C188: 12:47:44 | D188: buy | E188: out | F188: 1.00 | G188: 112110 | H188: -1306.84 | I188: 109934.36 | J188: =(IF(AND(E187="in",E186<>"in"),G187)-IF(AND(E187="in",E186<>"in"),VLOOKUP("out",E188:G$4934,3,)))*-1^(D187="buy") -> -1130
A189: 2017-03-06T12:47:45 | C189: 12:47:45 | D189: buy | E189: in | F189: 1.00 | G189: 112090 | H189: 0 | I189: 109934.36 | J189: =(IF(AND(E188="in",E187<>"in"),G188)-IF(AND(E188="in",E187<>"in"),VLOOKUP("out",E189:G$4934,3,)))*-1^(D188="buy") -> 0
A190: 2017-03-06T23:40:01 | C190: 23:40:01 | D190: sell | E190: out | F190: 1.00 | G190: 110590 | H190: -1734.75 | I190: 108199.61 | J190: =(IF(AND(E189="in",E188<>"in"),G189)-IF(AND(E189="in",E188<>"in"),VLOOKUP("out",E190:G$4934,3,)))*-1^(D189="buy") -> -1500
A191: 2017-03-07T11:18:43 | C191: 11:18:43 | D191: buy | E191: in | F191: 1.00 | G191: 110840 | H191: 0 | I191: 108199.61 | J191: =(IF(AND(E190="in",E189<>"in"),G190)-IF(AND(E190="in",E189<>"in"),VLOOKUP("out",E191:G$4934,3,)))*-1^(D190="buy") -> 0
A192: 2017-03-07T11:18:44 | C192: 11:18:44 | D192: buy | E192: in | F192: 1.00 | G192: 110850 | H192: 0 | I192: 108199.61 | J192: =(IF(AND(E191="in",E190<>"in"),G191)-IF(AND(E191="in",E190<>"in"),VLOOKUP("out",E192:G$4934,3,)))*-1^(D191="buy") -> -1470
A193: 2017-03-07T23:40:01 | C193: 23:40:01 | D193: sell | E193: out | F193: 2.00 | G193: 109370 | H193: -3411.66 | I193: 104787.95 | J193: =(IF(AND(E192="in",E191<>"in"),G192)-IF(AND(E192="in",E191<>"in"),VLOOKUP("out",E193:G$4934,3,)))*-1^(D192="buy") -> 0
A194: 2017-03-09T10:37:42 | C194: 10:37:42 | D194: buy | E194: in | F194: 1.00 | G194: 107580 | H194: 0 | I194: 104787.95 | J194: =(IF(AND(E193="in",E192<>"in"),G193)-IF(AND(E193="in",E192<>"in"),VLOOKUP("out",E194:G$4934,3,)))*-1^(D193="buy") -> 0
A195: 2017-03-09T16:02:44 | C195: 16:02:44 | D195: sell | E195: out | F195: 1.00 | G195: 104750 | H195: -3272.88 | I195: 101515.07 | J195: =(IF(AND(E194="in",E193<>"in"),G194)-IF(AND(E194="in",E193<>"in"),VLOOKUP("out",E195:G$4934,3,)))*-1^(D194="buy") -> -2830
A196: 2017-03-09T16:02:45 | C196: 16:02:45 | D196: sell | E196: in | F196: 1.00 | G196: 104760 | H196: 0 | I196: 101515.07 | J196: =(IF(AND(E195="in",E194<>"in"),G195)-IF(AND(E195="in",E194<>"in"),VLOOKUP("out",E196:G$4934,3,)))*-1^(D195="buy") -> 0
A197: 2017-03-09T23:40:01 | C197: =MOD(A197,1) -> 23:40:01 | D197: buy | E197: out | F197: 1.00 | G197: 105050 | H197: -335.38 | I197: 101179.69 | J197: =(IF(AND(E196="in",E195<>"in"),G196)-IF(AND(E196="in",E195<>"in"),VLOOKUP("out",E197:G$4934,3,)))*-1^(D196="buy") -> -290
A198: 2017-03-10T10:00:16 | C198: 10:00:16 | D198: buy | E198: in | F198: 1.00 | G198: 105340 | H198: 0 | I198: 101179.69 | J198: =(IF(AND(E197="in",E196<>"in"),G197)-IF(AND(E197="in",E196<>"in"),VLOOKUP("out",E198:G$4934,3,)))*-1^(D197="buy") -> 0
A199: 2017-03-10T23:40:01 | C199: 23:40:01 | D199: sell | E199: out | F199: 1.00 | G199: 105450 | H199: 127.21 | I199: 101306.9 | J199: =(IF(AND(E198="in",E197<>"in"),G198)-IF(AND(E198="in",E197<>"in"),VLOOKUP("out",E199:G$4934,3,)))*-1^(D198="buy") -> 110
A200: 2017-03-13T10:00:44 | C200: 10:00:44 | D200: sell | E200: in | F200: 1.00 | G200: 105150 | H200: 0 | I200: 101306.9 | J200: =(IF(AND(E199="in",E198<>"in"),G199)-IF(AND(E199="in",E198<>"in"),VLOOKUP("out",E200:G$4934,3,)))*-1^(D199="buy") -> 0
... 12 more rows
